{"text_format":"1","workbook":"xlsx","n_sheets":9,"sheets":["Forside","sjekkliste_matrix","meta_data","Sjekkliste for utfylling","Sheet1","Ikke besvart","JA-svar","Nei-svar","IA-svar"],"not_rendered":{"charts":0,"images":52,"macros":1,"external_links":0,"defined_names":30,"comments":0,"pivot_tables":0},"unopened":[],"bounds":{"document_bytes":16777216,"sheet_cells":100000,"rows_first":2000,"rows_last":500,"rows_between":2000,"halvings":0,"cell_chars":16384,"cell_head_chars":4096},"cells_cut":0,"cells_raw":0,"read":"whole","date_system":"1900"}

{"sheet":"Forside","index":0,"n_rows":55,"n_cols":6,"rows_kept":55,"cut":false,"hidden":false,"merged":[[33,0,33,5],[0,0,0,5],[1,1,1,5],[2,1,2,5],[3,1,3,5],[4,1,4,5],[12,0,12,5],[23,0,23,2]]}
["Sjekkliste årsberetning"]
["Selskap"]
["År",2023]
["Utfylt"]
["Review"]
[]
[]
[null,"Ubesvart","Ja","Nei","IA","Sum"]
["Årsberetning",{"$f":"F9-SUM(C9:E9)","v":72},{"$f":"_xlfn.AGGREGATE(3,5,'Sjekkliste for utfylling'!E8:E276)","v":0},{"$f":"_xlfn.AGGREGATE(3,5,'Sjekkliste for utfylling'!F8:F276)","v":0},{"$f":"_xlfn.AGGREGATE(3,5,'Sjekkliste for utfylling'!G8:G276)+(F9-_xlfn.AGGREGATE(2,5,'Sjekkliste for utfylling'!A8:A276))","v":68},{"$f":"_xlfn.AGGREGATE(2,4,'Sjekkliste for utfylling'!A8:A276)","v":140}]
[]
["Ønsker du å bruke full sjekkliste, eller kun å kontrollere endringer i regelverk fra tidligere år, de punkter som revisor er ansvarlig for å kontrollere og eventuelle utvalgte risikoområder i virksomheten?"]
[]
["Veiledning for bruk av full sjekkliste:\nSjekklisten kan spisses sånn at den kun omfatter forhold som er relevante for den aktuelle virksomheten. \n"]
[]
["Full sjekkliste"]
["Er følgende aktuelt for foretaket:"]
["Resultatdisponering og utbyttegrunnlag",null,"Ja",null,"Nei"]
["Rapportering om betalinger til myndigheter m.v. (land-for-land rapportering)",null,"Ja",null,"Nei"]
["Regnskapspliktige som er utstedere med verdipapirer notert på regulert marked",null,"Ja",null,"Nei"]
["Redegjørelse for foretaksstyring",null,"Ja",null,"Nei"]
["Redegjørelse for samfunnsansvar",null,"Ja",null,"Nei"]
["Rapport om godtgjørelse til ledende personer",null,"Ja",null,"Nei"]
[]
["Er foretaket omfattet av disse bransjereglene:"]
["Bank, finansieringsforetak med mer",null,"Ja",null,"Nei"]
["Livsforsikringsforetak eller skadeforsikringsforetak",null,"Ja",null,"Nei"]
["Verdipapirfond",null,"Ja",null,"Nei"]
["Verdipapirforetak",null,"Ja",null,"Nei"]
["Pensjonsforetak",null,"Ja",null,"Nei"]
["Borettslag",null,"Ja",null,"Nei"]
[]
[]
[]
["Veiledning for bruk av endringssjekkliste:\nEndringssjekklisten inneholder de punkter hvor det har vært lovendringer inneværende år. Ved avkryssing i listen nedenfor velger du i tillegg de deler av sjekklisten som er relevante for det temaet du krysser av for. Du får da opp alle sjekkpunkter i regelverket som er aktuelle for det temaet du har valgt. \n"]
[]
["Endringssjekkliste"]
["Er policy for bruk av endringssjekkliste fulgt?",null,"Ja",null,"Nei"]
[]
["Angi siste år for gjennomgang av full sjekkliste"]
[]
["Har det vært endringer i foretaket, eller er det spesifikke områder som kan ha økt risiko for feil, som man ønsker å kontrollere?"]
[]
[]
["Resultatdisponering og utbyttegrunnlag",null,"Ja",null,"Nei"]
["Rapportering om betalinger til myndigheter m.v. (land-for-land rapportering)",null,"Ja",null,"Nei"]
["Regnskapspliktige som er utstedere med verdipapirer notert på regulert marked",null,"Ja",null,"Nei"]
["Redegjørelse for foretaksstyring",null,"Ja",null,"Nei"]
["Redegjørelse for samfunnsansvar",null,"Ja",null,"Nei"]
["Rapport om godtgjørelse til ledende personer",null,"Ja",null,"Nei"]
["Bank, finansieringsforetak med mer",null,"Ja",null,"Nei"]
["Livsforsikringsforetak eller skadeforsikringsforetak",null,"Ja",null,"Nei"]
["Verdipapirfond",null,"Ja",null,"Nei"]
["Verdipapirforetak",null,"Ja",null,"Nei"]
["Pensjonskasse",null,"Ja",null,"Nei"]
["Borettslag",null,"Ja",null,"Nei"]

{"sheet":"sjekkliste_matrix","index":1,"n_rows":274,"n_cols":28,"rows_kept":274,"cut":false,"hidden":true,"merged":[]}
["F0","E0","F1","F2","F3","F4","F5","F6","F7","F8","F9","F10","F11","F12","E1","E2","E3","E4","E5","E6","E7","E8","E9","E10","E11","E12","E13","E14"]
["x","x","x","x","x","x","x","x","x","x","x","x","x","x","x","x","x","x","x","x","x","x","x","x","x","x","x","x"]
["x","x","x","x","x","x","x","x","x","x","x","x","x","x","x","x","x","x","x","x","x","x","x","x","x","x","x","x"]
["x","x","x","x","x","x","x","x","x","x","x","x","x","x","x","x","x","x","x","x","x","x","x","x","x","x","x","x"]
["x","x","x","x","x","x","x","x","x","x","x","x","x","x","x","x","x","x","x","x","x","x","x","x","x","x","x","x"]
["x","x","x","x","x","x","x","x","x","x","x","x","x","x","x","x","x","x","x","x","x","x","x","x","x","x","x","x"]
["x","x","x","x","x","x","x","x","x","x","x","x","x","x","x","x","x","x","x","x","x","x","x","x","x","x","x","x"]
["x","x","x","x","x","x","x","x","x","x","x","x","x","x","x","x","x","x","x","x","x","x","x","x","x","x","x","x"]
["x","x","x","x","x","x","x","x","x","x","x","x","x","x","x","x","x","x","x","x","x","x","x","x","x","x","x","x"]
["x","x","x","x","x","x","x","x","x","x","x","x","x","x","x","x","x","x","x","x","x","x","x","x","x","x","x","x"]
["x","x","x","x","x","x","x","x","x","x","x","x","x","x","x","x","x","x","x","x","x","x","x","x","x","x","x","x"]
["x","x","x","x","x","x","x","x","x","x","x","x","x","x","x","x","x","x","x","x","x","x","x","x","x","x","x","x"]
["x",null,"x","x","x","x","x","x","x","x","x","x","x","x"]
["x",null,"x","x","x","x","x","x","x","x","x","x","x","x"]
["x",null,"x","x","x","x","x","x","x","x","x","x","x","x"]
["x",null,"x","x","x","x","x","x","x","x","x","x","x","x"]
["x",null,"x","x","x","x","x","x","x","x","x","x","x","x"]
["x","x","x","x","x","x","x","x","x","x","x","x","x","x","x","x","x","x","x","x","x","x","x","x","x","x","x","x"]
["x",null,"x","x","x","x","x","x","x","x","x","x","x","x"]
["x",null,"x","x","x","x","x","x","x","x","x","x","x","x"]
["x",null,"x","x","x","x","x","x","x","x","x","x","x","x"]
["x",null,"x","x","x","x","x","x","x","x","x","x","x","x",null,"x"]
["x",null,"x","x","x","x","x","x","x","x","x","x","x","x"]
["x",null,"x","x","x","x","x","x","x","x","x","x","x","x"]
["x",null,"x","x","x","x","x","x","x","x","x","x","x","x",null,"x"]
["x",null,"x","x","x","x","x","x","x","x","x","x","x","x"]
["x",null,"x","x","x","x","x","x","x","x","x","x","x","x"]
["x","x","x","x","x","x","x","x","x","x","x","x","x","x","x","x","x","x","x","x","x","x","x","x","x","x","x","x"]
["x","x","x","x","x","x","x","x","x","x","x","x","x","x","x","x","x","x","x","x","x","x","x","x","x","x","x","x"]
["x",null,"x","x","x","x","x","x","x","x","x","x","x","x"]
["x",null,"x","x","x","x","x","x","x","x","x","x","x","x"]
["x",null,"x","x","x","x","x","x","x","x","x","x","x","x"]
["x",null,"x","x","x","x","x","x","x","x","x","x","x","x"]
["x",null,"x","x","x","x","x","x","x","x","x","x","x","x"]
["x","x","x","x","x","x","x","x","x","x","x","x","x","x","x","x","x","x","x","x","x","x","x","x","x","x","x","x"]
["x","x","x","x","x","x","x","x","x","x","x","x","x","x","x","x","x","x","x","x","x","x","x","x","x","x","x","x"]
["x",null,"x","x","x","x","x","x","x","x","x","x","x","x",null,"x"]
["x",null,"x","x","x","x","x","x","x","x","x","x","x","x",null,"x"]
["x",null,"x","x","x","x","x","x","x","x","x","x","x","x",null,"x"]
["x",null,"x","x","x","x","x","x","x","x","x","x","x","x",null,"x"]
["x",null,"x","x","x","x","x","x","x","x","x","x","x","x",null,"x"]
["x",null,"x","x","x","x","x","x","x","x","x","x","x","x",null,"x"]
["x",null,"x","x","x","x","x","x","x","x","x","x","x","x",null,"x"]
["x",null,"x","x","x","x","x","x","x","x","x","x","x","x",null,"x"]
["x",null,"x","x","x","x","x","x","x","x","x","x","x","x",null,"x"]
["x",null,"x","x","x","x","x","x","x","x","x","x","x","x",null,"x"]
["x",null,"x","x","x","x","x","x","x","x","x","x","x","x",null,"x"]
["x",null,"x","x","x","x","x","x","x","x","x","x","x","x",null,"x"]
["x",null,"x","x","x","x","x","x","x","x","x","x","x","x",null,"x"]
["x",null,"x","x","x","x","x","x","x","x","x","x","x","x",null,"x"]
["x",null,"x","x","x","x","x","x","x","x","x","x","x","x",null,"x"]
["x",null,"x","x","x","x","x","x","x","x","x","x","x","x",null,"x"]
["x",null,"x","x","x","x","x","x","x","x","x","x","x","x",null,"x"]
["x",null,"x","x","x","x","x","x","x","x","x","x","x","x",null,"x"]
["x",null,"x","x","x","x","x","x","x","x","x","x","x","x",null,"x"]
["x",null,"x","x","x","x","x","x","x","x","x","x","x","x",null,"x"]
["x",null,"x","x","x","x","x","x","x","x","x","x","x","x",null,"x"]
["x",null,"x","x","x","x","x","x","x","x","x","x","x","x",null,"x"]
["x",null,"x","x","x","x","x","x","x","x","x","x","x","x",null,"x"]
["x",null,"x","x","x","x","x","x","x","x","x","x","x","x",null,"x"]
["x",null,"x","x","x","x","x","x","x","x","x","x","x","x",null,"x"]
["x",null,"x","x","x","x","x","x","x","x","x","x","x","x",null,"x"]
["x",null,"x","x","x","x","x","x","x","x","x","x","x","x",null,"x"]
["x",null,"x","x","x","x","x","x","x","x","x","x","x","x",null,"x"]
["x",null,"x","x","x","x","x","x","x","x","x","x","x","x",null,"x"]
["x",null,"x","x","x","x","x","x","x","x","x","x","x","x",null,"x"]
["x","x","x","x","x","x","x","x","x","x","x","x","x","x","x","x","x","x","x","x","x","x","x","x","x","x","x","x"]
["x","x","x","x","x","x","x","x","x","x","x","x","x","x","x","x","x","x","x","x","x","x","x","x","x","x","x","x"]
["x",null,"x","x","x","x","x","x","x","x","x","x","x","x"]
["x",null,"x","x","x","x","x","x","x","x","x","x","x","x"]
["x",null,"x","x","x","x","x","x","x","x","x","x","x","x"]
["x",null,"x","x","x","x","x","x","x","x","x","x","x","x"]
["x",null,"x","x","x","x","x","x","x","x","x","x","x","x"]
["x",null,"x","x","x","x","x","x","x","x","x","x","x","x"]
["x",null,"x","x","x","x","x","x","x","x","x","x","x","x"]
["x",null,"x","x","x","x","x","x","x","x","x","x","x","x"]
["x",null,"x","x","x","x","x","x","x","x","x","x","x","x"]
["x",null,"x","x","x","x","x","x","x","x","x","x","x","x"]
["x",null,"x","x","x","x","x","x","x","x","x","x","x","x"]
["x","x","x","x","x","x","x","x","x","x","x","x","x","x","x","x","x","x","x","x","x","x","x","x","x","x","x","x"]
["x","x","x","x","x","x","x","x","x","x","x","x","x","x","x","x","x","x","x","x","x","x","x","x","x","x","x","x"]
["x",null,"x","x","x","x","x","x","x","x","x","x","x","x"]
["x",null,"x","x","x","x","x","x","x","x","x","x","x","x"]
["x",null,"x","x","x","x","x","x","x","x","x","x","x","x"]
["x",null,"x","x","x","x","x","x","x","x","x","x","x","x"]
["x",null,"x","x","x","x","x","x","x","x","x","x","x","x"]
["x","x","x","x","x","x","x","x","x","x","x","x","x","x","x","x","x","x","x","x","x","x","x","x","x","x","x","x"]
["x","x","x","x","x","x","x","x","x","x","x","x","x","x","x","x","x","x","x","x","x","x","x","x","x","x","x","x"]
["x","x","x","x","x","x","x","x","x","x","x","x","x","x","x","x","x","x","x","x","x","x","x","x","x","x","x","x"]
["x",null,"x","x","x","x","x","x","x","x","x","x","x","x",null,"x"]
["x",null,"x","x","x","x","x","x","x","x","x","x","x","x",null,"x"]
["x",null,"x","x","x","x","x","x","x","x","x","x","x","x",null,"x"]
["x",null,"x","x","x","x","x","x","x","x","x","x","x","x",null,"x"]
["x",null,"x","x","x","x","x","x","x","x","x","x","x","x",null,"x"]
["x",null,"x","x","x","x","x","x","x","x","x","x","x","x",null,"x"]
["x",null,"x","x","x","x","x","x","x","x","x","x","x","x",null,"x"]
["x",null,"x","x","x","x","x","x","x","x","x","x","x","x",null,"x"]
["x",null,"x","x","x","x","x","x","x","x","x","x","x","x",null,"x"]
["x",null,"x","x","x","x","x","x","x","x","x","x","x","x",null,"x"]
["x",null,"x","x","x","x","x","x","x","x","x","x","x","x",null,"x"]
["x","x","x","x","x","x","x","x","x","x","x","x","x","x","x","x","x","x","x","x","x","x","x","x","x","x","x","x"]
["x","x","x","x","x","x","x","x","x","x","x","x","x","x","x","x","x","x","x","x","x","x","x","x","x","x","x","x"]
["x",null,null,"x","x","x","x","x","x","x","x","x","x","x",null,"x","x"]
["x",null,null,"x","x","x","x","x","x","x","x","x","x","x",null,"x","x"]
["x","x","x","x","x","x","x","x","x","x","x","x","x","x","x","x","x","x","x","x","x","x","x","x","x","x","x","x"]
["x",null,"x","x","x","x","x","x","x","x","x","x","x","x"]
["x",null,"x","x","x","x","x","x","x","x","x","x","x","x"]
["x",null,"x","x","x","x","x","x","x","x","x","x","x","x"]
["x",null,"x","x","x","x","x","x","x","x","x","x","x","x"]
["x",null,"x","x","x","x","x","x","x","x","x","x","x","x"]
["x","x","x","x","x","x","x","x","x","x","x","x","x","x","x","x","x","x","x","x","x","x","x","x","x","x","x","x"]
["x","x","x","x","x","x","x","x","x","x","x","x","x","x","x","x","x","x","x","x","x","x","x","x","x","x","x","x"]
["x",null,"x","x","x","x","x","x","x","x","x","x","x","x"]
["x",null,"x","x","x","x","x","x","x","x","x","x","x","x"]
["x",null,"x","x","x","x","x","x","x","x","x","x","x","x"]
["x",null,"x","x","x","x","x","x","x","x","x","x","x","x"]
["x",null,"x","x","x","x","x","x","x","x","x","x","x","x"]
["x",null,"x","x","x","x","x","x","x","x","x","x","x","x"]
["x",null,"x","x","x","x","x","x","x","x","x","x","x","x"]
["x",null,"x","x","x","x","x","x","x","x","x","x","x","x"]
["x","x","x","x","x","x","x","x","x","x","x","x","x","x","x","x","x","x","x","x","x","x","x","x","x","x","x","x"]
["x","x","x","x","x","x","x","x","x","x","x","x","x","x","x","x","x","x","x","x","x","x","x","x","x","x","x","x"]
["x","x","x","x","x","x","x","x","x","x","x","x","x","x","x","x","x","x","x","x","x","x","x","x","x","x","x","x"]
["x",null,"x","x","x","x","x","x","x","x","x","x","x","x"]
["x",null,"x","x","x","x","x","x","x","x","x","x","x","x"]
["x",null,"x","x","x","x","x","x","x","x","x","x","x","x"]
["x",null,"x","x","x","x","x","x","x","x","x","x","x","x"]
["x",null,"x","x","x","x","x","x","x","x","x","x","x","x"]
["x",null,"x","x","x","x","x","x","x","x","x","x","x","x"]
["x",null,"x","x","x","x","x","x","x","x","x","x","x","x"]
["x",null,"x","x","x","x","x","x","x","x","x","x","x","x"]
["x","x","x","x","x","x","x","x","x","x","x","x","x","x","x","x","x","x","x","x","x","x","x","x","x","x","x","x"]
["x","x","x","x","x","x","x","x","x","x","x","x","x","x","x","x","x","x","x","x","x","x","x","x","x","x","x","x"]
["x",null,"x","x","x","x","x","x","x","x","x","x","x","x"]
["x",null,"x","x","x","x","x","x","x","x","x","x","x","x"]
["x",null,"x","x","x","x","x","x","x","x","x","x","x","x"]
["x",null,"x","x","x","x","x","x","x","x","x","x","x","x"]
["x",null,"x","x","x","x","x","x","x","x","x","x","x","x"]
["x","x","x","x","x","x","x","x","x","x","x","x","x","x","x","x","x","x","x","x","x","x","x","x","x","x","x","x"]
["x",null,"x","x","x","x","x","x","x","x","x","x","x","x",null,null,null,"x"]
["x",null,"x","x","x","x","x","x","x","x","x","x","x","x",null,null,null,"x"]
["x",null,"x","x","x","x","x","x","x","x","x","x","x","x",null,null,null,"x"]
["x","x","x","x","x","x","x","x","x","x","x","x","x","x","x","x","x","x","x","x","x","x","x","x","x","x","x","x"]
["x",null,"x","x","x","x","x","x","x","x","x","x","x","x",null,null,null,"x"]
["x",null,"x","x","x","x","x","x","x","x","x","x","x","x",null,null,null,"x"]
["x","x","x","x","x","x","x","x","x","x","x","x","x","x","x","x","x","x","x","x","x","x","x","x","x","x","x","x"]
["x",null,"x",null,"x","x","x","x","x","x","x","x","x","x",null,null,null,"x"]
["x",null,"x",null,"x","x","x","x","x","x","x","x","x","x",null,null,null,"x"]
["x",null,"x",null,"x","x","x","x","x","x","x","x","x","x",null,null,null,"x"]
["x",null,"x",null,"x","x","x","x","x","x","x","x","x","x",null,null,null,"x"]
["x",null,"x",null,"x","x","x","x","x","x","x","x","x","x",null,null,null,"x"]
["x",null,"x",null,"x","x","x","x","x","x","x","x","x","x",null,null,null,"x"]
["x",null,"x",null,"x","x","x","x","x","x","x","x","x","x",null,null,null,"x"]
["x",null,"x",null,"x","x","x","x","x","x","x","x","x","x",null,null,null,"x"]
["x",null,"x",null,"x","x","x","x","x","x","x","x","x","x",null,null,null,"x"]
["x",null,"x",null,"x","x","x","x","x","x","x","x","x","x",null,null,null,"x"]
["x",null,"x",null,"x","x","x","x","x","x","x","x","x","x",null,null,null,"x"]
["x",null,"x",null,"x","x","x","x","x","x","x","x","x","x",null,null,null,"x"]
["x",null,"x",null,"x","x","x","x","x","x","x","x","x","x",null,null,null,"x"]
["x",null,"x",null,"x","x","x","x","x","x","x","x","x","x",null,null,null,"x"]
["x",null,"x",null,"x","x","x","x","x","x","x","x","x","x",null,null,null,"x"]
["x",null,"x",null,"x","x","x","x","x","x","x","x","x","x",null,null,null,"x"]
["x",null,"x",null,"x","x","x","x","x","x","x","x","x","x",null,null,null,"x"]
["x",null,"x",null,"x","x","x","x","x","x","x","x","x","x",null,null,null,"x"]
["x",null,"x",null,"x","x","x","x","x","x","x","x","x","x",null,null,null,"x"]
["x",null,"x",null,"x","x","x","x","x","x","x","x","x","x",null,null,null,"x"]
["x",null,"x",null,"x","x","x","x","x","x","x","x","x","x",null,null,null,"x"]
["x",null,"x",null,"x","x","x","x","x","x","x","x","x","x",null,null,null,"x"]
["x",null,"x",null,"x","x","x","x","x","x","x","x","x","x",null,null,null,"x"]
["x",null,"x",null,"x","x","x","x","x","x","x","x","x","x",null,null,null,"x"]
["x",null,"x",null,"x","x","x","x","x","x","x","x","x","x",null,null,null,"x"]
["x",null,"x",null,"x","x","x","x","x","x","x","x","x","x",null,null,null,"x"]
["x",null,"x",null,"x","x","x","x","x","x","x","x","x","x",null,null,null,"x"]
["x",null,"x",null,"x","x","x","x","x","x","x","x","x","x",null,null,null,"x"]
["x",null,"x",null,"x","x","x","x","x","x","x","x","x","x",null,null,null,"x"]
["x",null,"x",null,"x","x","x","x","x","x","x","x","x","x",null,null,null,"x"]
["x",null,"x",null,"x","x","x","x","x","x","x","x","x","x",null,null,null,"x"]
["x",null,"x",null,"x","x","x","x","x","x","x","x","x","x",null,null,null,"x"]
["x",null,"x",null,"x","x","x","x","x","x","x","x","x","x",null,null,null,"x"]
["x",null,"x",null,"x","x","x","x","x","x","x","x","x","x",null,null,null,"x"]
["x",null,"x",null,"x","x","x","x","x","x","x","x","x","x",null,null,null,"x"]
["x",null,"x",null,"x","x","x","x","x","x","x","x","x","x",null,null,null,"x"]
["x",null,"x",null,"x","x","x","x","x","x","x","x","x","x",null,null,null,"x"]
["x","x","x","x","x","x","x","x","x","x","x","x","x","x","x","x","x","x","x","x","x","x","x","x","x","x","x","x"]
["x",null,"x","x",null,"x","x","x","x","x","x","x","x","x",null,null,null,null,"x"]
["x",null,"x","x",null,"x","x","x","x","x","x","x","x","x",null,null,null,null,"x"]
["x",null,"x","x",null,"x","x","x","x","x","x","x","x","x",null,null,null,null,"x"]
["x",null,"x","x",null,"x","x","x","x","x","x","x","x","x",null,null,null,null,"x"]
["x",null,"x","x",null,"x","x","x","x","x","x","x","x","x",null,null,null,null,"x"]
["x","x","x","x","x","x","x","x","x","x","x","x","x","x","x","x","x","x","x","x","x","x","x","x","x","x","x","x"]
["x","x","x","x","x","x","x","x","x","x","x","x","x","x","x","x","x","x","x","x","x","x","x","x","x","x","x","x"]
["x",null,"x","x","x",null,"x","x","x","x","x","x","x","x",null,null,null,null,null,"x"]
["x",null,"x","x","x",null,"x","x","x","x","x","x","x","x",null,null,null,null,null,"x"]
["x",null,"x","x","x",null,"x","x","x","x","x","x","x","x",null,null,null,null,null,"x"]
["x",null,"x","x","x",null,"x","x","x","x","x","x","x","x",null,null,null,null,null,"x"]
["x",null,"x","x","x",null,"x","x","x","x","x","x","x","x",null,null,null,null,null,"x"]
["x",null,"x","x","x",null,"x","x","x","x","x","x","x","x",null,null,null,null,null,"x"]
["x",null,"x","x","x",null,"x","x","x","x","x","x","x","x",null,null,null,null,null,"x"]
["x",null,"x","x","x",null,"x","x","x","x","x","x","x","x",null,null,null,null,null,"x"]
["x",null,"x","x","x",null,"x","x","x","x","x","x","x","x",null,null,null,null,null,"x"]
["x",null,"x","x","x",null,"x","x","x","x","x","x","x","x",null,null,null,null,null,"x"]
["x",null,"x","x","x",null,"x","x","x","x","x","x","x","x",null,null,null,null,null,"x"]
["x",null,"x","x","x",null,"x","x","x","x","x","x","x","x",null,null,null,null,null,"x"]
["x",null,"x","x","x",null,"x","x","x","x","x","x","x","x",null,null,null,null,null,"x"]
["x",null,"x","x","x",null,"x","x","x","x","x","x","x","x",null,null,null,null,null,"x"]
["x",null,"x","x","x",null,"x","x","x","x","x","x","x","x",null,null,null,null,null,"x"]
["x",null,"x","x","x",null,"x","x","x","x","x","x","x","x",null,null,null,null,null,"x"]
["x",null,"x","x","x",null,"x","x","x","x","x","x","x","x",null,null,null,null,null,"x"]
["x",null,"x","x","x",null,"x","x","x","x","x","x","x","x",null,null,null,null,null,"x"]
["x",null,"x","x","x",null,"x","x","x","x","x","x","x","x",null,null,null,null,null,"x"]
["x","x","x","x","x","x","x","x","x","x","x","x","x","x","x","x","x","x","x","x","x","x","x","x","x","x","x","x"]
["x",null,"x","x","x","x",null,"x","x","x","x","x","x","x",null,null,null,null,null,null,"x"]
["x",null,"x","x","x","x",null,"x","x","x","x","x","x","x",null,null,null,null,null,null,"x"]
["x",null,"x","x","x","x",null,"x","x","x","x","x","x","x",null,null,null,null,null,null,"x"]
["x",null,"x","x","x","x",null,"x","x","x","x","x","x","x",null,null,null,null,null,null,"x"]
["x",null,"x","x","x","x",null,"x","x","x","x","x","x","x",null,null,null,null,null,null,"x"]
["x",null,"x","x","x","x",null,"x","x","x","x","x","x","x",null,null,null,null,null,null,"x"]
["x",null,"x","x","x","x",null,"x","x","x","x","x","x","x",null,null,null,null,null,null,"x"]
["x",null,"x","x","x","x",null,"x","x","x","x","x","x","x",null,null,null,null,null,null,"x"]
["x",null,"x","x","x","x",null,"x","x","x","x","x","x","x",null,null,null,null,null,null,"x"]
["x",null,"x","x","x","x",null,"x","x","x","x","x","x","x",null,null,null,null,null,null,"x"]
["x",null,"x","x","x","x",null,"x","x","x","x","x","x","x",null,null,null,null,null,null,"x"]
["x",null,"x","x","x","x",null,"x","x","x","x","x","x","x",null,null,null,null,null,null,"x"]
["x",null,"x","x","x","x",null,"x","x","x","x","x","x","x",null,null,null,null,null,null,"x"]
["x",null,"x","x","x","x",null,"x","x","x","x","x","x","x",null,null,null,null,null,null,"x"]
["x",null,"x","x","x","x",null,"x","x","x","x","x","x","x",null,null,null,null,null,null,"x"]
["x",null,"x","x","x","x",null,"x","x","x","x","x","x","x",null,null,null,null,null,null,"x"]
["x",null,"x","x","x","x",null,"x","x","x","x","x","x","x",null,null,null,null,null,null,"x"]
["x",null,"x","x","x","x",null,"x","x","x","x","x","x","x",null,null,null,null,null,null,"x"]
["x",null,"x","x","x","x",null,"x","x","x","x","x","x","x",null,null,null,null,null,null,"x"]
["x",null,"x","x","x","x",null,"x","x","x","x","x","x","x",null,null,null,null,null,null,"x"]
["x",null,"x","x","x","x",null,"x","x","x","x","x","x","x",null,null,null,null,null,null,"x"]
["x",null,"x","x","x","x",null,"x","x","x","x","x","x","x",null,null,null,null,null,null,"x"]
["x",null,"x","x","x","x",null,"x","x","x","x","x","x","x",null,null,null,null,null,null,"x"]
["x",null,"x","x","x","x",null,"x","x","x","x","x","x","x",null,null,null,null,null,null,"x"]
["x",null,"x","x","x","x",null,"x","x","x","x","x","x","x",null,null,null,null,null,null,"x"]
["x",null,"x","x","x","x",null,"x","x","x","x","x","x","x",null,null,null,null,null,null,"x"]
["x",null,"x","x","x","x",null,"x","x","x","x","x","x","x",null,null,null,null,null,null,"x"]
["x","x","x","x","x","x","x","x","x","x","x","x","x","x","x","x","x","x","x","x","x","x","x","x","x","x","x","x"]
["x",null,"x","x","x","x","x",null,"x","x","x","x","x","x",null,null,null,null,null,null,null,"x"]
["x","x","x","x","x","x","x","x","x","x","x","x","x","x","x","x","x","x","x","x","x","x","x","x","x","x","x","x"]
["x",null,"x","x","x","x","x","x",null,"x","x","x","x","x",null,null,null,null,null,null,null,null,"x"]
["x",null,"x","x","x","x","x","x",null,"x","x","x","x","x",null,null,null,null,null,null,null,null,"x"]
["x",null,"x","x","x","x","x","x",null,"x","x","x","x","x",null,null,null,null,null,null,null,null,"x"]
["x",null,"x","x","x","x","x","x",null,"x","x","x","x","x",null,null,null,null,null,null,null,null,"x"]
["x",null,"x","x","x","x","x","x",null,"x","x","x","x","x",null,null,null,null,null,null,null,null,"x"]
["x","x","x","x","x","x","x","x","x","x","x","x","x","x","x","x","x","x","x","x","x","x","x","x","x","x","x","x"]
["x",null,"x","x","x","x","x","x","x",null,"x","x","x","x",null,null,null,null,null,null,null,null,null,"x"]
["x",null,"x","x","x","x","x","x","x",null,"x","x","x","x",null,null,null,null,null,null,null,null,null,"x"]
["x",null,"x","x","x","x","x","x","x",null,"x","x","x","x",null,null,null,null,null,null,null,null,null,"x"]
["x",null,"x","x","x","x","x","x","x",null,"x","x","x","x",null,null,null,null,null,null,null,null,null,"x"]
["x",null,"x","x","x","x","x","x","x",null,"x","x","x","x",null,null,null,null,null,null,null,null,null,"x"]
["x",null,"x","x","x","x","x","x","x",null,"x","x","x","x",null,null,null,null,null,null,null,null,null,"x"]
["x","x","x","x","x","x","x","x","x","x","x","x","x","x","x","x","x","x","x","x","x","x","x","x","x","x","x","x"]
["x",null,"x","x","x","x","x","x","x","x",null,"x","x","x",null,null,null,null,null,null,null,null,null,null,"x"]
["x",null,"x","x","x","x","x","x","x","x",null,"x","x","x",null,null,null,null,null,null,null,null,null,null,"x"]
["x",null,"x","x","x","x","x","x","x","x",null,"x","x","x",null,null,null,null,null,null,null,null,null,null,"x"]
["x",null,"x","x","x","x","x","x","x","x",null,"x","x","x",null,null,null,null,null,null,null,null,null,null,"x"]
["x",null,"x","x","x","x","x","x","x","x",null,"x","x","x",null,null,null,null,null,null,null,null,null,null,"x"]
["x",null,"x","x","x","x","x","x","x","x",null,"x","x","x",null,null,null,null,null,null,null,null,null,null,"x"]
["x",null,"x","x","x","x","x","x","x","x",null,"x","x","x",null,null,null,null,null,null,null,null,null,null,"x"]
["x","x","x","x","x","x","x","x","x","x","x","x","x","x","x","x","x","x","x","x","x","x","x","x","x","x","x","x"]
["x",null,"x","x","x","x","x","x","x","x","x",null,"x","x",null,null,null,null,null,null,null,null,null,null,null,"x"]
["x",null,"x","x","x","x","x","x","x","x","x",null,"x","x",null,null,null,null,null,null,null,null,null,null,null,"x"]
["x",null,"x","x","x","x","x","x","x","x","x",null,"x","x",null,null,null,null,null,null,null,null,null,null,null,"x"]
["x","x","x","x","x","x","x","x","x","x","x","x","x","x","x","x","x","x","x","x","x","x","x","x","x","x","x","x"]
["x",null,"x","x","x","x","x","x","x","x","x","x",null,"x",null,null,null,null,null,null,null,null,null,null,null,null,"x"]
["x",null,"x","x","x","x","x","x","x","x","x","x",null,"x",null,null,null,null,null,null,null,null,null,null,null,null,"x"]
["x",null,"x","x","x","x","x","x","x","x","x","x",null,"x",null,null,null,null,null,null,null,null,null,null,null,null,"x"]
["x",null,"x","x","x","x","x","x","x","x","x","x",null,"x",null,null,null,null,null,null,null,null,null,null,null,null,"x"]
["x",null,"x","x","x","x","x","x","x","x","x","x",null,"x",null,null,null,null,null,null,null,null,null,null,null,null,"x"]
["x","x","x","x","x","x","x","x","x","x","x","x","x","x","x","x","x","x","x","x","x","x","x","x","x","x","x","x"]
["x",null,"x","x","x","x","x","x","x","x","x","x","x",null,null,null,null,null,null,null,null,null,null,null,null,null,null,"x"]
["x",null,"x","x","x","x","x","x","x","x","x","x","x",null,null,null,null,null,null,null,null,null,null,null,null,null,null,"x"]

{"sheet":"meta_data","index":2,"n_rows":29,"n_cols":4,"rows_kept":29,"cut":false,"hidden":true,"merged":[]}
["Key","Beskrivelse","trigger_code","Indicates wether the algo shall loop through the matrix on releated column"]
["F0","Full",true,"trigger code har jeg ikke kontroll på her, på key får jeg heller ikke til koden, så har bare lagt det inn manuelt"]
["E0","Endring",false]
["F1","Resultatdisponering og utbyttegrunnlag",true]
["F2","Rapportering om betalinger til myndigheter m.v. (land-for-land rapportering)",false]
["F3","Regnskapspliktige som er utstedere med verdipapirer notert på regulert marked",false]
["F4","Redegjørelse for foretaksstyring",false]
["F5","Redegjørelse for samfunnsansvar",false]
["F6","Rapport om godtgjørelse til ledende personer",false]
["F7","Bank, finansieringsforetak med mer",false]
["F8","Livsforsikringsforetak eller skadeforsikringsforetak",false]
["F9","Verdipapirfond",false]
["F10","Verdipapirforetak",false]
["F11","Pensjonskasse",false]
["F12","Borettslag",false]
["E1","Policy",false]
["E2","Revisors ansvar",false]
["E3","Resultatdisponering og utbyttegrunnlag",false]
["E4","Rapportering om betalinger til myndigheter m.v. (land-for-land rapportering)",false]
["E5","Regnskapspliktige som er utstedere med verdipapirer notert på regulert marked"]
["E6","Redegjørelse for foretaksstyring",false]
["E7","Redegjørelse for samfunnsansvar",false]
["E8","Rapport om godtgjørelse til ledende personer",false]
["E9","Bank, finansieringsforetak med mer"]
["E10","Livsforsikringsforetak eller skadeforsikringsforetak"]
["E11","Verdipapirfond"]
["E12","Verdipapirforetak"]
["E13","Pensjonskasse"]
["E14","Borettslag",false]

{"sheet":"Sjekkliste for utfylling","index":3,"n_rows":274,"n_cols":12,"rows_kept":274,"cut":false,"hidden":false,"merged":[[250,1,251,1],[250,4,251,4],[250,5,251,5],[250,6,251,6],[250,7,251,7],[250,3,251,3],[25,7,26,7],[131,0,132,1],[96,4,97,4],[96,5,97,5],[96,6,97,6],[98,6,99,6],[25,4,26,4],[25,5,26,5],[25,0,26,0],[25,1,26,1],[110,0,111,1],[79,0,80,1],[120,0,122,1],[90,4,91,4],[90,5,91,5],[90,6,91,6],[8,0,10,0],[96,1,97,1],[96,0,97,0],[98,1,99,1],[98,0,99,0],[8,1,10,1],[262,2,263,2],[254,2,255,2],[98,7,99,7],[100,0,101,1],[147,3,150,3],[207,6,209,6],[207,7,209,7],[207,4,209,4],[207,5,209,5],[248,0,249,0],[248,1,249,1],[248,4,249,4],[248,5,249,5],[248,6,249,6],[248,7,249,7],[250,0,251,0],[0,0,0,2],[207,0,209,0],[207,1,209,1],[25,6,26,6],[110,4,111,7],[96,7,97,7],[98,5,99,5],[66,0,67,1],[86,0,88,1],[90,1,91,1],[90,0,91,0],[92,0,93,0],[4,0,5,7],[147,2,150,2],[92,1,93,1],[98,4,99,4],[100,4,101,7],[90,3,91,3],[92,3,93,3],[96,3,97,3],[98,3,99,3],[90,7,91,7],[92,4,93,4],[92,5,93,5],[92,6,93,6],[92,7,93,7]]}
["Kontroll av årsberetningen samt evt redegjørelser for foretaksstyring og samfunnsansvar - øvrige og store foretak",null,null,"Utfylt:",null,null,null,null,null,null,"Sum"]
["Klient:",{"$f":"+Forside!B2","v":0},null,"Review:",null,null,null,null,null,"Ikke besvart:",{"$f":"Forside!B9","v":72}]
["År:",{"$f":"+Forside!B3","v":2023},null,null,null,null,null,null,null,"Ja-svar:",{"$f":"Forside!C9","v":0}]
[null,null,null,null,null,null,null,null,null,"Nei-svar:",{"$f":"Forside!D9","v":0}]
["Enkelte selskaper har tilleggskrav ihht regnskapsloven eller forskrifter til regnskapsloven, disse fremgår nederst i denne sjekklisten. ",null,null,null,null,null,null,null,null,"IA-svar:",{"$f":"Forside!E9","v":68}]
[null,null,null,null,null,null,null,null,null,"Sum:",{"$f":"SUM(K2:K5)","v":140}]
[null,"Spørsmål","Ref. ",null,"Ja","Nei","I/A","Kommentar"]
["Plikt til utarbeidelse"]
[null,"Regnskapspliktige som ikke er små foretak skal utarbeide årsberetning. \n\nDet kan være andre forhold enn de som spesifikt er omtalt i regnskapsloven § 3-3a og NRS 16 Årsberetning som kan påvirke verdien av foretaket eller på annen måte har betydning for foretakets interessegrupper. Det bør gis informasjon om slike forhold, for eksempel:\n• Endringer i aksjonærsammensetningen\n• Endringer i ledelses- og organisasjonsforhold\n• Aksjonærpolitikk\n• Endringer i foretakets vedtekter\n• Erverv av egne aksjer ","rskl § 3-1\n\n\n\n"]
[null,null,"rskl § 3-3a"]
[null,null,"NRS 16 pkt 2.12."]
["Formkrav"]
[1,"Er årsberetningen på norsk?","rskl § 3-4",null,null,null,null,null,null,{"$f":"IF(F13<>\"\",\"Du har satt X for at forholdet ikke er avklart. Gi en nærmere foklaring i kommentarfeltet.\",\"\")","v":""}]
[{"$f":"+A13+1","v":2},"Er årsberetningen underskrevet av samtlige styremedlemmer og eventuelt av daglig leder, alternativt av deltakerne eller medlemmene hvis foretaket ikke har styre eller daglig leder?","rskl § 3-5",null,null,null,null,null,null,{"$f":"IF(F14<>\"\",\"Du har satt X for at forholdet ikke er avklart. Gi en nærmere foklaring i kommentarfeltet.\",\"\")","v":""}]
[{"$f":"+A14+1","v":3},"Dersom en som skal underskrive har innvendinger mot årsregnskapet, har vedkommende underskrevet med påtegnet forbehold og gitt nærmere redegjørelse i selve årsberetningen?","rskl § 3-5",null,null,null,null,null,null,{"$f":"IF(F15<>\"\",\"Du har satt X for at forholdet ikke er avklart. Gi en nærmere foklaring i kommentarfeltet.\",\"\")","v":""}]
[null,"Merk at dersom det i årsberetningen er henvist til redegjørelse for foretakssstyring ihht rskl § 3-3b, så omfatter underskriften på årsberetningen også denne redegjørelsen.","rskl § 3-5 \n3. ledd"]
[{"$f":"+A15+1","v":4},"Er årsberetningen avgitt innenfor lovens frist?","rskl § 3-1",null,null,null,null,null,null,{"$f":"IF(F17<>\"\",\"Du har satt X for at forholdet ikke er avklart. Gi en nærmere foklaring i kommentarfeltet.\",\"\")","v":""}]
["Generelle krav"]
[null,"Ved rapportering av virksomhetsområder bør informasjonen i årsberetningen søkes organisert på samme måte som virksomhetsområdene er behandlet i årsregnskapet","NRS 16, \npkt 2.3"]
[{"$f":"+A17+1","v":5},"Gir årsberetningen et dekkende bilde av foretakets historiske og fremtidige utvikling, resultat og stilling?",null,null,null,null,null,null,null,{"$f":"IF(F20<>\"\",\"Du har satt X for at forholdet ikke er avklart. Gi en nærmere foklaring i kommentarfeltet.\",\"\")","v":""}]
[{"$f":"+A20+1","v":6},"Er årsberetningen skrevet så klart og presist som mulig, i et forståelig språk, og med en balansert omtale av positive og negative forhold i den grad det gis slik omtale?",null,null,null,null,null,null,null,""]
[7,"Er det konsistens i behandlingen av samme forhold i årsberetningen og årsregnskapet?",null,null,null,null,null,null,null,""]
[8,"Er det redegjort for forholdet dersom utviklingen ikke har vært i overensstemmelse med vesentlige utsagn i tidligere årsberetninger?",null,null,null,null,null,null,null,""]
[9,"Er det lagt vekt på vurderinger av kvalitativ art som forklarer forholdstall og annen tallbasert informasjon?",null,null,null,null,null,null,null,""]
[10,"Kan refererte regnskapsmessige tallstørrelser i årsberetningen gjenfinnes i årsregnskapet, eventuelt som avstemming i notene?",null,null,null,null,null,null,null,""]
[11,"For morselskap som utarbeider konsernregnskap, dekker årsberetningen også virksomheten i konsernet?","rskl § 3-3a, 12. ledd"]
[null,null,"NRS 16, \npkt 2.1",null,null,null,null,null,null,""]
["Virksomhetens art og tilholdssted",null,"rskl § 3-3a, 1.ledd\n"]
[null,null,"NRS 16, pkt 2.4 "]
[{"$f":"+A26+1","v":12},"Er det opplyst om arten av virksomheten? ",null,null,null,null,null,null,null,{"$f":"IF(F30<>\"\",\"Du har satt X for at forholdet ikke er avklart. Gi en nærmere foklaring i kommentarfeltet.\",\"\")","v":""}]
[{"$f":"+A30+1","v":13},"Dersom det er flere typer virksomhet, er det gitt opplysninger om hver virksomhet?",null,null,null,null,null,null,null,{"$f":"IF(F31<>\"\",\"Du har satt X for at forholdet ikke er avklart. Gi en nærmere foklaring i kommentarfeltet.\",\"\")","v":""}]
[{"$f":"+A31+1","v":14},"Er det opplyst hvor virksomheten drives? ",null,null,null,null,null,null,null,{"$f":"IF(F32<>\"\",\"Du har satt X for at forholdet ikke er avklart. Gi en nærmere foklaring i kommentarfeltet.\",\"\")","v":""}]
[{"$f":"+A32+1","v":15},"Ved flere filialer eller avdelinger, er det opplyst om hvor de ulike filialene / avdelingene drives? ",null,null,null,null,null,null,null,{"$f":"IF(F33<>\"\",\"Du har satt X for at forholdet ikke er avklart. Gi en nærmere foklaring i kommentarfeltet.\",\"\")","v":""}]
[null,"Dersom det kan være viktig for å forstå virksomhetens art og lokalisering oppfordres det i regnskapsstandarden til å gi en redegjørelse for foretakets forretningsidé og strategi.",null,null,null,null,null,null,null,{"$f":"IF(F34<>\"\",\"Du har satt X for at forholdet ikke er avklart. Gi en nærmere foklaring i kommentarfeltet.\",\"\")","v":""}]
["Rettvisende oversikt / redegjørelse for årsregnskapet",null,"rskl § 3-3a, 2. til 4. ledd\n"]
[null,null,"NRS 16, pkt 2.5"]
[null,"NRS 16 pkt 2.5 inneholder utdypende kommentarer og anbefalinger til kravene i rskl § 3-3a, 2. til 4. ledd vedrørende rettvisende oversikt over utvikling og resultat av foretakets virksomhet og stilling. "]
[{"$f":"+A33+1","v":16},"Er det gitt en rettvisende oversikt over utvikling og resultat av foretakets virksomhet og dets stilling?",null,null,null,null,null,null,null,{"$f":"IF(F38<>\"\",\"Du har satt X for at forholdet ikke er avklart. Gi en nærmere foklaring i kommentarfeltet.\",\"\")","v":""}]
[{"$f":"+A38+1","v":17},"Er sentrale risikoer og usikkerhetsfaktorer beskrevet?",null,null,null,null,null,null,null,{"$f":"IF(F39<>\"\",\"Du har satt X for at forholdet ikke er avklart. Gi en nærmere foklaring i kommentarfeltet.\",\"\")","v":""}]
[{"$f":"+A39+1","v":18},"Er oversikten en balansert og fyllestgjørende analyse av utvikling, resultat og stilling?",null,null,null,null,null,null,null,""]
[19,"I den grad det anses nødvendig for å forstå foretakets utvikling, resultat eller stilling, inneholder analysen både finansielle og, der det passer, ikke-finansielle sentrale og aktuelle resultatindikatorer, inkludert opplysninger om miljø- og personalsaker?",null,null,null,null,null,null,null,""]
[20,"Inneholder årsberetningen, der det passer, henvisninger og tilleggsforklaringer til beløp presentert i årsregnskapet?",null,null,null,null,null,null,null,""]
[21,"Er hovedfaktorene som påvirker virksomheten identifisert og forklart?",null,null,null,null,null,null,null,""]
[22,"Er uvanlige eller ekstraordinære forhold belyst?",null,null,null,null,null,null,null,""]
[23,"Er det opplyst om årsaken til og virkningen av vesentlige endringer i regnskapsprinsipper?",null,null,null,null,null,null,null,""]
[24,"Er det opplyst om viktige hendelser etter balansedagen, samt redegjort for hendelsenes faktiske eller potensielle virkning på resultat og stilling?",null,null,null,null,null,null,null,""]
[25,"Er endringer av overordnet og strategisk betydning, som for eksempel endring i satsningsområder og vesentlige strukturelle endringer, omtalt?",null,null,null,null,null,null,null,""]
[26,"Er forventede virkninger av slike endringer kommentert?",null,null,null,null,null,null,null,""]
[{"$f":"+A48+1","v":27},"Er det gitt en overordnet vurdering av total usikkerhet vedrørende foretakets regnskapsførte resultat og finansielle stilling?",null,null,null,null,null,null,null,""]
["Resultatregnskapet",null,"NRS 16, \npkt 2.5"]
[{"$f":"+A49+1","v":28},"Er viktige utviklingstrekk for virksomheten som er av betydning for å bedømme foretakets stilling og resultat drøftet, for eksempel:\no Endringer i markedsforhold\no Nye produkter og tjenester\no Endringer i markedsandeler eller markedsposisjoner\no Endringer i salgsmengde eller marginer\no Endringer i valutakurser og relevante prisforhold\no Restrukturering",null,null,null,null,null,null,null,{"$f":"IF(F51<>\"\",\"Du har satt X for at forholdet ikke er avklart. Gi en nærmere foklaring i kommentarfeltet.\",\"\")","v":""}]
[{"$f":"+A51+1","v":29},"Er det gitt opplysninger om eventuelle forsknings- og utviklingsaktiviteter?",null,null,null,null,null,null,null,{"$f":"IF(F52<>\"\",\"Du har satt X for at forholdet ikke er avklart. Gi en nærmere foklaring i kommentarfeltet.\",\"\")","v":""}]
[null,"Opplysningene om eventuelle forsknings- og utviklingsaktiviteter kan normalt begrense seg til en overordnet verbal beskrivelse. Ved kostnadsføring som prinsipp er det særlig aktuelt å gi en vurdering av hvordan årets resultat samsvarer med den underliggende verdiskapning i foretaket.",null,null,null,null,null,null,null,{"$f":"IF(F53<>\"\",\"Du har satt X for at forholdet ikke er avklart. Gi en nærmere foklaring i kommentarfeltet.\",\"\")","v":""}]
[{"$f":"+A52+1","v":30},"Er spesielle forhold som i betydelig grad kan ha påvirket årsregnskapet kommentert, for eksempel:\no Store enkelttransaksjoner\no Kjøp eller salg av foretak, ny virksomhet, avviklet virksomhet og andre viktige anskaffelser og avhendelser\no Realisering eller oppbygging av merverdier i for eksempel verdipapirer eller eiendom\no Særlige poster",null,null,null,null,null,null,null,{"$f":"IF(F54<>\"\",\"Du har satt X for at forholdet ikke er avklart. Gi en nærmere foklaring i kommentarfeltet.\",\"\")","v":""}]
[null,"Ved betydelige oppkjøp av virksomhet bør det redegjøres for i hvilken utstrekning forventningene til oppkjøpet er blitt realisert.\nDersom resultater som er medregnet ved kjøp av virksomhet med betydelig sesong-variasjoner ikke er indikative for virkningen på helårsbasis, bør dette opplyses.",null,null,null,null,null,null,null,{"$f":"IF(F55<>\"\",\"Du har satt X for at forholdet ikke er avklart. Gi en nærmere foklaring i kommentarfeltet.\",\"\")","v":""}]
["Balansen",null,"NRS 16, \npkt 2.5",null,null,null,null,{"$f":"IF(F56<>\"\",\"Du har satt X for at forholdet ikke er avklart. Gi en nærmere foklaring i kommentarfeltet.\",\"\")","v":""}]
[null,"Beskrivelsen bør være vurderende med bruk av tallmateriale i den grad det letter forståelsen, for eksempel finansielle forholdstall som egenkapitalandel og rentedekningsgrad.",null,null,null,null,null,null,null,{"$f":"IF(F57<>\"\",\"Du har satt X for at forholdet ikke er avklart. Gi en nærmere foklaring i kommentarfeltet.\",\"\")","v":""}]
[{"$f":"+A54+1","v":31},"Er likviditetssituasjonen på balansedagen gjennomgått?",null,null,null,null,null,null,null,{"$f":"IF(F58<>\"\",\"Du har satt X for at forholdet ikke er avklart. Gi en nærmere foklaring i kommentarfeltet.\",\"\")","v":""}]
[null,"Gjennomgang av likviditetssituasjonen kan omfatte\n- nivå på kortsiktig gjeld\n- sesongvariasjoner med angivelse av maksimalt lånebehov\n- forfallsstruktur på gjeld og kommitterte kredittlinjer"]
[null,"Restriksjoner for overføring av midler fra en del av virksomheten for å møte forpliktelser i andre deler av foretaket bør drøftes dersom dette anses for å være en vesentlig beskrankning for selskapet"]
["Kontantstrømoppstillingen",null,"NRS 16, \npkt 2.5"]
[{"$f":"+A58+1","v":32},"Dersom ikke tilsvarende informasjon gis gjennom øvrige deler av årsberetningen, er kontantstrømoppstillingen kommentert?",null,null,null,null,null,null,null,{"$f":"IF(F62<>\"\",\"Du har satt X for at forholdet ikke er avklart. Gi en nærmere foklaring i kommentarfeltet.\",\"\")","v":""}]
[{"$f":"+A62+1","v":33},"Er det redegjort for eventuelle vesentlige avvik mellom driftsresultat og kontantstrøm fra operasjonelle aktiviteter?",null,null,null,null,null,null,null,""]
[{"$f":"+A63+1","v":34},"Dersom man anser det for å være sentral informasjon for brukerne, er det informert om skillet mellom investeringer som er gjort for å opprettholde kapasiteten og investeringer som er gjort for å øke kapasiteten / lønnsomheten?",null,null,null,null,null,null,null,""]
[{"$f":"+A64+1","v":35},"Er det gitt en vurdering av sammenhengene mellom kontantstrømmene fra operasjonelle aktiviteter og investeringsaktiviteter, herunder evnen til egenfinansiering av investeringer?",null,null,null,null,null,null,null,""]
[{"$f":"+A65+1","v":36},"Er det redegjort for formålet med og virkningen av større finansielle transaksjoner som er gjennomført fram til avleggelsen av årsberetningen?",null,null,null,null,null,null,null,""]
["Foretakets utsikter",null,"rskl § 3-3a, 5. ledd\n",null,null,null,null,null,null,""]
[null,null,"NRS 16, pkt 2.6"]
[null,"NRS 16 pkt 2.6 inneholder utdypende kommentarer og anbefalinger til kravene i rskl § 3-3a, 5. ledd vedrørende redegjørelse for foretakets framtidige utsikter. ",null,null,null,null,null,null,null,{"$f":"IF(F69<>\"\",\"Du har satt X for at forholdet ikke er avklart. Gi en nærmere foklaring i kommentarfeltet.\",\"\")","v":""}]
[null,"\nRedegjørelse for fremtidsutsikter kan blant annet omhandle\n- rammebetingelser\n- makroøkonomiske forhold - renter, valutakurser, internasjonale varepriser\n- priskontrakter\n- investeringer/investeringsbehov fordelt på vedlikehold og ekspansjonsbehov\n- kostnadsføringer av utgifter som kan gi økonomiske fordeler på sikt\n- finansielle ressurser i forhold til framtidig kapitalbehov\n- framtidige miljøkrav",null,null,null,null,null,null,null,""]
[null,"\nDet må vurderes å gi kvalitative og kvantitative vurderinger av de viktigste faktorene som kan påvirke framtidig resultat.",null,null,null,null,null,null,null,""]
[null,"Det forventes at store foretak gir en fyldigere fremstilling av foretakets utsikter enn andre foretak",null,null,null,null,null,null,null,""]
[{"$f":"+A66+1","v":37},"Er det gitt er redegjørelse som gir grunnlag for å vurdere foretakets forventede økonomiske utvikling?",null,null,null,null,null,null,null,""]
[{"$f":"+A73+1","v":38},"Er det gitt en vurdering av foretakets forventede økonomiske utvikling på et overordnet nivå, med angivelse av de viktigste forutsetninger som er lagt til grunn?",null,null,null,null,null,null,null,""]
[{"$f":"+A74+1","v":39},"Har styret presisert at det normalt er betydelig usikkerhet knyttet til vurderinger av fremtidige forhold?",null,null,null,null,null,null,null,""]
[{"$f":"+A75+1","v":40},"Er faktorer som kan ha betydning for fremtidige resultater drøftet?",null,null,null,null,null,null,null,""]
[{"$f":"+A76+1","v":41},"Omfatter drøftelsen en identifisering av de vesentligste risiki for virksomheten?",null,null,null,null,null,null,null,""]
[null,"Det må vurderes å gi kvalitative og kvantitative vurderinger av de viktigste faktorene som kan påvirke framtidig resultat.",null,null,null,null,null,null,null,""]
[{"$f":"+A77+1","v":42},"Dersom det i tidligere beretninger er gitt opplysninger om fremtidig utvikling, er det informert om årets resultat er i samsvar med forventningen, og er eventuelle avvik begrunnet? ",null,null,null,null,null,null,null,""]
["Finansiell risiko",null,"rskl § 3-3a, 6. ledd\n",null,null,null,null,null,null,""]
[null,null,"NRS 16, pkt 2.7"]
[{"$f":"+A79+1","v":43},"Er det gitt opplysninger om finansiell risiko som er av betydning for å bedømme foretakets eiendeler, gjeld, finansiell stilling og resultat? ",null,null,null,null,null,null,null,{"$f":"IF(F82<>\"\",\"Du har satt X for at forholdet ikke er avklart. Gi en nærmere foklaring i kommentarfeltet.\",\"\")","v":""}]
[{"$f":"+A82+1","v":44},"Omfatter opplysningene mål og strategier som er fastsatt for styring av finansiell risiko, herunder strategien for sikring av hver hovedtype av planlagte transaksjoner der sikringsvurdering er benyttet?  ",null,null,null,null,null,null,null,""]
[null,"Det bør opplyses på hvilke områder foretaket velger å bruke finansielle instrumenter, for eksempel\n• renter\n• valuta\n• råvarer\n• egenkapitalbaserte instrumenter\n\nDet bør videre opplyses om hvilke typer instrumenter som brukes, for eksempel\n• terminkontrakter\n• opsjoner",null,null,null,null,null,null,null,""]
[{"$f":"+A83+1","v":45},"Er det redegjort for foretakets eksponering mot markedsrisiko, kredittrisiko og likviditetsrisiko?  ",null,null,null,null,null,null,null,""]
[{"$f":"+A85+1","v":46},"Dersom det foreligger brudd på vilkår og/eller forutsetninger for lån (covenants), eller det forventes at dette vil skje i neste regnskapsperiode, er det opplyst om hvilke spesifikke tiltak som vil bli eller har vært gjennomført for å rette opp forholdet?  ",null,null,null,null,null,null,null,""]
["Fortsatt drift",null,"rskl § 3-3a, 7.ledd\n\n",null,null,null,null,null,null,""]
[null,null,"rskl § 4-5"]
[null,null,"NRS 16, pkt 2.8"]
[null,"Fortsatt drift forutsetningen skal omhandles i årsberetningen, og vil dekke tre prinsipielt forskjellige situasjoner: \n• Utvilsom fortsatt drift\n• Usikker fortsatt drift\n• Avvikling\n\nStandarden gir utdypende veiledning til årsberetningens innhold ved både usikkerhet om fortsatt drift og avvikling. Det er også gitt nærmere veiledning om årsberetningens innhold dersom styrets handleplikt ved tap av egenkapital har inntrådt ihht aksjeloven \n§ 3-5.",null,null,null,null,null,null,null,{"$f":"IF(F90<>\"\",\"Du har satt X for at forholdet ikke er avklart. Gi en nærmere foklaring i kommentarfeltet.\",\"\")","v":""}]
[{"$f":"+A86+1","v":47},"Utvilsom fortsatt drift: Er det bekreftet at forutsetningen for fortsatt drift er til stede? ","rskl § 3-3a, 7. ledd nr 1",null,null,null,null,null,null,{"$f":"IF(F91<>\"\",\"Du har satt X for at forholdet ikke er avklart. Gi en nærmere foklaring i kommentarfeltet.\",\"\")","v":""}]
[null,null,"NRS 16, pkt 2.8"]
[{"$f":"+A91+1","v":48},"Usikker fortsatt drift: er det redegjort for usikkerheten om fortsatt drift? ","rskl § 3-3a, 7. ledd nr 2",null,null,null,null,null,null,{"$f":"IF(F93<>\"\",\"Du har satt X for at forholdet ikke er avklart. Gi en nærmere foklaring i kommentarfeltet.\",\"\")","v":""}]
[null,null,"NRS 16, pkt 2.8"]
[{"$f":"+A93+1","v":49},"Ved stor usikkerhet og tvil om fortsatt drift, er det opplyst om større poster i årsregnskapet som vil påvirkes dersom forutsetningen om fortsatt drift ikke legges til grunn for vurderingene?","NRS 16, \npkt 2.8",null,null,null,null,null,null,{"$f":"IF(F95<>\"\",\"Du har satt X for at forholdet ikke er avklart. Gi en nærmere foklaring i kommentarfeltet.\",\"\")","v":""}]
[{"$f":"+A95+1","v":50},"Er virkningene, dersom det er mulig, kvantifisert?","NRS 16, \npkt 2.8",null,null,null,null,null,null,{"$f":"IF(F96<>\"\",\"Du har satt X for at forholdet ikke er avklart. Gi en nærmere foklaring i kommentarfeltet.\",\"\")","v":""}]
[{"$f":"+A96+1","v":51},"Sannsynlig avvikling: Er det redegjort for hvordan virkelig verdi ved avvikling er beregnet dersom dette ikke fremgår i note til årsregnskapet? ","rskl § 3-3a, 7. ledd nr 4",null,null,null,null,null,null,{"$f":"IF(F97<>\"\",\"Du har satt X for at forholdet ikke er avklart. Gi en nærmere foklaring i kommentarfeltet.\",\"\")","v":""}]
[null,null,"NRS 16, pkt 2.8"]
[{"$f":"+A97+1","v":52},"Dersom styrets handleplikt etter asl/asal § 3-5 er inntrådt, er det opplyst om det er besluttet eller satt i verk tiltak for å sikre selskapets drift, eventuelt å oppløse selskapet?","rskl § 3-3a, 7. ledd nr 3",null,null,null,null,null,null,{"$f":"IF(F99<>\"\",\"Du har satt X for at forholdet ikke er avklart. Gi en nærmere foklaring i kommentarfeltet.\",\"\")","v":""}]
[null,null,"NRS 16, pkt 2.8"]
["Resultatdisponering og utbyttegrunnlag",null,"Rskl § 3-3a, 8. ledd\n",null,null,null,null,null,null,{"$f":"IF(F101<>\"\",\"Du har satt X for at forholdet ikke er avklart. Gi en nærmere foklaring i kommentarfeltet.\",\"\")","v":""}]
[null,null,"NRS 16, pkt. 2.9"]
[{"$f":"+A99+1","v":53},"Dersom resultatregnskapet, noter eller evt. oppstilling av endring i egenkapitalen ikke inneholder forslag til anvendelse av overskudd eller dekning av tap, fremgår forslaget av årsberetningen? ",null,null,null,null,null,null,null,{"$f":"IF(F103<>\"\",\"Du har satt X for at forholdet ikke er avklart. Gi en nærmere foklaring i kommentarfeltet.\",\"\")","v":""}]
[null,"Forslaget bør begrunnes i forhold til eventuelle inntjeningsmål, utbyttepolitikk og mål for kapitalstruktur",null,null,null,null,null,null,null,{"$f":"IF(F104<>\"\",\"Du har satt X for at forholdet ikke er avklart. Gi en nærmere foklaring i kommentarfeltet.\",\"\")","v":""}]
["Opplysninger om miljø og sosiale forhold",null,"NRS 16 \npkt 2.10",null,null,null,null,null,null,{"$f":"IF(F105<>\"\",\"Du har satt X for at forholdet ikke er avklart. Gi en nærmere foklaring i kommentarfeltet.\",\"\")","v":""}]
[null,"Opplysninger om miljø omfatter arbeidsmiljø, likestilling, diskriminering og tilgjengelighet samt ytre miljø. "]
[null,"Når selskapet utarbeider egen miljørapport, kan detaljeringsgraden i årsberetningen reduseres noe, forutsatt at miljørapporten inneholder detaljer minst tilsvarende lovkravene.",null,null,null,null,null,null,null,{"$f":"IF(F107<>\"\",\"Du har satt X for at forholdet ikke er avklart. Gi en nærmere foklaring i kommentarfeltet.\",\"\")","v":""}]
[null,"Årsberetningen for morselskap kan ha en lavere detaljeringsgrad for konsernets forhold (hvert enkelt selskap må tilfredsstille lovkravene).",null,null,null,null,null,null,null,{"$f":"IF(F108<>\"\",\"Du har satt X for at forholdet ikke er avklart. Gi en nærmere foklaring i kommentarfeltet.\",\"\")","v":""}]
[null,"Store foretak skal i henhold til § 3-3c avgi redegjørelse om samfunnsansvar, denne kan inntas i et eget dokument utenfor årsberetningen. Selskapet kan da velge å ta inn de påkrevde opplysningene om arbeidsmiljø og ytre miljø direkte i den separate redegjørelsen istedenfor i årsberetningen. Dette gjelder imidlertid ikke for redegjørelser avgitt etter rammeverk for Global Compact, samt konsernrapporter hvor foretaket er omfattet som datterselskap. "]
[{"$f":"+A103+1","v":54},"Dersom foretaket har valgt å ta inn opplysningen om arbeidsmiljø og ytre miljø i separat redegjørelse om samfunnsansvar, er det opplyst særskilt om dette i årsberetning?"]
["Arbeidsmiljø",null,"rskl § 3-3a, 9. ledd\n",null,null,null,null,null,null,{"$f":"IF(F111<>\"\",\"Du har satt X for at forholdet ikke er avklart. Gi en nærmere foklaring i kommentarfeltet.\",\"\")","v":""}]
[null,null,"NRS 16, pkt 2.10"]
[null,"Standarden gir utdypende veiledning til årsberetningens innhold vedrørende omtale av arbeidsmiljø, spesielt vedrørende sykefravær, skader og ulykker. ",null,null,null,null,null,null,null,{"$f":"IF(F113<>\"\",\"Du har satt X for at forholdet ikke er avklart. Gi en nærmere foklaring i kommentarfeltet.\",\"\")","v":""}]
[{"$f":"+A110+1","v":55},"Er det gitt opplysninger om arbeidsmiljøet? ",null,null,null,null,null,null,null,""]
[{"$f":"+A114+1","v":56},"Er det gitt en oversikt over eventuelle iverksatte tiltak som har betydning for arbeidsmiljøet? ",null,null,null,null,null,null,null,""]
[57,"Er det opplyst om eventuelle skader, herunder både personskader og materielle skader?  ",null,null,null,null,null,null,null,""]
[58,"Er det opplyst om skader som gjelder både ulykker og andre skader, for eksempel slitasje- og belastningsskader?  ",null,null,null,null,null,null,null,""]
[59,"Er det opplyst om eventuelle ulykker, herunder både personskader og materielle skader?  ",null,null,null,null,null,null,null,""]
[60,"Dersom foretaket har minst 5 årsverk, er det opplyst om sykefravær?",null,null,null,null,null,null,null,""]
[61,"Dersom foretaket ikke har ansatte, og således ikke noe arbeidsmiljø, er dette opplyst?",null,null,null,null,null,null,null,""]
["Likestilling og diskriminering",null,null,null,null,null,null,null,null,""]
[null,null,"Lov om likestilling og forbud mot diskriminering § 26 a)"]
[null,null,"NRS 16, pkt 2.10"]
[null,"Følgende arbeidsgivere har utvidet aktivitetsplikt etter likestillings- og diskrimineringsloven § 26, 2. ledd:\n- alle offentlige virksomheter, uavhengig av størrelse, \n- private virksomheter som jevnlig sysselsetter mer enn 50 ansatte,\n- private virksomheter som jevnlig sysselsetter mellom 20 og 50 ansatte, når en av arbeidslivets parter i virksomheten krever det."]
[null,"For arbeidsgivere med utvidet aktivitetsplikt etter likestillings- og diskrimineringsloven § 26, 2. ledd (se definisjon ovenfor):"]
[{"$f":"+A120+1","v":62},"Er det redegjort for den faktiske tilstanden når det gjelder kjønnslikestilling i virksomheten? ",null,null,null,null,null,null,null,{"$f":"IF(F126<>\"\",\"Du har satt X for at forholdet ikke er avklart. Gi en nærmere foklaring i kommentarfeltet.\",\"\")","v":""}]
[null,"Det er varslet at redegjørelsesplikten på likestillingsområdet skal standardiseres via forskrift, slik forskrift er foreløpig ikke vedtatt. "]
[{"$f":"+A126+1","v":63},"Er det redegjort for hva foretaket gjør for å oppfylle aktivitetsplikten etter likestillings- og diskrimineringsloven § 26?",null,null,null,null,null,null,null,{"$f":"IF(F128<>\"\",\"Du har satt X for at forholdet ikke er avklart. Gi en nærmere foklaring i kommentarfeltet.\",\"\")","v":""}]
[{"$f":"+A128+1","v":64},"Er redegjørelsen utformet slik at enkeltansattes personlige forhold ikke røpes?"]
[65,"Fremgår resultatene av lønnskartleggingen av redegjørelsen i anonymisert form?"]
[null,"Redegjørelsen om likestilling og oppfyllelse av aktivitetsplikten skal gis i årsberetningen eller i annet offentlig tilgjengelig dokument. Dersom redegjørelsen gis i annet offentlig tilgjengelig dokument, og foretaket har en plikt til å levere årsberetning, skal det i årsberetningen opplyses hvor dokumentet finnes offentlig tilgjengelig.",null,null,null,null,null,null,null,{"$f":"IF(F131<>\"\",\"Du har satt X for at forholdet ikke er avklart. Gi en nærmere foklaring i kommentarfeltet.\",\"\")","v":""}]
["Ytre miljø",null,"rskl § 3-3a, 10. ledd",null,null,null,null,null,null,{"$f":"IF(F132<>\"\",\"Du har satt X for at forholdet ikke er avklart. Gi en nærmere foklaring i kommentarfeltet.\",\"\")","v":""}]
[null,null,"NRS 16, \npkt 2.10"]
[null,"Det skal gis opplysninger om forhold ved virksomheten, herunder dens innsatsfaktorer og produkter, som kan medføre en ikke ubetydelig påvirkning av det ytre miljø. \nFormålet med redegjørelsen er å gi grunnlag for å vurdere foretakets virksomhet i en miljømessig sammenheng, og å gi et bilde av selskapets miljømessige forpliktelser og utviklingsmuligheter.\nRegnskapsstandarden gir ytterligere veiledning vedrørende årsberetningens innhold vedrørende påvirking på det ytre miljø.\n\nDet bør redegjøres for hvilke ambisjoner og mål foretaket har på miljøområdet og hvilke miljøkrav som forventes fra myndigheter, kunder og leverandører.\nDet bør også redegjøres for hvilke miljøforhold som er viktigst for foretaket.",null,null,null,null,null,null,null,{"$f":"IF(F134<>\"\",\"Du har satt X for at forholdet ikke er avklart. Gi en nærmere foklaring i kommentarfeltet.\",\"\")","v":""}]
[{"$f":"+A130+1","v":66},"Er det opplyst om forhold som kan medføre en ikke ubetydelig påvirkning av det ytre miljø?",null,null,null,null,null,null,null,{"$f":"IF(F135<>\"\",\"Du har satt X for at forholdet ikke er avklart. Gi en nærmere foklaring i kommentarfeltet.\",\"\")","v":""}]
[{"$f":"+A135+1","v":67},"Er det redegjort for hvilke miljøvirkninger de enkelte forhold gir eller kan gi?",null,null,null,null,null,null,null,{"$f":"IF(F136<>\"\",\"Du har satt X for at forholdet ikke er avklart. Gi en nærmere foklaring i kommentarfeltet.\",\"\")","v":""}]
[{"$f":"+A136+1","v":68},"Er det redegjort for hvilke tiltak, både forebyggende og opprettende, som er eller planleggs iverksatt for å forhindre eller redusere negative miljøvirkninger? ",null,null,null,null,null,null,null,{"$f":"IF(F137<>\"\",\"Du har satt X for at forholdet ikke er avklart. Gi en nærmere foklaring i kommentarfeltet.\",\"\")","v":""}]
[{"$f":"+A137+1","v":69},"Dersom foretaket ikke forurenser det ytre miljø i særlig grad, er det spesifikt opplyst at man ikke forurenser det ytre miljø?",null,null,null,null,null,null,null,{"$f":"IF(F138<>\"\",\"Du har satt X for at forholdet ikke er avklart. Gi en nærmere foklaring i kommentarfeltet.\",\"\")","v":""}]
["Forsikring for styrets medlemmer og daglig leder"]
[{"$f":"+A138+1","v":70},"Er det gitt opplysninger om det er tegnet forsikring for styrets medlemmer og daglig leder for deres mulige ansvar overfor foretaket og tredjepersoner, og i tilfelle om forsikringsdekningen?","rskl § 3-3a 11. ledd"]
[null,"Styreansvarsforsikringer varierer i innhold og kompleksitet. Å opplyse om\nforsikringsdekningen betyr ikke at det er krav om å opplyse om alle spesifikke vilkår,\nmen hva som er kjernen i den forsikringsdekningen som er tegnet.","NRS 16 pkt 2.11"]
[{"$f":"+A140+1","v":71},"Hvis det ikke er tegnet forsikring for styremedlemmenes og daglig leders mulige ansvar overfor foretaket og tredjepersoner, er det opplyst om dette?"]
["Redegjørelse etter åpenhetsloven"]
[{"$f":"+A142+1","v":72},"Dersom selskapet er pliktig til å avgi redegjørelse etter åpenhetsloven, er det opplyst i årsberetningen om hvor redegjørelsen er tilgjengelig?","åpenhetsloven § 5"]
[null,"For krav til innholdet i redegjørelsen, se punkter under redegjørelse om samfunnsansvar"]
["Rapportering om betalinger til myndigheter m.v. (land-for-land rapportering)",null,"rskl  3-3d"]
[null,"Regnskapspliktige som driver virksomhet innen utvinningsindustrien skal utarbeide og offentliggjøre en årlig rapport med opplysninger om sine betalinger til myndigheter på land- og prosjektnivå. Det samme gjelder skogdrift innen ikke-beplantet skog. "]
[null,"Rapporteringsplikten gjelder foretak som som har regnskapsplikt etter rskl § 1-2 nr 1, 3, 4, 5, 6 eller nr 13 og som på balansedagen tilfredsstiller minst to av de tre følgende vilkår:","Forskrift om land-for-land-rapportering F20.12.2013 nr 1682"]
[null,"• årlig salgsinntekt mer enn 320 millioner kroner,"]
[null,"• balansesum mer enn 160 millioner kroner,"]
[null,"• gjennomsnittlig antall ansatte gjennom regnskapsåret mer enn 250."]
[null,"Reglene gjelder også for foretak som er regnskapspliktige etter rskl § 1-2 nr. 2, eller er utsteder med Norge som hjemstat etter vphl § 5-4 annet til fjerde ledd. "]
[null,"Rapporteringsplikten gjelder også foretak som er utsteder eller er regnskapspliktig og enten alene eller sammen med datterselskapene tilfredsstiller størrelseskriteriene nevnt ovenfor, som har ett eller flere datterselskaper som driver virksomhet innen utvinningsindustrien eller skogsdrift innen ikke-beplantet skog."]
[null,"Rapporteringsplikten gjelder ikke for regnskapspliktige som utarbeider en årlig rapport etter tilsvarende utenlandsk regelverk. Plikten gjelder heller ikke dersom tilstrekkelige opplysninger er tatt inn i morselskapets årlige rapport om konsernets betalinger til myndigheter, utarbeidet som konsernrapportering. "]
[{"$f":"+A144+1","v":73},"For foretak som kommer inn under rapporteringskravene om betalinger til myndigheter mv., er det i årsberetningen opplyst om hvor rapporten er offentliggjort?","rskl § 3-3d"]
[null,"Inneholder rapporten minst følgende opplysninger om betalinger til myndigheter:\n(kravene gjelder ikke for betalinger som tilsvarer mindre enn kr 800.000, som gjøres enkeltvis eller som flere sammenhørende betalinger innenfor samme regnskapsår)","Forskrift om land-for-land-rapportering F20.12.2013 nr 1682"]
[{"$f":"+A155+1","v":74},"Den samlede betaling til hver myndighet i løpet av regnskapsåret, fordelt per land og fordelt per type betaling (typer betaling er definert i forskriften § 3 nr. 5 bokstav a-h)?","Forskriften § 4"]
[{"$f":"+A157+1","v":75},"Betalinger knyttet til et prosjekt, rapportert per prosjekt og per type betaling som nevnt i § 3 nr. 5 bokstav a-h?"]
[{"$f":"+A158+1","v":76},"Når det er plikt til å gi opplysninger om betalinger til myndigheter, inneholder rapporten også opplysninger om foretakets investeringer, salgsinntekt, produksjonsvolum og kostnader, fordelt på de enkelte land hvor foretaket driver virksomhet?"]
[77,"Er det i rapporten også opplyst om foretakets rentekostnad til andre foretak i samme konsern som er hjemmehørende i andre jurisdiksjoner enn foretaket?"]
[78,"Er opplysningene i de to foregående spørsmålene så vidt mulig hentet fra årsregnskapet, og er eventuelle forskjeller forklart?"]
[null,"Beløp som er utbetalt av foretaket for forpliktelser som pålegges på enhetsnivå, kan rapporteres på enhetsnivå i stedet for på prosjektnivå."]
[{"$f":"+A161+1","v":79},"For betalinger in natura til en myndighet, er både verdi og, når relevant, mengde, oppgitt?"]
[{"$f":"+A163+1","v":80},"Er det gitt en forklaring om hvordan verdien er fastsatt?"]
[null,"Konsernrapportering:\nForetak som er utsteder eller er regnskapspliktig og enten alene eller sammen med datterselskapene tilfredsstiller størrelseskriteriene nevnt ovenfor, som har ett eller flere datterselskaper som driver virksomhet innen utvinningsindustrien eller skogsdrift innen ikke-beplantet skog, skal utarbeide en konsernrapport med konsolidert oppstilling hvor de foretakene i konsernet som driver virksomhet innen utvinningsindustrien eller skogdrift innen ikke-beplantet skog, vises som en enhet.","Forskriften § 5"]
[null,"Viser konsernrapporten konsolidert oppstilling av følgende opplysninger:"]
[{"$f":"+A164+1","v":81},"Den samlede betaling til hver myndighet i løpet av regnskapsåret, fordelt per land og fordelt per type betaling (typer betaling er definert i forskriften § 3 nr. 5 bokstav a-h)?"]
[{"$f":"+A167+1","v":82},"Betalinger knyttet til et prosjekt, rapportert per prosjekt og per type betaling som nevnt i § 3 nr. 5 bokstav a-h?"]
[{"$f":"+A168+1","v":83},"Når det er plikt til å gi opplysninger om betalinger til myndigheter, inneholder rapporten også opplysninger om foretakets investeringer, salgsinntekt, produksjonsvolum og kostnader, fordelt på de enkelte land hvor foretaket driver virksomhet?"]
[null,"Datterselskap kan utelates fra den konsoliderte oppstillingen etter første ledd dersom\na.\talvorlige langvarige restriksjoner hindrer morselskapet i vesentlig grad i å utøve sine rettigheter over datterselskapet,\nb.\tde opplysninger som er nødvendige for å utarbeide den konsoliderte rapporten i samsvar med denne forskrift, i svært sjeldne tilfeller ikke kan innhentes innen rimelig tid eller uten uforholdsmessig store kostnader, eller\nc.\taksjer eller andeler i datterselskapet eies midlertidig og skal klassifiseres som omløpsmidler etter regnskapsloven § 5-1,\nog tilsvarende unntak også gjøres gjeldende for konsernregnskapet."]
[{"$f":"+A169+1","v":84},"Dersom unntak beskrevet ovenfor er benyttet, er det gitt en nærmere forklaring på hvorfor unntaket er benyttet, hvilket datterselskap det gjelder, samt hvilke tiltak som er iverksatt for å forhindre at tilsvarende unntak benyttes for senere rapportering?"]
[null,"Inneholder konsernrapporten, uavhengig av om det er plikt til å gi opplysninger om betalinger til myndigheter, i en separat del minst inneholde følgende opplysninger om hvert av foretakets datterselskap:"]
[{"$f":"+A171+1","v":85},"a.\thvor datterselskapet er hjemmehørende,"]
[{"$f":"+A173+1","v":86},"b.\tantall ansatte,"]
[{"$f":"+A174+1","v":87},"c.\trentekostnad til andre foretak i samme konsern som er hjemmehørende i andre jurisdiksjoner enn datterselskapet,"]
[88,"d.\ten kortfattet beskrivelse av datterselskapets aktiviteter,"]
[89,"e.\tnetto omsetning, inkludert omsetning med foretak i samme konsern,"]
[90,"f.\tresultat før skatt,"]
[91,"g.\tinntektsskatt i regnskapsåret som beregnet av den skattepliktiges overskudd eller underskudd i regnskapsåret,"]
[92,"h.\tinntektsskatt som er betalt i løpet av det aktuelle regnskapsåret av datterselskapet, "]
[93,"i.\takkumulert fortjeneste"]
[94,"Er opplysningene så vidt mulig hentet fra årsregnskapet, og er eventuelle forskjeller forklart?"]
[null,"Offentliggjøring: \nRapport på både selskaps- og konsernnivå skal offentliggjøres på den rapporteringspliktiges hjemmesider på internett, og skal være tilgjengelig i minst 5 år. ","Forskriften § 6"]
["TILLEGGSKRAV FOR STORE FORETAK",null,null,null,null,null,null,null,null,{"$f":"IF(F184<>\"\",\"Du har satt X for at forholdet ikke er avklart. Gi en nærmere foklaring i kommentarfeltet.\",\"\")","v":""}]
[null,"For regnskapspliktige som er utstedere med verdipapirer notert på regulert marked, er det gitt følgende opplysninger som nevnt i verdipapirhandelloven § 5-8 a:","rskl § 3-3a 13. ledd"]
[{"$f":"+A182+1","v":95},"• en beskrivelse av vedtektsbestemmelser som begrenser rettet til å omsette selskapets aksjer,","vphl § 5-8 a"]
[{"$f":"+A186+1","v":96},"• en beskrivelse av hvem som utøver rettighetene til aksjer i eventuelle ansatteaksjeordninger når myndigheten ikke utøves direkte av de ansatte som er omfattet av ordningen,"]
[{"$f":"+A187+1","v":97},"• avtaler mellom aksjeeiere selskapet er kjent med som begrenser mulighetene til å omsette eller utøve stemmerett for aksjer,"]
[{"$f":"+A188+1","v":98},"• vesentlige avtaler selskapet er part i hvis vilkår trer i kraft, endres eller opphører som følge av et overtakelsestilbud, samt en redegjørelse for vilkårene. \nI den grad det vil medføre urimelig forretningsmessig ulempe at en avtale blir kjent kan foretaket la være å opplyse om avtalen. Unntaket kommer ikke til anvendelse dersom selskapet er forpliktet til å offentliggjøre opplysninger om avtalen i henhold til annen lovgivning."]
["Redegjørelse om foretaksstyring",null,"rskl § 3-3b"]
[null,null,"NUES (Norsk Anbefaling Eierstyring og Selskapsledelse)"]
[null,"Regnskapspliktige som er utstedere med Norge som hjemstat etter verdipapirhandelloven § 5-4 og med verdipapirer notert på regulert marked, skal i årsberetningen eller i dokument som det er henvist til i årsberetningen, redegjøre for sine prinsipper og praksis vedrørende foretaksstyring. Plikten til å redegjøre for foretaksstyring gjelder tilsvarende for ASA hvis aksjer bare er notert på en autorisert markedsplass utenfor EØS-området","NUES kap 1 Redegjørelse for eierstyring og selskapsledelse"]
[null,"EU-kommisjonen har utgitt to ikke-bindende retningslinjer som gir veiledning til\nkravene til redegjørelse om samfunnsansvar og redegjørelse om foretaksstyring: "]
[null,"• «Guidelines on non-financial reporting» (publisert 2017) "]
[null,"• «Guidelines on non-financial reporting: Supplement on reporting climaterelated information» (publisert 2019) "]
[null,"Inneholder redegjørelsen for prinsipper og praksis vedrørende foretaksstyring minst følgende opplysninger:"]
[{"$f":"+A189+1","v":99},"• en beskrivelse av hovedelementene i foretakets, og for regnskapspliktige som utarbeider konsernregnskap eventuelt også konsernets, systemer for internkontroll og risikostyring knyttet til regnskapsrapporteringsprosessen","NUES kap 10 Risikostyring og intern kontroll"]
[{"$f":"+A197+1","v":100},"• vedtektsbestemmelser som regulerer oppnevning og utskifting av styremedlemmer","NUES kap 7 Valgkomité"]
[{"$f":"+A198+1","v":101},"• vedtektsbestemmelser og fullmakter som gir styret adgang til å beslutte at foretaket skal kjøpe tilbake eller utstede egne aksjer eller egenkapitalbevis","NUES kap 4 Likebehandling av aksjeeiere og transaksjoner med nærstående"]
[{"$f":"+A199+1","v":102},"• en beskrivelse av foretakets retningslinjer for likestilling og mangfold med hensyn til for eksempel alder, kjønn og utdannings- og yrkesbakgrunn for sammensetning av styre, ledelses- og kontrollorganer og deres eventuelle underutvalg."]
[{"$f":"+A200+1","v":103},"• mål for retningslinjene for likestilling og mangfold, hvordan de har blitt gjennomført og virkningen av dem i rapporteringsperioden"]
[{"$f":"+A201+1","v":104},"• hvis foretaket ikke har retningslinjer for likestilling og mangfold; en begrunnelse for dette."]
[null,"Følgende krav gjelder ikke for regnskapspliktige som ikke har utstedt aksjer eller egenkapitalbevis som er notert på et regulert marked eller på en multilateral handelsfasilitet, jf vphl § 2-7 femte ledd:"]
[{"$f":"+A202+1","v":105},"• en angivelse av anbefalinger og regelverk om foretaksstyring som foretaket er omfattet av eller for øvrig velger å følge"]
[{"$f":"+A204+1","v":106},"• opplysninger om hvor anbefalinger og regelverk som nevnt i spørsmål 76 er offentlig tilgjengelige"]
[{"$f":"+A205+1","v":107},"• en begrunnelse for eventuelle avvik fra anbefalinger og regelverk som nevnt i spørsmål 76","NUES kap 1 Redegjørelse for eierstyring og selskapsledelse"]
[{"$f":"+A206+1","v":108},"• vedtektsbestemmelser som helt eller delvis utvider eller fraviker bestemmelser i allmennaksjeloven kapittel 5","NUES kap 6 \nGeneralforsamling"]
[{"$f":"+A207+1","v":109},"• sammensetningen til styre, bedriftsforsamling, representantskap og kontrollkomite; eventuelle arbeidsutvalg for disse organene, samt en beskrivelse av hovedelementene i gjeldende instrukser og retningslinjer for organenes og eventuelle utvalgs arbeid","NUES kap 8 Styret, sammensetning og uavhengighet\n"]
[null,null,"NUES kap 9 Styrets arbeid"]
[null,null,"NUES kap 13 Informasjon og kommunikasjon"]
["Redegjørelse om samfunnsansvar",null,"rskl § 3-3c"]
[null,"Store foretak skal redegjøre for hva foretaket gjør for å ivareta sitt samfunnsansvar. Redegjørelsen skal gis i årsberetningen eller i annet offentig tilgjengelig dokument. ","rskl § 3-3c, 1. og 8. ledd"]
[null,"EU-kommisjonen har utgitt to ikke-bindende retningslinjer som gir veiledning til\nkravene til redegjørelse om samfunnsansvar og redegjørelse om foretaksstyring: "]
[null,"• «Guidelines on non-financial reporting» (publisert 2017) "]
[null,"• «Guidelines on non-financial reporting: Supplement on reporting climaterelated information» (publisert 2019) "]
[{"$f":"+A208+1","v":110},"Dersom redegjørelsen er gitt i annet offentlig tilgjengelig dokument, er det opplyst i årsberetningen hvor dokumentet finnes offentlig tilgjengelig?","rskl § 3-3c, 8. ledd"]
[{"$f":"+A216+1","v":111},"Er redegjørelse gitt i annet offentlig tilgjengelig dokument gitt senest samtidig med avgivelse av årsberetningen?","rskl § 3-3c, 8. ledd"]
[null,"Kravet gjelder ikke for datterselskap, dersom morselskapet har avgitt en redegjørelse som angitt i årsberetning for konsernet som også omfatter datterselskapet. ","rskl § 3-3c, 7. ledd"]
[{"$f":"+A217+1","v":112},"Dersom foretaket har benyttet seg av unntaksregelen for datterselskaper som beskrevet over, har foretaket opplyst om dette i sin årsberetning og angitt hvor redegjørelsen finnes offentlig tilgjengelig?","rskl § 3-3c, 7. ledd"]
[null,"Redegjørelsens innhold:"]
[{"$f":"+A219+1","v":113},"Omhandler redegjørelsen om samfunnsansvar minst\n• miljø, \n• sosiale forhold,\n• arbeidsmiljø, \n• likestilling og ikke-diskriminering, \n• overholdelse av menneskerettigheter,\n• bekjempelse av korrupsjon og bestikkelser?\n","rskl § 3-3c, 1. ledd"]
[{"$f":"+A221+1","v":114},"Er opplysningene gitt i det omfang som er nødvendig for å forstå foretakets utvikling, resultat, stilling og konsekvenser av foretakets virksomhet?"]
[{"$f":"+A222+1","v":115},"Inneholder redegjørelsen minst\n• en beskrivelse av foretakets forretningsmodell,\n• en beskrivelse av foretakets retningslinjer for håndtering av forhold som nevnt i første ledd første punktum, herunder gjennomførte aktsomhetsvurderinger,\n• virkninger av retningslinjene, \n• de vesentlige risikoene knyttet til foretakets virksomhet som omhandler forhold som nevnt i første ledd første punktum. Der det er relevant og vesentlig, skal det opplyses om forretningsforbindelser, produkter eller tjenester som kan forventes å ha negativ påvirkning på forhold som nevnt i første ledd første punktum, samt hvordan foretaket håndterer disse risikoene, \n• resultatindikatorer som er relevante for foretakets virksomhet. "]
[{"$f":"+A223+1","v":116},"Dersom foretaket ikke har retningslinjer for håndtering av forhold som nevnt i første ledd, er dette begrunnet?","rskl § 3-3c, 3. ledd"]
[{"$f":"+A224+1","v":117},"Inneholder redegjørelsen, ved behov, henvisninger og tilleggsforklaringer til størrelser som er oppført i årsregnskapet?","rskl § 3-3c, 4. ledd"]
[null,"Opplysninger om fremtidig utvikling eller forhold som det forhandles om, kan utelates fra redegjørelsen dersom styret mener at offentliggjøring vil være til alvorlig skade for foretakets forretningsmessige situasjon, forutsatt at en slik utelatelse ikke hindrer en rimelig og balansert forståelse av foretakets utvikling, resultat, stilling og konsekvenser av dets virksomhet."]
[null,"Redegjørelse om samfunnsansvar kan utarbeides i samsvar med et rammeverk for slik rapportering fastsatt nasjonalt, av Den europeiske union eller av et annet organ. "]
[{"$f":"+A225+1","v":118},"Dersom utarbeidelsen er i samsvar med et slikt rammeverk, er det opplyst om hvilket rammeverk som er benyttet?","rskl § 3-3c, 6. ledd"]
[null,"Redegjørelsen etter åpenhetsloven"]
[null,"Etter åpenhetsloven § 5, 3. ledd kan redegjørelsen etter åpenhetsloven inngå i redegjørelsen om samfunnsansvar. Kravene til  redegjørelse etter åpenhetsloven følger derfor nedenfor.\n\nInneholder redegjørelsen minst:","Åpenhetsloven § 5"]
[{"$f":"+A228+1","v":119},"\t• en generell beskrivelse av virksomhetens organisering, driftsområde, retningslinjer og rutiner for å håndtere faktiske og potensielle negative konsekvenser for grunnleggende menneskerettigheter og anstendige arbeidsforhold"]
[{"$f":"+A231+1","v":120},"\t• opplysninger om faktiske negative konsekvenser og vesentlig risiko for negative konsekvenser som virksomheten har avdekket gjennom sine aktsomhetsvurderinger"]
[{"$f":"+A232+1","v":121},"• opplysninger om tiltak som virksomheten har iverksatt eller planlegger å iverksette for å stanse faktiske negative konsekvenser eller begrense vesentlig risiko for negative konsekvenser, og resultatet eller forventede resultater av disse tiltakene."]
[null,"Informasjonen kan utelates dersom den gjelder opplysninger om noens personlige forhold, eller opplysninger om tekniske innretninger og fremgangsmåter eller andre drifts- eller forretningsforhold som det vil være av konkurransemessig betydning å hemmeligholde av hensyn til den opplysningene angår. Dette unntaket gjelder imidlertid ikke konsekvenser for grunnleggende menneskerettigheter som virksomheten er kjent med. "]
[null,"Opplysningskravene til redegjørelsen omfatter ikke informasjon som er gradert etter sikkerhetsloven eller beskyttet etter åndsverkloven. "]
[null,"Taksonomirapportering"]
[null,"Foretak som nevnt i direktiv (EU) 2013/34 artikkel 19a og 29a, skal gi informasjon som beskrevet i artikkel 8 i taksonomiforordningen, jf. lov om offentliggjøring av bærekraftsinformasjon i finanssektoren og et rammeverk for bærekraftige investeringer § 3.","rskl § 3-3c, 10. ledd"]
[{"$f":"+A233+1","v":122},"Dersom selskapet er underlagt kravene om taksonomirapportering, har selskapet gitt tilstrekkelig informasjon i forhold til kravene i artikkel 8 i taksonomiforordningen?"]
["Ytelser, lån og sikkerhetsstillelse til ledende personer i store foretak"]
[{"$f":"+A238+1","v":123},"Ytelser, lån og sikkerhetsstillelse til ledende personer i store foretak: Regnskapsloven § 7-31b stiller krav om at ytelser til ledende personer i store foretak skal opplyses i note til regnskapet. Disse opplysningene, samt opplysningene som kreves etter § 7-32 første ledd kan i stedet for i note gis i en rapport om godtgjørelse til ledende personer. Rapporten skal da inngå i årsberetningen. ","rskl \n§ 7-31b"]
["Tilleggssjekkliste for banker, finansieringsforetak med mer"]
[null,"Tilleggssjekklisten gjelder for banker, finansieringsforetak og morselskap til slike som er pålagt å følge Forskrift om årsregnskap m.m. for banker, finansieringsforetak og morselskap for slike (Årsregnf. 1998-12-16 nr.1240).  - med senere endringer"]
[null,"Er det i årsberetningen gitt følgende opplysninger i tillegg til det som følger av regnskapsloven § 3-3a?: ","Forskrift om årsregnskap for banker m v § 2-2"]
[{"$f":"+A240+1","v":124},"Dersom institusjonens kapitaldekning er under gjeldende minimumskrav, er det gjort oppmerksom på dette og redegjort for tiltak som er truffet for å sikre institusjonens drift?",null,null,null,null,null,null,null,null,null,"Bank"]
[{"$f":"+A244+1","v":125},"Er det redegjort for risiko knyttet til utlån og garantiansvar, herunder endring i kredittrisikoprofil gjennom regnskapsåret?",null,null,null,null,null,null,null,null,null,"Bank"]
[{"$f":"+A245+1","v":126},"Er det redegjort for institusjonens samlede gjennomsnittlige årlige forventede tap på utlån og garantier gjennom en av institusjonen nærmere angitt periode og faktiske tap i regnskapsåret? Det skal også redegjøres for betydningen av fremtidige endringer i kredittrisiko.  ",null,null,null,null,null,null,null,null,null,"Bank"]
["Tilleggsregler for livsforsikringsforetak og skadeforsikringsforetak "]
[null,"Tilleggssjekklisten gjelder for livsforsikringsforetak og skadeforsikringsforetak som er pålagt å følge forskrift om årsregnskap for livsforsikringsforetak F18.12.2015 nr 1824 eller forskrift om årsregnskap for skadeforsikringsforetak 18.12.2015 nr 1775."]
[{"$f":"+A246+1","v":127},"Dersom foretaket ikke oppfyller gjeldende krav til ansvarlig kapital eller kapitalen for øvrig ikke er forsvarlig sett i forhold til virksomheten, har styret redegjort for dette og uttalt seg om tiltak som er truffet eller som skal treffes for å sikre selskapets drift?","Forskrift om årsregnskap for skadeforsikringsforetak § 2-3",null,null,null,null,null,null,null,null,"Forsikring"]
[null,null,"Forskrift om årsregnskap for livsforsikringsforetak § 2-3"]
[{"$f":"+A249+1","v":128},"Er det gitt en beskrivelse av de finansielle risikoer som selskapet er, og gjennom regnskapsåret har vært, eksponert for? Styret skal redegjøre for de mål og strategier som er fastsatt for risikostyring, og sammenhengen mellom disse og selskapets overordnede mål og strategier. Det skal gis en overordnet beskrivelse av selskapets risikostyring og organiseringen av denne. ","Forskrift om årsregnskap for skadeforsikringsforetak § 2-3",null,null,null,null,null,null,null,null,"Forsikring"]
[null,null,"Forskrift om årsregnskap for livsforsikringsforetak § 2-3"]
[{"$f":"+A251+1","v":129},"Dersom livsforsikringsselskapet benytter tilleggsavsetningene til å dekke renteforpliktelser på forsikringskontrakter, har styret redegjort for dette? ","Forskrift om årsregnskap for livsforsikringsforetak § 2-3",null,null,null,null,null,null,null,null,"Forsikring"]
["Tilleggsregler for verdipapirfond"]
[null,"Tilleggssjekklisten gjelder for verdipapirfond som er pålagt å følge forskrift om årsregnskap m.m. for verdipapirfond (årsregnf 1999-05-28 nr.654).","Forskrift om årsregnskap for verdipapirfond § 2-2"]
[null,"I årsberetningen skal det gis følgende opplysninger i tillegg til det som følger av regnskapsloven § 3-3a: "]
[{"$f":"+A253+1","v":130},"Er det opplyst om hvilket forvaltningsselskap som er forretningsfører og hvem som er depotmottaker for verdipapirfondet?  ",null,null,null,null,null,null,null,null,null,"Verdipapirfond"]
[{"$f":"+A257+1","v":131},"Er det redegjort for den finansielle risikoen som har vært knyttet til virksomheten i regnskapsåret. Det skal redegjøres for verdipapirfondets risikostyring og organisering av denne?  ",null,null,null,null,null,null,null,null,null,"Verdipapirfond"]
[{"$f":"+A258+1","v":132},"Er det gitt informasjon om verdiutviklingen for en andel i perioden? Verdiutviklingen skal kommenteres særskilt i forhold til verdipapirfondets risikoprofil.  ",null,null,null,null,null,null,null,null,null,"Verdipapirfond"]
[{"$f":"+A259+1","v":133},"Er det redegjort for om det har vært ekstraordinært store innløsninger i perioden og håndteringen av disse? Dersom ekstraordinært store innløsninger har hatt innvirkning på andelenes verdiutvikling skal dette kommenteres.  ",null,null,null,null,null,null,null,null,null,"Verdipapirfond"]
[{"$f":"+A260+1","v":134},"Er opplysninger om forutsetningen om fortsatt drift etter regnskapsloven § 3-3a syvende ledd nr. 2-4, også gitt om forvaltningsselskapet for verdipapirfondet?",null,null,null,null,null,null,null,null,null,"Verdipapirfond"]
["Tilleggsregler for verdipapirforetak med mer"]
[null,"Tilleggssjekklisten gjelder for verdipapirforetak og andre som er pålagt å følge forskrift om årsregnskap m.m. for verdipapirforetak (årsregnf. 1999-08-23 nr.957). ","Forskrift om årsregnskap for verdipapirforetak § 2-2"]
[null,"I årsberetningen skal det gis følgende opplysninger i tillegg til det som følger av regnskapsloven § 3-3a: "]
[{"$f":"+A261+1","v":135},"Dersom foretakets kapitaldekning er under gjeldende minimumskrav, er det gjort oppmerksom på dette og redegjort for tiltak som er truffet for å sikre foretakets drift?  ",null,null,null,null,null,null,null,null,null,"Verdipapirforetak"]
["Tilleggsregler for pensjonsforetak med mer"]
[null,"Tilleggssjekklisten gjelder for pensjonsforetak og andre som er pålagt å følge forskrift om årsregnskap m.m. for pensjonsforetak. \nRegnskapslovens bestemmelser om små foretak får ikke anvendelse. ","Forskrift 20.12.2011 om årsregnskap for pensjonsforetak"]
[{"$f":"+A265+1","v":136}," Dersom pensjonsforetakets solvensmarginkapital ikke oppfyller gjeldende minimumskrav eller for øvrig ikke er forsvarlig sett i forhold til virksomheten, har styret redegjort for dette og uttalt seg om tiltak som er truffet eller som skal treffes for å sikre pensjonsforetakets drift?",null,null,null,null,null,null,null,null,null,"Pensjonskasse"]
[{"$f":"+A268+1","v":137},"Er det gitt en beskrivelse av de finansielle risikoer som pensjonsforetaket er, og gjennom regnskapsåret har vært, eksponert for? ",null,null,null,null,null,null,null,null,null,"Pensjonskasse"]
[{"$f":"+A269+1","v":138},"Har styret redegjort for de mål og strategier som er fastsatt for risikostyring, og sammenhengen mellom disse og pensjonsforetakets overordnede mål og strategier?",null,null,null,null,null,null,null,null,null,"Pensjonskasse"]
[{"$f":"+A270+1","v":139},"Er det gitt en overordnet beskrivelse av pensjonsforetakets risikostyring og organiseringen av denne?",null,null,null,null,null,null,null,null,null,"Pensjonskasse"]
["Tilleggsregler for borettslag"]
[null,"Tilleggssjekklisten gjelder for borettslag som er pålagt å følge forskrift om årsregnskap og årsberetning for borettslag (årsregnf 2005-06-30 nr.745).  Tilleggsopplysninger i noter til årsregnskapet skal gis i samsvar med regnskapsloven kapittel 7 og minimum inneholde punktene som er listet opp nedenfor. Opplysningene kan utelates når de ikke er av betydning for å bedømme den regnskapspliktiges stilling og resultat. "]
[{"$f":"+A271+1","v":140},"I tilknytning til opplysninger om forutsetningen om fortsatt drift etter regnskapsloven § 3-3, er det opplyst særskilt dersom disponible midler er negative og om tiltak som er iverksatt og vurdert i denne forbindelse?","Forskrift om årsregnskap og årsberetning for borettslag § 6",null,null,null,null,null,null,null,null,"Borettslag"]

{"sheet":"Sheet1","index":4,"n_rows":0,"n_cols":0,"rows_kept":0,"cut":false,"hidden":true,"merged":[]}

{"sheet":"Ikke besvart","index":5,"n_rows":72,"n_cols":4,"rows_kept":72,"cut":false,"hidden":true,"merged":[]}
["Ikke besvart",{"$f":"'Sjekkliste for utfylling'!B2","v":0},{"$f":"'Sjekkliste for utfylling'!B3","v":2023},"Kommentarer"]
[1,"Er årsberetningen på norsk?"]
[2,"Er årsberetningen underskrevet av samtlige styremedlemmer og eventuelt av daglig leder, alternativt av deltakerne eller medlemmene hvis foretaket ikke har styre eller daglig leder?"]
[3,"Dersom en som skal underskrive har innvendinger mot årsregnskapet, har vedkommende underskrevet med påtegnet forbehold og gitt nærmere redegjørelse i selve årsberetningen?"]
[4,"Er årsberetningen avgitt innenfor lovens frist?"]
[5,"Gir årsberetningen et dekkende bilde av foretakets historiske og fremtidige utvikling, resultat og stilling?"]
[6,"Er årsberetningen skrevet så klart og presist som mulig, i et forståelig språk, og med en balansert omtale av positive og negative forhold i den grad det gis slik omtale?"]
[7,"Er det konsistens i behandlingen av samme forhold i årsberetningen og årsregnskapet?"]
[8,"Er det redegjort for forholdet dersom utviklingen ikke har vært i overensstemmelse med vesentlige utsagn i tidligere årsberetninger?"]
[9,"Er det lagt vekt på vurderinger av kvalitativ art som forklarer forholdstall og annen tallbasert informasjon?"]
[10,"Kan refererte regnskapsmessige tallstørrelser i årsberetningen gjenfinnes i årsregnskapet, eventuelt som avstemming i notene?"]
[11,"For morselskap som utarbeider konsernregnskap, dekker årsberetningen også virksomheten i konsernet?"]
[12,"Er det opplyst om arten av virksomheten? "]
[13,"Dersom det er flere typer virksomhet, er det gitt opplysninger om hver virksomhet?"]
[14,"Er det opplyst hvor virksomheten drives? "]
[15,"Ved flere filialer eller avdelinger, er det opplyst om hvor de ulike filialene / avdelingene drives? "]
[16,"Er det gitt en rettvisende oversikt over utvikling og resultat av foretakets virksomhet og dets stilling?"]
[17,"Er sentrale risikoer og usikkerhetsfaktorer beskrevet?"]
[18,"Er oversikten en balansert og fyllestgjørende analyse av utvikling, resultat og stilling?"]
[19,"I den grad det anses nødvendig for å forstå foretakets utvikling, resultat eller stilling, inneholder analysen både finansielle og, der det passer, ikke-finansielle sentrale og aktuelle resultatindikatorer, inkludert opplysninger om miljø- og personalsaker?"]
[20,"Inneholder årsberetningen, der det passer, henvisninger og tilleggsforklaringer til beløp presentert i årsregnskapet?"]
[21,"Er hovedfaktorene som påvirker virksomheten identifisert og forklart?"]
[22,"Er uvanlige eller ekstraordinære forhold belyst?"]
[23,"Er det opplyst om årsaken til og virkningen av vesentlige endringer i regnskapsprinsipper?"]
[24,"Er det opplyst om viktige hendelser etter balansedagen, samt redegjort for hendelsenes faktiske eller potensielle virkning på resultat og stilling?"]
[25,"Er endringer av overordnet og strategisk betydning, som for eksempel endring i satsningsområder og vesentlige strukturelle endringer, omtalt?"]
[26,"Er forventede virkninger av slike endringer kommentert?"]
[27,"Er det gitt en overordnet vurdering av total usikkerhet vedrørende foretakets regnskapsførte resultat og finansielle stilling?"]
[28,"Er viktige utviklingstrekk for virksomheten som er av betydning for å bedømme foretakets stilling og resultat drøftet, for eksempel:\no Endringer i markedsforhold\no Nye produkter og tjenester\no Endringer i markedsandeler eller markedsposisjoner\no Endringer i salgsmengde eller marginer\no Endringer i valutakurser og relevante prisforhold\no Restrukturering"]
[29,"Er det gitt opplysninger om eventuelle forsknings- og utviklingsaktiviteter?"]
[30,"Er spesielle forhold som i betydelig grad kan ha påvirket årsregnskapet kommentert, for eksempel:\no Store enkelttransaksjoner\no Kjøp eller salg av foretak, ny virksomhet, avviklet virksomhet og andre viktige anskaffelser og avhendelser\no Realisering eller oppbygging av merverdier i for eksempel verdipapirer eller eiendom\no Særlige poster"]
[31,"Er likviditetssituasjonen på balansedagen gjennomgått?"]
[32,"Dersom ikke tilsvarende informasjon gis gjennom øvrige deler av årsberetningen, er kontantstrømoppstillingen kommentert?"]
[33,"Er det redegjort for eventuelle vesentlige avvik mellom driftsresultat og kontantstrøm fra operasjonelle aktiviteter?"]
[34,"Dersom man anser det for å være sentral informasjon for brukerne, er det informert om skillet mellom investeringer som er gjort for å opprettholde kapasiteten og investeringer som er gjort for å øke kapasiteten / lønnsomheten?"]
[35,"Er det gitt en vurdering av sammenhengene mellom kontantstrømmene fra operasjonelle aktiviteter og investeringsaktiviteter, herunder evnen til egenfinansiering av investeringer?"]
[36,"Er det redegjort for formålet med og virkningen av større finansielle transaksjoner som er gjennomført fram til avleggelsen av årsberetningen?"]
[37,"Er det gitt er redegjørelse som gir grunnlag for å vurdere foretakets forventede økonomiske utvikling?"]
[38,"Er det gitt en vurdering av foretakets forventede økonomiske utvikling på et overordnet nivå, med angivelse av de viktigste forutsetninger som er lagt til grunn?"]
[39,"Har styret presisert at det normalt er betydelig usikkerhet knyttet til vurderinger av fremtidige forhold?"]
[40,"Er faktorer som kan ha betydning for fremtidige resultater drøftet?"]
[41,"Omfatter drøftelsen en identifisering av de vesentligste risiki for virksomheten?"]
[42,"Dersom det i tidligere beretninger er gitt opplysninger om fremtidig utvikling, er det informert om årets resultat er i samsvar med forventningen, og er eventuelle avvik begrunnet? "]
[43,"Er det gitt opplysninger om finansiell risiko som er av betydning for å bedømme foretakets eiendeler, gjeld, finansiell stilling og resultat? "]
[44,"Omfatter opplysningene mål og strategier som er fastsatt for styring av finansiell risiko, herunder strategien for sikring av hver hovedtype av planlagte transaksjoner der sikringsvurdering er benyttet?  "]
[45,"Er det redegjort for foretakets eksponering mot markedsrisiko, kredittrisiko og likviditetsrisiko?  "]
[46,"Dersom det foreligger brudd på vilkår og/eller forutsetninger for lån (covenants), eller det forventes at dette vil skje i neste regnskapsperiode, er det opplyst om hvilke spesifikke tiltak som vil bli eller har vært gjennomført for å rette opp forholdet?  "]
[47,"Utvilsom fortsatt drift: Er det bekreftet at forutsetningen for fortsatt drift er til stede? "]
[48,"Usikker fortsatt drift: er det redegjort for usikkerheten om fortsatt drift? "]
[49,"Ved stor usikkerhet og tvil om fortsatt drift, er det opplyst om større poster i årsregnskapet som vil påvirkes dersom forutsetningen om fortsatt drift ikke legges til grunn for vurderingene?"]
[50,"Er virkningene, dersom det er mulig, kvantifisert?"]
[51,"Sannsynlig avvikling: Er det redegjort for hvordan virkelig verdi ved avvikling er beregnet dersom dette ikke fremgår i note til årsregnskapet? "]
[52,"Dersom styrets handleplikt etter asl/asal § 3-5 er inntrådt, er det opplyst om det er besluttet eller satt i verk tiltak for å sikre selskapets drift, eventuelt å oppløse selskapet?"]
[54,"Dersom foretaket har valgt å ta inn opplysningen om arbeidsmiljø og ytre miljø i separat redegjørelse om samfunnsansvar, er det opplyst særskilt om dette i årsberetning?"]
[55,"Er det gitt opplysninger om arbeidsmiljøet? "]
[56,"Er det gitt en oversikt over eventuelle iverksatte tiltak som har betydning for arbeidsmiljøet? "]
[57,"Er det opplyst om eventuelle skader, herunder både personskader og materielle skader?  "]
[58,"Er det opplyst om skader som gjelder både ulykker og andre skader, for eksempel slitasje- og belastningsskader?  "]
[59,"Er det opplyst om eventuelle ulykker, herunder både personskader og materielle skader?  "]
[60,"Dersom foretaket har minst 5 årsverk, er det opplyst om sykefravær?"]
[61,"Dersom foretaket ikke har ansatte, og således ikke noe arbeidsmiljø, er dette opplyst?"]
[62,"Er det redegjort for den faktiske tilstanden når det gjelder kjønnslikestilling i virksomheten? "]
[63,"Er det redegjort for hva foretaket gjør for å oppfylle aktivitetsplikten etter likestillings- og diskrimineringsloven § 26?"]
[64,"Er redegjørelsen utformet slik at enkeltansattes personlige forhold ikke røpes?"]
[65,"Fremgår resultatene av lønnskartleggingen av redegjørelsen i anonymisert form?"]
[66,"Er det opplyst om forhold som kan medføre en ikke ubetydelig påvirkning av det ytre miljø?"]
[67,"Er det redegjort for hvilke miljøvirkninger de enkelte forhold gir eller kan gi?"]
[68,"Er det redegjort for hvilke tiltak, både forebyggende og opprettende, som er eller planleggs iverksatt for å forhindre eller redusere negative miljøvirkninger? "]
[69,"Dersom foretaket ikke forurenser det ytre miljø i særlig grad, er det spesifikt opplyst at man ikke forurenser det ytre miljø?"]
[70,"Er det gitt opplysninger om det er tegnet forsikring for styrets medlemmer og daglig leder for deres mulige ansvar overfor foretaket og tredjepersoner, og i tilfelle om forsikringsdekningen?"]
[71,"Hvis det ikke er tegnet forsikring for styremedlemmenes og daglig leders mulige ansvar overfor foretaket og tredjepersoner, er det opplyst om dette?"]
[72,"Dersom selskapet er pliktig til å avgi redegjørelse etter åpenhetsloven, er det opplyst i årsberetningen om hvor redegjørelsen er tilgjengelig?"]

{"sheet":"JA-svar","index":6,"n_rows":131,"n_cols":8,"rows_kept":131,"cut":false,"hidden":true,"merged":[]}
[null,null,{"$f":"COUNTIF(C2:C3,\"=1\")-D1","v":0},{"$f":"SUM(D2:D327)","v":0},"JA-svar",{"$f":"'Sjekkliste for utfylling'!B2","v":0},{"$f":"'Sjekkliste for utfylling'!B3","v":2023},{"$f":"'Sjekkliste for utfylling'!C3","v":0}]
[{"$f":"'Sjekkliste for utfylling'!A274","v":140},{"$f":"IF('Sjekkliste for utfylling'!E274<>\"\",1,0)","v":0},{"$f":"SUM(B2:B2)","v":0},null,{"$f":"IF($C2=1,'Sjekkliste for utfylling'!A274,\"\")","v":""},{"$f":"IF($C2=1,'Sjekkliste for utfylling'!B274,\"\")","v":""},null,{"$f":"IF(C2=1,'Sjekkliste for utfylling'!H274,\" \")","v":" "}]
[{"$f":"'Sjekkliste for utfylling'!A227","v":0},{"$f":"IF('Sjekkliste for utfylling'!E227<>\"\",1,0)","v":0},0,null,{"$f":"IF($C3=1,'Sjekkliste for utfylling'!A227,\"\")","v":""},{"$f":"IF($C3=1,'Sjekkliste for utfylling'!B227,\"\")","v":""},null,{"$f":"IF(C3=1,'Sjekkliste for utfylling'!H227,\" \")","v":" "}]
[{"$f":"'Sjekkliste for utfylling'!A13","v":1},{"$f":"IF('Sjekkliste for utfylling'!E13<>\"\",1,0)","v":0},0,null,{"$f":"IF($C4=1,'Sjekkliste for utfylling'!A13,\"\")","v":""},{"$f":"IF($C4=1,'Sjekkliste for utfylling'!B13,\"\")","v":""},null,{"$f":"IF(C4=1,'Sjekkliste for utfylling'!H13,\" \")","v":" "}]
[{"$f":"'Sjekkliste for utfylling'!A14","v":2},{"$f":"IF('Sjekkliste for utfylling'!E14<>\"\",1,0)","v":0},0,null,{"$f":"IF($C5=1,'Sjekkliste for utfylling'!A14,\"\")","v":""},{"$f":"IF($C5=1,'Sjekkliste for utfylling'!B14,\"\")","v":""},null,{"$f":"IF(C5=1,'Sjekkliste for utfylling'!H14,\" \")","v":" "}]
[{"$f":"'Sjekkliste for utfylling'!A15","v":3},{"$f":"IF('Sjekkliste for utfylling'!E15<>\"\",1,0)","v":0},0,null,{"$f":"IF($C6=1,'Sjekkliste for utfylling'!A15,\"\")","v":""},{"$f":"IF($C6=1,'Sjekkliste for utfylling'!B15,\"\")","v":""},null,{"$f":"IF(C6=1,'Sjekkliste for utfylling'!H15,\" \")","v":" "}]
[{"$f":"'Sjekkliste for utfylling'!A17","v":4},{"$f":"IF('Sjekkliste for utfylling'!E17<>\"\",1,0)","v":0},0,null,{"$f":"IF($C7=1,'Sjekkliste for utfylling'!A17,\"\")","v":""},{"$f":"IF($C7=1,'Sjekkliste for utfylling'!B17,\"\")","v":""},null,{"$f":"IF(C7=1,'Sjekkliste for utfylling'!H17,\" \")","v":" "}]
[{"$f":"'Sjekkliste for utfylling'!A20","v":5},{"$f":"IF('Sjekkliste for utfylling'!E20<>\"\",1,0)","v":0},0,null,{"$f":"IF($C8=1,'Sjekkliste for utfylling'!A20,\"\")","v":""},{"$f":"IF($C8=1,'Sjekkliste for utfylling'!B20,\"\")","v":""},null,{"$f":"IF(C8=1,'Sjekkliste for utfylling'!H20,\" \")","v":" "}]
[{"$f":"'Sjekkliste for utfylling'!A21","v":6},{"$f":"IF('Sjekkliste for utfylling'!E21<>\"\",1,0)","v":0},0,null,{"$f":"IF($C9=1,'Sjekkliste for utfylling'!A21,\"\")","v":""},{"$f":"IF($C9=1,'Sjekkliste for utfylling'!B21,\"\")","v":""},null,{"$f":"IF(C9=1,'Sjekkliste for utfylling'!H21,\" \")","v":" "}]
[{"$f":"'Sjekkliste for utfylling'!A22","v":7},{"$f":"IF('Sjekkliste for utfylling'!E22<>\"\",1,0)","v":0},0,null,{"$f":"IF($C10=1,'Sjekkliste for utfylling'!A22,\"\")","v":""},{"$f":"IF($C10=1,'Sjekkliste for utfylling'!B22,\"\")","v":""},null,{"$f":"IF(C10=1,'Sjekkliste for utfylling'!H22,\" \")","v":" "}]
[{"$f":"'Sjekkliste for utfylling'!A23","v":8},{"$f":"IF('Sjekkliste for utfylling'!E23<>\"\",1,0)","v":0},0,null,{"$f":"IF($C11=1,'Sjekkliste for utfylling'!A23,\"\")","v":""},{"$f":"IF($C11=1,'Sjekkliste for utfylling'!B23,\"\")","v":""},null,{"$f":"IF(C11=1,'Sjekkliste for utfylling'!H23,\" \")","v":" "}]
[{"$f":"'Sjekkliste for utfylling'!A24","v":9},{"$f":"IF('Sjekkliste for utfylling'!E24<>\"\",1,0)","v":0},0,null,{"$f":"IF($C12=1,'Sjekkliste for utfylling'!A24,\"\")","v":""},{"$f":"IF($C12=1,'Sjekkliste for utfylling'!B24,\"\")","v":""},null,{"$f":"IF(C12=1,'Sjekkliste for utfylling'!H24,\" \")","v":" "}]
[{"$f":"'Sjekkliste for utfylling'!A25","v":10},{"$f":"IF('Sjekkliste for utfylling'!E25<>\"\",1,0)","v":0},0,null,{"$f":"IF($C13=1,'Sjekkliste for utfylling'!A25,\"\")","v":""},{"$f":"IF($C13=1,'Sjekkliste for utfylling'!B25,\"\")","v":""},null,{"$f":"IF(C13=1,'Sjekkliste for utfylling'!H25,\" \")","v":" "}]
[{"$f":"'Sjekkliste for utfylling'!A26","v":11},{"$f":"IF('Sjekkliste for utfylling'!E26<>\"\",1,0)","v":0},0,null,{"$f":"IF($C14=1,'Sjekkliste for utfylling'!A26,\"\")","v":""},{"$f":"IF($C14=1,'Sjekkliste for utfylling'!B26,\"\")","v":""},null,{"$f":"IF(C14=1,'Sjekkliste for utfylling'!H26,\" \")","v":" "}]
[{"$f":"'Sjekkliste for utfylling'!A30","v":12},{"$f":"IF('Sjekkliste for utfylling'!E30<>\"\",1,0)","v":0},0,null,{"$f":"IF($C15=1,'Sjekkliste for utfylling'!A30,\"\")","v":""},{"$f":"IF($C15=1,'Sjekkliste for utfylling'!B30,\"\")","v":""},null,{"$f":"IF(C15=1,'Sjekkliste for utfylling'!H30,\" \")","v":" "}]
[{"$f":"'Sjekkliste for utfylling'!A31","v":13},{"$f":"IF('Sjekkliste for utfylling'!E31<>\"\",1,0)","v":0},0,null,{"$f":"IF($C16=1,'Sjekkliste for utfylling'!A31,\"\")","v":""},{"$f":"IF($C16=1,'Sjekkliste for utfylling'!B31,\"\")","v":""},null,{"$f":"IF(C16=1,'Sjekkliste for utfylling'!H31,\" \")","v":" "}]
[{"$f":"'Sjekkliste for utfylling'!A32","v":14},{"$f":"IF('Sjekkliste for utfylling'!E32<>\"\",1,0)","v":0},0,null,{"$f":"IF($C17=1,'Sjekkliste for utfylling'!A32,\"\")","v":""},{"$f":"IF($C17=1,'Sjekkliste for utfylling'!B32,\"\")","v":""},null,{"$f":"IF(C17=1,'Sjekkliste for utfylling'!H32,\" \")","v":" "}]
[{"$f":"'Sjekkliste for utfylling'!A33","v":15},{"$f":"IF('Sjekkliste for utfylling'!E33<>\"\",1,0)","v":0},0,null,{"$f":"IF($C18=1,'Sjekkliste for utfylling'!A33,\"\")","v":""},{"$f":"IF($C18=1,'Sjekkliste for utfylling'!B33,\"\")","v":""},null,{"$f":"IF(C18=1,'Sjekkliste for utfylling'!H33,\" \")","v":" "}]
[{"$f":"'Sjekkliste for utfylling'!A38","v":16},{"$f":"IF('Sjekkliste for utfylling'!E38<>\"\",1,0)","v":0},0,null,{"$f":"IF($C19=1,'Sjekkliste for utfylling'!A38,\"\")","v":""},{"$f":"IF($C19=1,'Sjekkliste for utfylling'!B38,\"\")","v":""},null,{"$f":"IF(C19=1,'Sjekkliste for utfylling'!H38,\" \")","v":" "}]
[{"$f":"'Sjekkliste for utfylling'!A39","v":17},{"$f":"IF('Sjekkliste for utfylling'!E39<>\"\",1,0)","v":0},0,null,{"$f":"IF($C20=1,'Sjekkliste for utfylling'!A39,\"\")","v":""},{"$f":"IF($C20=1,'Sjekkliste for utfylling'!B39,\"\")","v":""},null,{"$f":"IF(C20=1,'Sjekkliste for utfylling'!H39,\" \")","v":" "}]
[{"$f":"'Sjekkliste for utfylling'!A40","v":18},{"$f":"IF('Sjekkliste for utfylling'!E40<>\"\",1,0)","v":0},0,null,{"$f":"IF($C21=1,'Sjekkliste for utfylling'!A40,\"\")","v":""},{"$f":"IF($C21=1,'Sjekkliste for utfylling'!B40,\"\")","v":""},null,{"$f":"IF(C21=1,'Sjekkliste for utfylling'!H40,\" \")","v":" "}]
[{"$f":"'Sjekkliste for utfylling'!A41","v":19},{"$f":"IF('Sjekkliste for utfylling'!E41<>\"\",1,0)","v":0},0,null,{"$f":"IF($C22=1,'Sjekkliste for utfylling'!A41,\"\")","v":""},{"$f":"IF($C22=1,'Sjekkliste for utfylling'!B41,\"\")","v":""},null,{"$f":"IF(C22=1,'Sjekkliste for utfylling'!H41,\" \")","v":" "}]
[{"$f":"'Sjekkliste for utfylling'!A42","v":20},{"$f":"IF('Sjekkliste for utfylling'!E42<>\"\",1,0)","v":0},0,null,{"$f":"IF($C23=1,'Sjekkliste for utfylling'!A42,\"\")","v":""},{"$f":"IF($C23=1,'Sjekkliste for utfylling'!B42,\"\")","v":""},null,{"$f":"IF(C23=1,'Sjekkliste for utfylling'!H42,\" \")","v":" "}]
[{"$f":"'Sjekkliste for utfylling'!A43","v":21},{"$f":"IF('Sjekkliste for utfylling'!E43<>\"\",1,0)","v":0},0,null,{"$f":"IF($C24=1,'Sjekkliste for utfylling'!A43,\"\")","v":""},{"$f":"IF($C24=1,'Sjekkliste for utfylling'!B43,\"\")","v":""},null,{"$f":"IF(C24=1,'Sjekkliste for utfylling'!H43,\" \")","v":" "}]
[{"$f":"'Sjekkliste for utfylling'!A44","v":22},{"$f":"IF('Sjekkliste for utfylling'!E44<>\"\",1,0)","v":0},0,null,{"$f":"IF($C25=1,'Sjekkliste for utfylling'!A44,\"\")","v":""},{"$f":"IF($C25=1,'Sjekkliste for utfylling'!B44,\"\")","v":""},null,{"$f":"IF(C25=1,'Sjekkliste for utfylling'!H44,\" \")","v":" "}]
[{"$f":"'Sjekkliste for utfylling'!A45","v":23},{"$f":"IF('Sjekkliste for utfylling'!E45<>\"\",1,0)","v":0},0,null,{"$f":"IF($C26=1,'Sjekkliste for utfylling'!A45,\"\")","v":""},{"$f":"IF($C26=1,'Sjekkliste for utfylling'!B45,\"\")","v":""},null,{"$f":"IF(C26=1,'Sjekkliste for utfylling'!H45,\" \")","v":" "}]
[{"$f":"'Sjekkliste for utfylling'!A46","v":24},{"$f":"IF('Sjekkliste for utfylling'!E46<>\"\",1,0)","v":0},0,null,{"$f":"IF($C27=1,'Sjekkliste for utfylling'!A46,\"\")","v":""},{"$f":"IF($C27=1,'Sjekkliste for utfylling'!B46,\"\")","v":""},null,{"$f":"IF(C27=1,'Sjekkliste for utfylling'!H46,\" \")","v":" "}]
[{"$f":"'Sjekkliste for utfylling'!A47","v":25},{"$f":"IF('Sjekkliste for utfylling'!E47<>\"\",1,0)","v":0},0,null,{"$f":"IF($C28=1,'Sjekkliste for utfylling'!A47,\"\")","v":""},{"$f":"IF($C28=1,'Sjekkliste for utfylling'!B47,\"\")","v":""},null,{"$f":"IF(C28=1,'Sjekkliste for utfylling'!H47,\" \")","v":" "}]
[{"$f":"'Sjekkliste for utfylling'!A48","v":26},{"$f":"IF('Sjekkliste for utfylling'!E48<>\"\",1,0)","v":0},0,null,{"$f":"IF($C29=1,'Sjekkliste for utfylling'!A48,\"\")","v":""},{"$f":"IF($C29=1,'Sjekkliste for utfylling'!B48,\"\")","v":""},null,{"$f":"IF(C29=1,'Sjekkliste for utfylling'!H48,\" \")","v":" "}]
[{"$f":"'Sjekkliste for utfylling'!A49","v":27},{"$f":"IF('Sjekkliste for utfylling'!E49<>\"\",1,0)","v":0},0,null,{"$f":"IF($C30=1,'Sjekkliste for utfylling'!A49,\"\")","v":""},{"$f":"IF($C30=1,'Sjekkliste for utfylling'!B49,\"\")","v":""},null,{"$f":"IF(C30=1,'Sjekkliste for utfylling'!H49,\" \")","v":" "}]
[{"$f":"'Sjekkliste for utfylling'!A51","v":28},{"$f":"IF('Sjekkliste for utfylling'!E51<>\"\",1,0)","v":0},0,null,{"$f":"IF($C31=1,'Sjekkliste for utfylling'!A51,\"\")","v":""},{"$f":"IF($C31=1,'Sjekkliste for utfylling'!B51,\"\")","v":""},null,{"$f":"IF(C31=1,'Sjekkliste for utfylling'!H51,\" \")","v":" "}]
[{"$f":"'Sjekkliste for utfylling'!A52","v":29},{"$f":"IF('Sjekkliste for utfylling'!E52<>\"\",1,0)","v":0},0,null,{"$f":"IF($C32=1,'Sjekkliste for utfylling'!A52,\"\")","v":""},{"$f":"IF($C32=1,'Sjekkliste for utfylling'!B52,\"\")","v":""},null,{"$f":"IF(C32=1,'Sjekkliste for utfylling'!H52,\" \")","v":" "}]
[{"$f":"'Sjekkliste for utfylling'!A54","v":30},{"$f":"IF('Sjekkliste for utfylling'!E54<>\"\",1,0)","v":0},0,null,{"$f":"IF($C33=1,'Sjekkliste for utfylling'!A54,\"\")","v":""},{"$f":"IF($C33=1,'Sjekkliste for utfylling'!B54,\"\")","v":""},null,{"$f":"IF(C33=1,'Sjekkliste for utfylling'!H54,\" \")","v":" "}]
[{"$f":"'Sjekkliste for utfylling'!A58","v":31},{"$f":"IF('Sjekkliste for utfylling'!E58<>\"\",1,0)","v":0},{"$f":"SUM(B34:B34)","v":0},null,{"$f":"IF($C34=1,'Sjekkliste for utfylling'!A58,\"\")","v":""},{"$f":"IF($C34=1,'Sjekkliste for utfylling'!B58,\"\")","v":""},null,{"$f":"IF(C34=1,'Sjekkliste for utfylling'!H58,\" \")","v":" "}]
[{"$f":"'Sjekkliste for utfylling'!A62","v":32},{"$f":"IF('Sjekkliste for utfylling'!E62<>\"\",1,0)","v":0},0,null,{"$f":"IF($C35=1,'Sjekkliste for utfylling'!A62,\"\")","v":""},{"$f":"IF($C35=1,'Sjekkliste for utfylling'!B62,\"\")","v":""},null,{"$f":"IF(C35=1,'Sjekkliste for utfylling'!H62,\" \")","v":" "}]
[{"$f":"'Sjekkliste for utfylling'!A63","v":33},{"$f":"IF('Sjekkliste for utfylling'!E63<>\"\",1,0)","v":0},0,null,{"$f":"IF($C36=1,'Sjekkliste for utfylling'!A63,\"\")","v":""},{"$f":"IF($C36=1,'Sjekkliste for utfylling'!B63,\"\")","v":""},null,{"$f":"IF(C36=1,'Sjekkliste for utfylling'!H63,\" \")","v":" "}]
[{"$f":"'Sjekkliste for utfylling'!A64","v":34},{"$f":"IF('Sjekkliste for utfylling'!E64<>\"\",1,0)","v":0},0,null,{"$f":"IF($C37=1,'Sjekkliste for utfylling'!A64,\"\")","v":""},{"$f":"IF($C37=1,'Sjekkliste for utfylling'!B64,\"\")","v":""},null,{"$f":"IF(C37=1,'Sjekkliste for utfylling'!H64,\" \")","v":" "}]
[{"$f":"'Sjekkliste for utfylling'!A65","v":35},{"$f":"IF('Sjekkliste for utfylling'!E65<>\"\",1,0)","v":0},0,null,{"$f":"IF($C38=1,'Sjekkliste for utfylling'!A65,\"\")","v":""},{"$f":"IF($C38=1,'Sjekkliste for utfylling'!B65,\"\")","v":""},null,{"$f":"IF(C38=1,'Sjekkliste for utfylling'!H65,\" \")","v":" "}]
[{"$f":"'Sjekkliste for utfylling'!A66","v":36},{"$f":"IF('Sjekkliste for utfylling'!E66<>\"\",1,0)","v":0},0,null,{"$f":"IF($C39=1,'Sjekkliste for utfylling'!A66,\"\")","v":""},{"$f":"IF($C39=1,'Sjekkliste for utfylling'!B66,\"\")","v":""},null,{"$f":"IF(C39=1,'Sjekkliste for utfylling'!H66,\" \")","v":" "}]
[{"$f":"'Sjekkliste for utfylling'!A73","v":37},{"$f":"IF('Sjekkliste for utfylling'!E73<>\"\",1,0)","v":0},0,null,{"$f":"IF($C40=1,'Sjekkliste for utfylling'!A73,\"\")","v":""},{"$f":"IF($C40=1,'Sjekkliste for utfylling'!B73,\"\")","v":""},null,{"$f":"IF(C40=1,'Sjekkliste for utfylling'!H73,\" \")","v":" "}]
[{"$f":"'Sjekkliste for utfylling'!A74","v":38},{"$f":"IF('Sjekkliste for utfylling'!E74<>\"\",1,0)","v":0},0,null,{"$f":"IF($C41=1,'Sjekkliste for utfylling'!A74,\"\")","v":""},{"$f":"IF($C41=1,'Sjekkliste for utfylling'!B74,\"\")","v":""},null,{"$f":"IF(C41=1,'Sjekkliste for utfylling'!H74,\" \")","v":" "}]
[{"$f":"'Sjekkliste for utfylling'!A75","v":39},{"$f":"IF('Sjekkliste for utfylling'!E75<>\"\",1,0)","v":0},0,null,{"$f":"IF($C42=1,'Sjekkliste for utfylling'!A75,\"\")","v":""},{"$f":"IF($C42=1,'Sjekkliste for utfylling'!B75,\"\")","v":""},null,{"$f":"IF(C42=1,'Sjekkliste for utfylling'!H75,\" \")","v":" "}]
[{"$f":"'Sjekkliste for utfylling'!A76","v":40},{"$f":"IF('Sjekkliste for utfylling'!E76<>\"\",1,0)","v":0},0,null,{"$f":"IF($C43=1,'Sjekkliste for utfylling'!A76,\"\")","v":""},{"$f":"IF($C43=1,'Sjekkliste for utfylling'!B76,\"\")","v":""},null,{"$f":"IF(C43=1,'Sjekkliste for utfylling'!H76,\" \")","v":" "}]
[{"$f":"'Sjekkliste for utfylling'!A77","v":41},{"$f":"IF('Sjekkliste for utfylling'!E77<>\"\",1,0)","v":0},0,null,{"$f":"IF($C44=1,'Sjekkliste for utfylling'!A77,\"\")","v":""},{"$f":"IF($C44=1,'Sjekkliste for utfylling'!B77,\"\")","v":""},null,{"$f":"IF(C44=1,'Sjekkliste for utfylling'!H77,\" \")","v":" "}]
[{"$f":"'Sjekkliste for utfylling'!A79","v":42},{"$f":"IF('Sjekkliste for utfylling'!E79<>\"\",1,0)","v":0},0,null,{"$f":"IF($C45=1,'Sjekkliste for utfylling'!A79,\"\")","v":""},{"$f":"IF($C45=1,'Sjekkliste for utfylling'!B79,\"\")","v":""},null,{"$f":"IF(C45=1,'Sjekkliste for utfylling'!H79,\" \")","v":" "}]
[{"$f":"'Sjekkliste for utfylling'!A82","v":43},{"$f":"IF('Sjekkliste for utfylling'!E82<>\"\",1,0)","v":0},0,null,{"$f":"IF($C46=1,'Sjekkliste for utfylling'!A82,\"\")","v":""},{"$f":"IF($C46=1,'Sjekkliste for utfylling'!B82,\"\")","v":""},null,{"$f":"IF(C46=1,'Sjekkliste for utfylling'!H82,\" \")","v":" "}]
[{"$f":"'Sjekkliste for utfylling'!A83","v":44},{"$f":"IF('Sjekkliste for utfylling'!E83<>\"\",1,0)","v":0},0,null,{"$f":"IF($C47=1,'Sjekkliste for utfylling'!A83,\"\")","v":""},{"$f":"IF($C47=1,'Sjekkliste for utfylling'!B83,\"\")","v":""},null,{"$f":"IF(C47=1,'Sjekkliste for utfylling'!H83,\" \")","v":" "}]
[{"$f":"'Sjekkliste for utfylling'!A85","v":45},{"$f":"IF('Sjekkliste for utfylling'!E85<>\"\",1,0)","v":0},0,null,{"$f":"IF($C48=1,'Sjekkliste for utfylling'!A85,\"\")","v":""},{"$f":"IF($C48=1,'Sjekkliste for utfylling'!B85,\"\")","v":""},null,{"$f":"IF(C48=1,'Sjekkliste for utfylling'!H85,\" \")","v":" "}]
[{"$f":"'Sjekkliste for utfylling'!A86","v":46},{"$f":"IF('Sjekkliste for utfylling'!E86<>\"\",1,0)","v":0},0,null,{"$f":"IF($C49=1,'Sjekkliste for utfylling'!A86,\"\")","v":""},{"$f":"IF($C49=1,'Sjekkliste for utfylling'!B86,\"\")","v":""},null,{"$f":"IF(C49=1,'Sjekkliste for utfylling'!H86,\" \")","v":" "}]
[{"$f":"'Sjekkliste for utfylling'!A91","v":47},{"$f":"IF('Sjekkliste for utfylling'!E91<>\"\",1,0)","v":0},0,null,{"$f":"IF($C50=1,'Sjekkliste for utfylling'!A91,\"\")","v":""},{"$f":"IF($C50=1,'Sjekkliste for utfylling'!B91,\"\")","v":""},null,{"$f":"IF(C50=1,'Sjekkliste for utfylling'!H91,\" \")","v":" "}]
[{"$f":"'Sjekkliste for utfylling'!A93","v":48},{"$f":"IF('Sjekkliste for utfylling'!E93<>\"\",1,0)","v":0},0,null,{"$f":"IF($C51=1,'Sjekkliste for utfylling'!A93,\"\")","v":""},{"$f":"IF($C51=1,'Sjekkliste for utfylling'!B93,\"\")","v":""},null,{"$f":"IF(C51=1,'Sjekkliste for utfylling'!H93,\" \")","v":" "}]
[{"$f":"'Sjekkliste for utfylling'!A95","v":49},{"$f":"IF('Sjekkliste for utfylling'!E95<>\"\",1,0)","v":0},0,null,{"$f":"IF($C52=1,'Sjekkliste for utfylling'!A95,\"\")","v":""},{"$f":"IF($C52=1,'Sjekkliste for utfylling'!B95,\"\")","v":""},null,{"$f":"IF(C52=1,'Sjekkliste for utfylling'!H95,\" \")","v":" "}]
[{"$f":"'Sjekkliste for utfylling'!A96","v":50},{"$f":"IF('Sjekkliste for utfylling'!E96<>\"\",1,0)","v":0},0,null,{"$f":"IF($C53=1,'Sjekkliste for utfylling'!A96,\"\")","v":""},{"$f":"IF($C53=1,'Sjekkliste for utfylling'!B96,\"\")","v":""},null,{"$f":"IF(C53=1,'Sjekkliste for utfylling'!H96,\" \")","v":" "}]
[{"$f":"'Sjekkliste for utfylling'!A97","v":51},{"$f":"IF('Sjekkliste for utfylling'!E97<>\"\",1,0)","v":0},0,null,{"$f":"IF($C54=1,'Sjekkliste for utfylling'!A97,\"\")","v":""},{"$f":"IF($C54=1,'Sjekkliste for utfylling'!B97,\"\")","v":""},null,{"$f":"IF(C54=1,'Sjekkliste for utfylling'!H97,\" \")","v":" "}]
[{"$f":"'Sjekkliste for utfylling'!A99","v":52},{"$f":"IF('Sjekkliste for utfylling'!E99<>\"\",1,0)","v":0},0,null,{"$f":"IF($C55=1,'Sjekkliste for utfylling'!A99,\"\")","v":""},{"$f":"IF($C55=1,'Sjekkliste for utfylling'!B99,\"\")","v":""},null,{"$f":"IF(C55=1,'Sjekkliste for utfylling'!H99,\" \")","v":" "}]
[{"$f":"'Sjekkliste for utfylling'!A103","v":53},{"$f":"IF('Sjekkliste for utfylling'!E103<>\"\",1,0)","v":0},0,null,{"$f":"IF($C56=1,'Sjekkliste for utfylling'!A103,\"\")","v":""},{"$f":"IF($C56=1,'Sjekkliste for utfylling'!B103,\"\")","v":""},null,{"$f":"IF(C56=1,'Sjekkliste for utfylling'!H103,\" \")","v":" "}]
[{"$f":"'Sjekkliste for utfylling'!A110","v":54},{"$f":"IF('Sjekkliste for utfylling'!E110<>\"\",1,0)","v":0},0,null,{"$f":"IF($C57=1,'Sjekkliste for utfylling'!A110,\"\")","v":""},{"$f":"IF($C57=1,'Sjekkliste for utfylling'!B110,\"\")","v":""},null,{"$f":"IF(C57=1,'Sjekkliste for utfylling'!H110,\" \")","v":" "}]
[{"$f":"'Sjekkliste for utfylling'!A114","v":55},{"$f":"IF('Sjekkliste for utfylling'!E114<>\"\",1,0)","v":0},0,null,{"$f":"IF($C58=1,'Sjekkliste for utfylling'!A114,\"\")","v":""},{"$f":"IF($C58=1,'Sjekkliste for utfylling'!B114,\"\")","v":""},null,{"$f":"IF(C58=1,'Sjekkliste for utfylling'!H114,\" \")","v":" "}]
[{"$f":"'Sjekkliste for utfylling'!A115","v":56},{"$f":"IF('Sjekkliste for utfylling'!E115<>\"\",1,0)","v":0},0,null,{"$f":"IF($C59=1,'Sjekkliste for utfylling'!A115,\"\")","v":""},{"$f":"IF($C59=1,'Sjekkliste for utfylling'!B115,\"\")","v":""},null,{"$f":"IF(C59=1,'Sjekkliste for utfylling'!H115,\" \")","v":" "}]
[{"$f":"'Sjekkliste for utfylling'!A116","v":57},{"$f":"IF('Sjekkliste for utfylling'!E116<>\"\",1,0)","v":0},0,null,{"$f":"IF($C60=1,'Sjekkliste for utfylling'!A116,\"\")","v":""},{"$f":"IF($C60=1,'Sjekkliste for utfylling'!B116,\"\")","v":""},null,{"$f":"IF(C60=1,'Sjekkliste for utfylling'!H116,\" \")","v":" "}]
[{"$f":"'Sjekkliste for utfylling'!A117","v":58},{"$f":"IF('Sjekkliste for utfylling'!E117<>\"\",1,0)","v":0},0,null,{"$f":"IF($C61=1,'Sjekkliste for utfylling'!A117,\"\")","v":""},{"$f":"IF($C61=1,'Sjekkliste for utfylling'!B117,\"\")","v":""},null,{"$f":"IF(C61=1,'Sjekkliste for utfylling'!H117,\" \")","v":" "}]
[{"$f":"'Sjekkliste for utfylling'!A118","v":59},{"$f":"IF('Sjekkliste for utfylling'!E118<>\"\",1,0)","v":0},0,null,{"$f":"IF($C62=1,'Sjekkliste for utfylling'!A118,\"\")","v":""},{"$f":"IF($C62=1,'Sjekkliste for utfylling'!B118,\"\")","v":""},null,{"$f":"IF(C62=1,'Sjekkliste for utfylling'!H118,\" \")","v":" "}]
[{"$f":"'Sjekkliste for utfylling'!A119","v":60},{"$f":"IF('Sjekkliste for utfylling'!E119<>\"\",1,0)","v":0},0,null,{"$f":"IF($C63=1,'Sjekkliste for utfylling'!A119,\"\")","v":""},{"$f":"IF($C63=1,'Sjekkliste for utfylling'!B119,\"\")","v":""},null,{"$f":"IF(C63=1,'Sjekkliste for utfylling'!H119,\" \")","v":" "}]
[{"$f":"'Sjekkliste for utfylling'!A120","v":61},{"$f":"IF('Sjekkliste for utfylling'!E120<>\"\",1,0)","v":0},0,null,{"$f":"IF($C64=1,'Sjekkliste for utfylling'!A120,\"\")","v":""},{"$f":"IF($C64=1,'Sjekkliste for utfylling'!B120,\"\")","v":""},null,{"$f":"IF(C64=1,'Sjekkliste for utfylling'!H120,\" \")","v":" "}]
[{"$f":"'Sjekkliste for utfylling'!A126","v":62},{"$f":"IF('Sjekkliste for utfylling'!E126<>\"\",1,0)","v":0},0,null,{"$f":"IF($C65=1,'Sjekkliste for utfylling'!A126,\"\")","v":""},{"$f":"IF($C65=1,'Sjekkliste for utfylling'!B126,\"\")","v":""},null,{"$f":"IF(C65=1,'Sjekkliste for utfylling'!H126,\" \")","v":" "}]
[{"$f":"'Sjekkliste for utfylling'!A128","v":63},{"$f":"IF('Sjekkliste for utfylling'!E128<>\"\",1,0)","v":0},{"$f":"SUM(B66:B66)","v":0},null,{"$f":"IF($C66=1,'Sjekkliste for utfylling'!A128,\"\")","v":""},{"$f":"IF($C66=1,'Sjekkliste for utfylling'!B128,\"\")","v":""},null,{"$f":"IF(C66=1,'Sjekkliste for utfylling'!H128,\" \")","v":" "}]
[{"$f":"'Sjekkliste for utfylling'!A129","v":64},{"$f":"IF('Sjekkliste for utfylling'!E129<>\"\",1,0)","v":0},0,null,{"$f":"IF($C67=1,'Sjekkliste for utfylling'!A129,\"\")","v":""},{"$f":"IF($C67=1,'Sjekkliste for utfylling'!B129,\"\")","v":""},null,{"$f":"IF(C67=1,'Sjekkliste for utfylling'!H129,\" \")","v":" "}]
[{"$f":"'Sjekkliste for utfylling'!A130","v":65},{"$f":"IF('Sjekkliste for utfylling'!E130<>\"\",1,0)","v":0},0,null,{"$f":"IF($C68=1,'Sjekkliste for utfylling'!A130,\"\")","v":""},{"$f":"IF($C68=1,'Sjekkliste for utfylling'!B130,\"\")","v":""},null,{"$f":"IF(C68=1,'Sjekkliste for utfylling'!H130,\" \")","v":" "}]
[{"$f":"'Sjekkliste for utfylling'!A135","v":66},{"$f":"IF('Sjekkliste for utfylling'!E135<>\"\",1,0)","v":0},0,null,{"$f":"IF($C69=1,'Sjekkliste for utfylling'!A135,\"\")","v":""},{"$f":"IF($C69=1,'Sjekkliste for utfylling'!B135,\"\")","v":""},null,{"$f":"IF(C69=1,'Sjekkliste for utfylling'!H135,\" \")","v":" "}]
[{"$f":"'Sjekkliste for utfylling'!A136","v":67},{"$f":"IF('Sjekkliste for utfylling'!E136<>\"\",1,0)","v":0},0,null,{"$f":"IF($C70=1,'Sjekkliste for utfylling'!A136,\"\")","v":""},{"$f":"IF($C70=1,'Sjekkliste for utfylling'!B136,\"\")","v":""},null,{"$f":"IF(C70=1,'Sjekkliste for utfylling'!H136,\" \")","v":" "}]
[{"$f":"'Sjekkliste for utfylling'!A137","v":68},{"$f":"IF('Sjekkliste for utfylling'!E137<>\"\",1,0)","v":0},0,null,{"$f":"IF($C71=1,'Sjekkliste for utfylling'!A137,\"\")","v":""},{"$f":"IF($C71=1,'Sjekkliste for utfylling'!B137,\"\")","v":""},null,{"$f":"IF(C71=1,'Sjekkliste for utfylling'!H137,\" \")","v":" "}]
[{"$f":"'Sjekkliste for utfylling'!A138","v":69},{"$f":"IF('Sjekkliste for utfylling'!E138<>\"\",1,0)","v":0},0,null,{"$f":"IF($C72=1,'Sjekkliste for utfylling'!A138,\"\")","v":""},{"$f":"IF($C72=1,'Sjekkliste for utfylling'!B138,\"\")","v":""},null,{"$f":"IF(C72=1,'Sjekkliste for utfylling'!H138,\" \")","v":" "}]
[{"$f":"'Sjekkliste for utfylling'!A140","v":70},{"$f":"IF('Sjekkliste for utfylling'!E140<>\"\",1,0)","v":0},0,null,{"$f":"IF($C73=1,'Sjekkliste for utfylling'!A140,\"\")","v":""},{"$f":"IF($C73=1,'Sjekkliste for utfylling'!B140,\"\")","v":""},null,{"$f":"IF(C73=1,'Sjekkliste for utfylling'!H140,\" \")","v":" "}]
[{"$f":"'Sjekkliste for utfylling'!A155","v":73},{"$f":"IF('Sjekkliste for utfylling'!E155<>\"\",1,0)","v":0},0,null,{"$f":"IF($C74=1,'Sjekkliste for utfylling'!A155,\"\")","v":""},{"$f":"IF($C74=1,'Sjekkliste for utfylling'!B155,\"\")","v":""},null,{"$f":"IF(C74=1,'Sjekkliste for utfylling'!H155,\" \")","v":" "}]
[{"$f":"'Sjekkliste for utfylling'!A157","v":74},{"$f":"IF('Sjekkliste for utfylling'!E157<>\"\",1,0)","v":0},0,null,{"$f":"IF($C75=1,'Sjekkliste for utfylling'!A157,\"\")","v":""},{"$f":"IF($C75=1,'Sjekkliste for utfylling'!B157,\"\")","v":""},null,{"$f":"IF(C75=1,'Sjekkliste for utfylling'!H157,\" \")","v":" "}]
[{"$f":"'Sjekkliste for utfylling'!A158","v":75},{"$f":"IF('Sjekkliste for utfylling'!E158<>\"\",1,0)","v":0},0,null,{"$f":"IF($C76=1,'Sjekkliste for utfylling'!A158,\"\")","v":""},{"$f":"IF($C76=1,'Sjekkliste for utfylling'!B158,\"\")","v":""},null,{"$f":"IF(C76=1,'Sjekkliste for utfylling'!H158,\" \")","v":" "}]
[{"$f":"'Sjekkliste for utfylling'!A159","v":76},{"$f":"IF('Sjekkliste for utfylling'!E159<>\"\",1,0)","v":0},0,null,{"$f":"IF($C77=1,'Sjekkliste for utfylling'!A159,\"\")","v":""},{"$f":"IF($C77=1,'Sjekkliste for utfylling'!B159,\"\")","v":""},null,{"$f":"IF(C77=1,'Sjekkliste for utfylling'!H159,\" \")","v":" "}]
[{"$f":"'Sjekkliste for utfylling'!A160","v":77},{"$f":"IF('Sjekkliste for utfylling'!E160<>\"\",1,0)","v":0},0,null,{"$f":"IF($C78=1,'Sjekkliste for utfylling'!A160,\"\")","v":""},{"$f":"IF($C78=1,'Sjekkliste for utfylling'!B160,\"\")","v":""},null,{"$f":"IF(C78=1,'Sjekkliste for utfylling'!H160,\" \")","v":" "}]
[{"$f":"'Sjekkliste for utfylling'!A161","v":78},{"$f":"IF('Sjekkliste for utfylling'!E161<>\"\",1,0)","v":0},0,null,{"$f":"IF($C79=1,'Sjekkliste for utfylling'!A161,\"\")","v":""},{"$f":"IF($C79=1,'Sjekkliste for utfylling'!B161,\"\")","v":""},null,{"$f":"IF(C79=1,'Sjekkliste for utfylling'!H161,\" \")","v":" "}]
[{"$f":"'Sjekkliste for utfylling'!A163","v":79},{"$f":"IF('Sjekkliste for utfylling'!E163<>\"\",1,0)","v":0},0,null,{"$f":"IF($C80=1,'Sjekkliste for utfylling'!A163,\"\")","v":""},{"$f":"IF($C80=1,'Sjekkliste for utfylling'!B163,\"\")","v":""},null,{"$f":"IF(C80=1,'Sjekkliste for utfylling'!H163,\" \")","v":" "}]
[{"$f":"'Sjekkliste for utfylling'!A164","v":80},{"$f":"IF('Sjekkliste for utfylling'!E164<>\"\",1,0)","v":0},0,null,{"$f":"IF($C81=1,'Sjekkliste for utfylling'!A164,\"\")","v":""},{"$f":"IF($C81=1,'Sjekkliste for utfylling'!B164,\"\")","v":""},null,{"$f":"IF(C81=1,'Sjekkliste for utfylling'!H164,\" \")","v":" "}]
[{"$f":"'Sjekkliste for utfylling'!A167","v":81},{"$f":"IF('Sjekkliste for utfylling'!E167<>\"\",1,0)","v":0},0,null,{"$f":"IF($C82=1,'Sjekkliste for utfylling'!A167,\"\")","v":""},{"$f":"IF($C82=1,'Sjekkliste for utfylling'!B167,\"\")","v":""},null,{"$f":"IF(C82=1,'Sjekkliste for utfylling'!H167,\" \")","v":" "}]
[{"$f":"'Sjekkliste for utfylling'!A168","v":82},{"$f":"IF('Sjekkliste for utfylling'!E168<>\"\",1,0)","v":0},0,null,{"$f":"IF($C83=1,'Sjekkliste for utfylling'!A168,\"\")","v":""},{"$f":"IF($C83=1,'Sjekkliste for utfylling'!B168,\"\")","v":""},null,{"$f":"IF(C83=1,'Sjekkliste for utfylling'!H168,\" \")","v":" "}]
[{"$f":"'Sjekkliste for utfylling'!A169","v":83},{"$f":"IF('Sjekkliste for utfylling'!E169<>\"\",1,0)","v":0},0,null,{"$f":"IF($C84=1,'Sjekkliste for utfylling'!A169,\"\")","v":""},{"$f":"IF($C84=1,'Sjekkliste for utfylling'!B169,\"\")","v":""},null,{"$f":"IF(C84=1,'Sjekkliste for utfylling'!H169,\" \")","v":" "}]
[{"$f":"'Sjekkliste for utfylling'!A171","v":84},{"$f":"IF('Sjekkliste for utfylling'!E171<>\"\",1,0)","v":0},0,null,{"$f":"IF($C85=1,'Sjekkliste for utfylling'!A171,\"\")","v":""},{"$f":"IF($C85=1,'Sjekkliste for utfylling'!B171,\"\")","v":""},null,{"$f":"IF(C85=1,'Sjekkliste for utfylling'!H171,\" \")","v":" "}]
[{"$f":"'Sjekkliste for utfylling'!A173","v":85},{"$f":"IF('Sjekkliste for utfylling'!E173<>\"\",1,0)","v":0},0,null,{"$f":"IF($C86=1,'Sjekkliste for utfylling'!A173,\"\")","v":""},{"$f":"IF($C86=1,'Sjekkliste for utfylling'!B173,\"\")","v":""},null,{"$f":"IF(C86=1,'Sjekkliste for utfylling'!H173,\" \")","v":" "}]
[{"$f":"'Sjekkliste for utfylling'!A174","v":86},{"$f":"IF('Sjekkliste for utfylling'!E174<>\"\",1,0)","v":0},0,null,{"$f":"IF($C87=1,'Sjekkliste for utfylling'!A174,\"\")","v":""},{"$f":"IF($C87=1,'Sjekkliste for utfylling'!B174,\"\")","v":""},null,{"$f":"IF(C87=1,'Sjekkliste for utfylling'!H174,\" \")","v":" "}]
[{"$f":"'Sjekkliste for utfylling'!A175","v":87},{"$f":"IF('Sjekkliste for utfylling'!E175<>\"\",1,0)","v":0},0,null,{"$f":"IF($C88=1,'Sjekkliste for utfylling'!A175,\"\")","v":""},{"$f":"IF($C88=1,'Sjekkliste for utfylling'!B175,\"\")","v":""},null,{"$f":"IF(C88=1,'Sjekkliste for utfylling'!H175,\" \")","v":" "}]
[{"$f":"'Sjekkliste for utfylling'!A176","v":88},{"$f":"IF('Sjekkliste for utfylling'!E176<>\"\",1,0)","v":0},0,null,{"$f":"IF($C89=1,'Sjekkliste for utfylling'!A176,\"\")","v":""},{"$f":"IF($C89=1,'Sjekkliste for utfylling'!B176,\"\")","v":""},null,{"$f":"IF(C89=1,'Sjekkliste for utfylling'!H176,\" \")","v":" "}]
[{"$f":"'Sjekkliste for utfylling'!A177","v":89},{"$f":"IF('Sjekkliste for utfylling'!E177<>\"\",1,0)","v":0},0,null,{"$f":"IF($C90=1,'Sjekkliste for utfylling'!A177,\"\")","v":""},{"$f":"IF($C90=1,'Sjekkliste for utfylling'!B177,\"\")","v":""},null,{"$f":"IF(C90=1,'Sjekkliste for utfylling'!H177,\" \")","v":" "}]
[{"$f":"'Sjekkliste for utfylling'!A178","v":90},{"$f":"IF('Sjekkliste for utfylling'!E178<>\"\",1,0)","v":0},0,null,{"$f":"IF($C91=1,'Sjekkliste for utfylling'!A178,\"\")","v":""},{"$f":"IF($C91=1,'Sjekkliste for utfylling'!B178,\"\")","v":""},null,{"$f":"IF(C91=1,'Sjekkliste for utfylling'!H178,\" \")","v":" "}]
[{"$f":"'Sjekkliste for utfylling'!A179","v":91},{"$f":"IF('Sjekkliste for utfylling'!E179<>\"\",1,0)","v":0},0,null,{"$f":"IF($C92=1,'Sjekkliste for utfylling'!A179,\"\")","v":""},{"$f":"IF($C92=1,'Sjekkliste for utfylling'!B179,\"\")","v":""},null,{"$f":"IF(C92=1,'Sjekkliste for utfylling'!H179,\" \")","v":" "}]
[{"$f":"'Sjekkliste for utfylling'!A180","v":92},{"$f":"IF('Sjekkliste for utfylling'!E180<>\"\",1,0)","v":0},0,null,{"$f":"IF($C93=1,'Sjekkliste for utfylling'!A180,\"\")","v":""},{"$f":"IF($C93=1,'Sjekkliste for utfylling'!B180,\"\")","v":""},null,{"$f":"IF(C93=1,'Sjekkliste for utfylling'!H180,\" \")","v":" "}]
[{"$f":"'Sjekkliste for utfylling'!A181","v":93},{"$f":"IF('Sjekkliste for utfylling'!E181<>\"\",1,0)","v":0},0,null,{"$f":"IF($C94=1,'Sjekkliste for utfylling'!A181,\"\")","v":""},{"$f":"IF($C94=1,'Sjekkliste for utfylling'!B181,\"\")","v":""},null,{"$f":"IF(C94=1,'Sjekkliste for utfylling'!H181,\" \")","v":" "}]
[{"$f":"'Sjekkliste for utfylling'!A182","v":94},{"$f":"IF('Sjekkliste for utfylling'!E182<>\"\",1,0)","v":0},0,null,{"$f":"IF($C95=1,'Sjekkliste for utfylling'!A182,\"\")","v":""},{"$f":"IF($C95=1,'Sjekkliste for utfylling'!B182,\"\")","v":""},null,{"$f":"IF(C95=1,'Sjekkliste for utfylling'!H182,\" \")","v":" "}]
[{"$f":"'Sjekkliste for utfylling'!A186","v":95},{"$f":"IF('Sjekkliste for utfylling'!E186<>\"\",1,0)","v":0},0,null,{"$f":"IF($C96=1,'Sjekkliste for utfylling'!A186,\"\")","v":""},{"$f":"IF($C96=1,'Sjekkliste for utfylling'!B186,\"\")","v":""},null,{"$f":"IF(C96=1,'Sjekkliste for utfylling'!H186,\" \")","v":" "}]
[{"$f":"'Sjekkliste for utfylling'!A187","v":96},{"$f":"IF('Sjekkliste for utfylling'!E187<>\"\",1,0)","v":0},0,null,{"$f":"IF($C97=1,'Sjekkliste for utfylling'!A187,\"\")","v":""},{"$f":"IF($C97=1,'Sjekkliste for utfylling'!B187,\"\")","v":""},null,{"$f":"IF(C97=1,'Sjekkliste for utfylling'!H187,\" \")","v":" "}]
[{"$f":"'Sjekkliste for utfylling'!A188","v":97},{"$f":"IF('Sjekkliste for utfylling'!E188<>\"\",1,0)","v":0},{"$f":"SUM(B98:B98)","v":0},null,{"$f":"IF($C98=1,'Sjekkliste for utfylling'!A188,\"\")","v":""},{"$f":"IF($C98=1,'Sjekkliste for utfylling'!B188,\"\")","v":""},null,{"$f":"IF(C98=1,'Sjekkliste for utfylling'!H188,\" \")","v":" "}]
[{"$f":"'Sjekkliste for utfylling'!A189","v":98},{"$f":"IF('Sjekkliste for utfylling'!E189<>\"\",1,0)","v":0},0,null,{"$f":"IF($C99=1,'Sjekkliste for utfylling'!A189,\"\")","v":""},{"$f":"IF($C99=1,'Sjekkliste for utfylling'!B189,\"\")","v":""},null,{"$f":"IF(C99=1,'Sjekkliste for utfylling'!H189,\" \")","v":" "}]
[{"$f":"'Sjekkliste for utfylling'!A197","v":99},{"$f":"IF('Sjekkliste for utfylling'!E197<>\"\",1,0)","v":0},0,null,{"$f":"IF($C100=1,'Sjekkliste for utfylling'!A197,\"\")","v":""},{"$f":"IF($C100=1,'Sjekkliste for utfylling'!B197,\"\")","v":""},null,{"$f":"IF(C100=1,'Sjekkliste for utfylling'!H197,\" \")","v":" "}]
[{"$f":"'Sjekkliste for utfylling'!A198","v":100},{"$f":"IF('Sjekkliste for utfylling'!E198<>\"\",1,0)","v":0},0,null,{"$f":"IF($C101=1,'Sjekkliste for utfylling'!A198,\"\")","v":""},{"$f":"IF($C101=1,'Sjekkliste for utfylling'!B198,\"\")","v":""},null,{"$f":"IF(C101=1,'Sjekkliste for utfylling'!H198,\" \")","v":" "}]
[{"$f":"'Sjekkliste for utfylling'!A199","v":101},{"$f":"IF('Sjekkliste for utfylling'!E199<>\"\",1,0)","v":0},0,null,{"$f":"IF($C102=1,'Sjekkliste for utfylling'!A199,\"\")","v":""},{"$f":"IF($C102=1,'Sjekkliste for utfylling'!B199,\"\")","v":""},null,{"$f":"IF(C102=1,'Sjekkliste for utfylling'!H199,\" \")","v":" "}]
[{"$f":"'Sjekkliste for utfylling'!A204","v":105},{"$f":"IF('Sjekkliste for utfylling'!E204<>\"\",1,0)","v":0},0,null,{"$f":"IF($C103=1,'Sjekkliste for utfylling'!A204,\"\")","v":""},{"$f":"IF($C103=1,'Sjekkliste for utfylling'!B204,\"\")","v":""},null,{"$f":"IF(C103=1,'Sjekkliste for utfylling'!H204,\" \")","v":" "}]
[{"$f":"'Sjekkliste for utfylling'!A205","v":106},{"$f":"IF('Sjekkliste for utfylling'!E205<>\"\",1,0)","v":0},0,null,{"$f":"IF($C104=1,'Sjekkliste for utfylling'!A205,\"\")","v":""},{"$f":"IF($C104=1,'Sjekkliste for utfylling'!B205,\"\")","v":""},null,{"$f":"IF(C104=1,'Sjekkliste for utfylling'!H205,\" \")","v":" "}]
[{"$f":"'Sjekkliste for utfylling'!A206","v":107},{"$f":"IF('Sjekkliste for utfylling'!E206<>\"\",1,0)","v":0},0,null,{"$f":"IF($C105=1,'Sjekkliste for utfylling'!A206,\"\")","v":""},{"$f":"IF($C105=1,'Sjekkliste for utfylling'!B206,\"\")","v":""},null,{"$f":"IF(C105=1,'Sjekkliste for utfylling'!H206,\" \")","v":" "}]
[{"$f":"'Sjekkliste for utfylling'!A207","v":108},{"$f":"IF('Sjekkliste for utfylling'!E207<>\"\",1,0)","v":0},0,null,{"$f":"IF($C106=1,'Sjekkliste for utfylling'!A207,\"\")","v":""},{"$f":"IF($C106=1,'Sjekkliste for utfylling'!B207,\"\")","v":""},null,{"$f":"IF(C106=1,'Sjekkliste for utfylling'!H207,\" \")","v":" "}]
[{"$f":"'Sjekkliste for utfylling'!A208","v":109},{"$f":"IF('Sjekkliste for utfylling'!E208<>\"\",1,0)","v":0},0,null,{"$f":"IF($C107=1,'Sjekkliste for utfylling'!A208,\"\")","v":""},{"$f":"IF($C107=1,'Sjekkliste for utfylling'!B208,\"\")","v":""},null,{"$f":"IF(C107=1,'Sjekkliste for utfylling'!H208,\" \")","v":" "}]
[{"$f":"'Sjekkliste for utfylling'!A216","v":110},{"$f":"IF('Sjekkliste for utfylling'!E216<>\"\",1,0)","v":0},0,null,{"$f":"IF($C108=1,'Sjekkliste for utfylling'!A216,\"\")","v":""},{"$f":"IF($C108=1,'Sjekkliste for utfylling'!B216,\"\")","v":""},null,{"$f":"IF(C108=1,'Sjekkliste for utfylling'!H216,\" \")","v":" "}]
[{"$f":"'Sjekkliste for utfylling'!A219","v":112},{"$f":"IF('Sjekkliste for utfylling'!E219<>\"\",1,0)","v":0},0,null,{"$f":"IF($C109=1,'Sjekkliste for utfylling'!A219,\"\")","v":""},{"$f":"IF($C109=1,'Sjekkliste for utfylling'!B219,\"\")","v":""},null,{"$f":"IF(C109=1,'Sjekkliste for utfylling'!H219,\" \")","v":" "}]
[{"$f":"'Sjekkliste for utfylling'!A221","v":113},{"$f":"IF('Sjekkliste for utfylling'!E221<>\"\",1,0)","v":0},0,null,{"$f":"IF($C110=1,'Sjekkliste for utfylling'!A221,\"\")","v":""},{"$f":"IF($C110=1,'Sjekkliste for utfylling'!B221,\"\")","v":""},null,{"$f":"IF(C110=1,'Sjekkliste for utfylling'!H221,\" \")","v":" "}]
[{"$f":"'Sjekkliste for utfylling'!A223","v":115},{"$f":"IF('Sjekkliste for utfylling'!E223<>\"\",1,0)","v":0},0,null,{"$f":"IF($C111=1,'Sjekkliste for utfylling'!A223,\"\")","v":""},{"$f":"IF($C111=1,'Sjekkliste for utfylling'!B223,\"\")","v":""},null,{"$f":"IF(C111=1,'Sjekkliste for utfylling'!H223,\" \")","v":" "}]
[{"$f":"'Sjekkliste for utfylling'!A225","v":117},{"$f":"IF('Sjekkliste for utfylling'!E225<>\"\",1,0)","v":0},0,null,{"$f":"IF($C112=1,'Sjekkliste for utfylling'!A225,\"\")","v":""},{"$f":"IF($C112=1,'Sjekkliste for utfylling'!B225,\"\")","v":""},null,{"$f":"IF(C112=1,'Sjekkliste for utfylling'!H225,\" \")","v":" "}]
[{"$f":"'Sjekkliste for utfylling'!A228","v":118},{"$f":"IF('Sjekkliste for utfylling'!E228<>\"\",1,0)","v":0},0,null,{"$f":"IF($C113=1,'Sjekkliste for utfylling'!A228,\"\")","v":""},{"$f":"IF($C113=1,'Sjekkliste for utfylling'!B228,\"\")","v":""},null,{"$f":"IF(C113=1,'Sjekkliste for utfylling'!H228,\" \")","v":" "}]
[{"$f":"'Sjekkliste for utfylling'!A240","v":123},{"$f":"IF('Sjekkliste for utfylling'!E240<>\"\",1,0)","v":0},0,null,{"$f":"IF($C114=1,'Sjekkliste for utfylling'!A240,\"\")","v":""},{"$f":"IF($C114=1,'Sjekkliste for utfylling'!B240,\"\")","v":""},null,{"$f":"IF(C114=1,'Sjekkliste for utfylling'!H240,\" \")","v":" "}]
[{"$f":"'Sjekkliste for utfylling'!A244","v":124},{"$f":"IF('Sjekkliste for utfylling'!E244<>\"\",1,0)","v":0},0,null,{"$f":"IF($C115=1,'Sjekkliste for utfylling'!A244,\"\")","v":""},{"$f":"IF($C115=1,'Sjekkliste for utfylling'!B244,\"\")","v":""},null,{"$f":"IF(C115=1,'Sjekkliste for utfylling'!H244,\" \")","v":" "}]
[{"$f":"'Sjekkliste for utfylling'!A245","v":125},{"$f":"IF('Sjekkliste for utfylling'!E245<>\"\",1,0)","v":0},0,null,{"$f":"IF($C116=1,'Sjekkliste for utfylling'!A245,\"\")","v":""},{"$f":"IF($C116=1,'Sjekkliste for utfylling'!B245,\"\")","v":""},null,{"$f":"IF(C116=1,'Sjekkliste for utfylling'!H245,\" \")","v":" "}]
[{"$f":"'Sjekkliste for utfylling'!A246","v":126},{"$f":"IF('Sjekkliste for utfylling'!E246<>\"\",1,0)","v":0},0,null,{"$f":"IF($C117=1,'Sjekkliste for utfylling'!A246,\"\")","v":""},{"$f":"IF($C117=1,'Sjekkliste for utfylling'!B246,\"\")","v":""},null,{"$f":"IF(C117=1,'Sjekkliste for utfylling'!H246,\" \")","v":" "}]
[{"$f":"'Sjekkliste for utfylling'!A249","v":127},{"$f":"IF('Sjekkliste for utfylling'!E249<>\"\",1,0)","v":0},0,null,{"$f":"IF($C118=1,'Sjekkliste for utfylling'!A249,\"\")","v":""},{"$f":"IF($C118=1,'Sjekkliste for utfylling'!B249,\"\")","v":""},null,{"$f":"IF(C118=1,'Sjekkliste for utfylling'!H249,\" \")","v":" "}]
[{"$f":"'Sjekkliste for utfylling'!A251","v":128},{"$f":"IF('Sjekkliste for utfylling'!E251<>\"\",1,0)","v":0},0,null,{"$f":"IF($C119=1,'Sjekkliste for utfylling'!A251,\"\")","v":""},{"$f":"IF($C119=1,'Sjekkliste for utfylling'!B251,\"\")","v":""},null,{"$f":"IF(C119=1,'Sjekkliste for utfylling'!H251,\" \")","v":" "}]
[{"$f":"'Sjekkliste for utfylling'!A253","v":129},{"$f":"IF('Sjekkliste for utfylling'!E253<>\"\",1,0)","v":0},0,null,{"$f":"IF($C120=1,'Sjekkliste for utfylling'!A253,\"\")","v":""},{"$f":"IF($C120=1,'Sjekkliste for utfylling'!B253,\"\")","v":""},null,{"$f":"IF(C120=1,'Sjekkliste for utfylling'!H253,\" \")","v":" "}]
[{"$f":"'Sjekkliste for utfylling'!A257","v":130},{"$f":"IF('Sjekkliste for utfylling'!E257<>\"\",1,0)","v":0},0,null,{"$f":"IF($C121=1,'Sjekkliste for utfylling'!A257,\"\")","v":""},{"$f":"IF($C121=1,'Sjekkliste for utfylling'!B257,\"\")","v":""},null,{"$f":"IF(C121=1,'Sjekkliste for utfylling'!H257,\" \")","v":" "}]
[{"$f":"'Sjekkliste for utfylling'!A258","v":131},{"$f":"IF('Sjekkliste for utfylling'!E258<>\"\",1,0)","v":0},0,null,{"$f":"IF($C122=1,'Sjekkliste for utfylling'!A258,\"\")","v":""},{"$f":"IF($C122=1,'Sjekkliste for utfylling'!B258,\"\")","v":""},null,{"$f":"IF(C122=1,'Sjekkliste for utfylling'!H258,\" \")","v":" "}]
[{"$f":"'Sjekkliste for utfylling'!A259","v":132},{"$f":"IF('Sjekkliste for utfylling'!E259<>\"\",1,0)","v":0},0,null,{"$f":"IF($C123=1,'Sjekkliste for utfylling'!A259,\"\")","v":""},{"$f":"IF($C123=1,'Sjekkliste for utfylling'!B259,\"\")","v":""},null,{"$f":"IF(C123=1,'Sjekkliste for utfylling'!H259,\" \")","v":" "}]
[{"$f":"'Sjekkliste for utfylling'!A260","v":133},{"$f":"IF('Sjekkliste for utfylling'!E260<>\"\",1,0)","v":0},0,null,{"$f":"IF($C124=1,'Sjekkliste for utfylling'!A260,\"\")","v":""},{"$f":"IF($C124=1,'Sjekkliste for utfylling'!B260,\"\")","v":""},null,{"$f":"IF(C124=1,'Sjekkliste for utfylling'!H260,\" \")","v":" "}]
[{"$f":"'Sjekkliste for utfylling'!A261","v":134},{"$f":"IF('Sjekkliste for utfylling'!E261<>\"\",1,0)","v":0},0,null,{"$f":"IF($C125=1,'Sjekkliste for utfylling'!A261,\"\")","v":""},{"$f":"IF($C125=1,'Sjekkliste for utfylling'!B261,\"\")","v":""},null,{"$f":"IF(C125=1,'Sjekkliste for utfylling'!H261,\" \")","v":" "}]
[{"$f":"'Sjekkliste for utfylling'!A265","v":135},{"$f":"IF('Sjekkliste for utfylling'!E265<>\"\",1,0)","v":0},0,null,{"$f":"IF($C126=1,'Sjekkliste for utfylling'!A265,\"\")","v":""},{"$f":"IF($C126=1,'Sjekkliste for utfylling'!B265,\"\")","v":""},null,{"$f":"IF(C126=1,'Sjekkliste for utfylling'!H265,\" \")","v":" "}]
[{"$f":"'Sjekkliste for utfylling'!A268","v":136},{"$f":"IF('Sjekkliste for utfylling'!E268<>\"\",1,0)","v":0},0,null,{"$f":"IF($C127=1,'Sjekkliste for utfylling'!A268,\"\")","v":""},{"$f":"IF($C127=1,'Sjekkliste for utfylling'!B268,\"\")","v":""},null,{"$f":"IF(C127=1,'Sjekkliste for utfylling'!H268,\" \")","v":" "}]
[{"$f":"'Sjekkliste for utfylling'!A269","v":137},{"$f":"IF('Sjekkliste for utfylling'!E269<>\"\",1,0)","v":0},0,null,{"$f":"IF($C128=1,'Sjekkliste for utfylling'!A269,\"\")","v":""},{"$f":"IF($C128=1,'Sjekkliste for utfylling'!B269,\"\")","v":""},null,{"$f":"IF(C128=1,'Sjekkliste for utfylling'!H269,\" \")","v":" "}]
[{"$f":"'Sjekkliste for utfylling'!A270","v":138},{"$f":"IF('Sjekkliste for utfylling'!E270<>\"\",1,0)","v":0},0,null,{"$f":"IF($C129=1,'Sjekkliste for utfylling'!A270,\"\")","v":""},{"$f":"IF($C129=1,'Sjekkliste for utfylling'!B270,\"\")","v":""},null,{"$f":"IF(C129=1,'Sjekkliste for utfylling'!H270,\" \")","v":" "}]
[{"$f":"'Sjekkliste for utfylling'!A271","v":139},{"$f":"IF('Sjekkliste for utfylling'!E271<>\"\",1,0)","v":0},{"$f":"SUM(B130:B130)","v":0},null,{"$f":"IF($C130=1,'Sjekkliste for utfylling'!A271,\"\")","v":""},{"$f":"IF($C130=1,'Sjekkliste for utfylling'!B271,\"\")","v":""},null,{"$f":"IF(C130=1,'Sjekkliste for utfylling'!H271,\" \")","v":" "}]
[{"$f":"'Sjekkliste for utfylling'!#REF!","v":{"$error":"#REF!"}},{"$f":"IF('Sjekkliste for utfylling'!#REF!<>\"\",1,0)","v":{"$error":"#REF!"}},{"$error":"#REF!"},null,{"$f":"IF($C131=1,'Sjekkliste for utfylling'!#REF!,\"\")","v":{"$error":"#REF!"}},{"$f":"IF($C131=1,'Sjekkliste for utfylling'!#REF!,\"\")","v":{"$error":"#REF!"}},null,{"$f":"IF(C131=1,'Sjekkliste for utfylling'!#REF!,\" \")","v":{"$error":"#REF!"}}]

{"sheet":"Nei-svar","index":7,"n_rows":131,"n_cols":8,"rows_kept":131,"cut":false,"hidden":true,"merged":[]}
[null,null,{"$f":"COUNTIF(C2:C56,\"=1\")-D1","v":0},{"$f":"SUM(D2:D23)","v":0},"Nei-svar",{"$f":"'Sjekkliste for utfylling'!B2","v":0},{"$f":"'Sjekkliste for utfylling'!B3","v":2023},{"$f":"'Sjekkliste for utfylling'!C3","v":0}]
[{"$f":"'Sjekkliste for utfylling'!A274","v":140},{"$f":"IF('Sjekkliste for utfylling'!F274<>\"\",1,0)","v":0},{"$f":"SUM(B2:B2)","v":0},null,{"$f":"IF($C2=1,'Sjekkliste for utfylling'!A274,\"\")","v":""},{"$f":"IF($C2=1,'Sjekkliste for utfylling'!B274,\"\")","v":""},null,{"$f":"IF(C2=1,'Sjekkliste for utfylling'!H274,\" \")","v":" "}]
[{"$f":"'Sjekkliste for utfylling'!A227","v":0},{"$f":"IF('Sjekkliste for utfylling'!F227<>\"\",1,0)","v":0},0,null,{"$f":"IF($C3=1,'Sjekkliste for utfylling'!A227,\"\")","v":""},{"$f":"IF($C3=1,'Sjekkliste for utfylling'!B227,\"\")","v":""},null,{"$f":"IF(C3=1,'Sjekkliste for utfylling'!H227,\" \")","v":" "}]
[{"$f":"'Sjekkliste for utfylling'!A13","v":1},{"$f":"IF('Sjekkliste for utfylling'!F13<>\"\",1,0)","v":0},0,null,{"$f":"IF($C4=1,'Sjekkliste for utfylling'!A13,\"\")","v":""},{"$f":"IF($C4=1,'Sjekkliste for utfylling'!B13,\"\")","v":""},null,{"$f":"IF(C4=1,'Sjekkliste for utfylling'!H13,\" \")","v":" "}]
[{"$f":"'Sjekkliste for utfylling'!A14","v":2},{"$f":"IF('Sjekkliste for utfylling'!F14<>\"\",1,0)","v":0},0,null,{"$f":"IF($C5=1,'Sjekkliste for utfylling'!A14,\"\")","v":""},{"$f":"IF($C5=1,'Sjekkliste for utfylling'!B14,\"\")","v":""},null,{"$f":"IF(C5=1,'Sjekkliste for utfylling'!H14,\" \")","v":" "}]
[{"$f":"'Sjekkliste for utfylling'!A15","v":3},{"$f":"IF('Sjekkliste for utfylling'!F15<>\"\",1,0)","v":0},0,null,{"$f":"IF($C6=1,'Sjekkliste for utfylling'!A15,\"\")","v":""},{"$f":"IF($C6=1,'Sjekkliste for utfylling'!B15,\"\")","v":""},null,{"$f":"IF(C6=1,'Sjekkliste for utfylling'!H15,\" \")","v":" "}]
[{"$f":"'Sjekkliste for utfylling'!A17","v":4},{"$f":"IF('Sjekkliste for utfylling'!F17<>\"\",1,0)","v":0},0,null,{"$f":"IF($C7=1,'Sjekkliste for utfylling'!A17,\"\")","v":""},{"$f":"IF($C7=1,'Sjekkliste for utfylling'!B17,\"\")","v":""},null,{"$f":"IF(C7=1,'Sjekkliste for utfylling'!H17,\" \")","v":" "}]
[{"$f":"'Sjekkliste for utfylling'!A20","v":5},{"$f":"IF('Sjekkliste for utfylling'!F20<>\"\",1,0)","v":0},0,null,{"$f":"IF($C8=1,'Sjekkliste for utfylling'!A20,\"\")","v":""},{"$f":"IF($C8=1,'Sjekkliste for utfylling'!B20,\"\")","v":""},null,{"$f":"IF(C8=1,'Sjekkliste for utfylling'!H20,\" \")","v":" "}]
[{"$f":"'Sjekkliste for utfylling'!A21","v":6},{"$f":"IF('Sjekkliste for utfylling'!F21<>\"\",1,0)","v":0},0,null,{"$f":"IF($C9=1,'Sjekkliste for utfylling'!A21,\"\")","v":""},{"$f":"IF($C9=1,'Sjekkliste for utfylling'!B21,\"\")","v":""},null,{"$f":"IF(C9=1,'Sjekkliste for utfylling'!H21,\" \")","v":" "}]
[{"$f":"'Sjekkliste for utfylling'!A22","v":7},{"$f":"IF('Sjekkliste for utfylling'!F22<>\"\",1,0)","v":0},0,null,{"$f":"IF($C10=1,'Sjekkliste for utfylling'!A22,\"\")","v":""},{"$f":"IF($C10=1,'Sjekkliste for utfylling'!B22,\"\")","v":""},null,{"$f":"IF(C10=1,'Sjekkliste for utfylling'!H22,\" \")","v":" "}]
[{"$f":"'Sjekkliste for utfylling'!A23","v":8},{"$f":"IF('Sjekkliste for utfylling'!F23<>\"\",1,0)","v":0},0,null,{"$f":"IF($C11=1,'Sjekkliste for utfylling'!A23,\"\")","v":""},{"$f":"IF($C11=1,'Sjekkliste for utfylling'!B23,\"\")","v":""},null,{"$f":"IF(C11=1,'Sjekkliste for utfylling'!H23,\" \")","v":" "}]
[{"$f":"'Sjekkliste for utfylling'!A24","v":9},{"$f":"IF('Sjekkliste for utfylling'!F24<>\"\",1,0)","v":0},0,null,{"$f":"IF($C12=1,'Sjekkliste for utfylling'!A24,\"\")","v":""},{"$f":"IF($C12=1,'Sjekkliste for utfylling'!B24,\"\")","v":""},null,{"$f":"IF(C12=1,'Sjekkliste for utfylling'!H24,\" \")","v":" "}]
[{"$f":"'Sjekkliste for utfylling'!A25","v":10},{"$f":"IF('Sjekkliste for utfylling'!F25<>\"\",1,0)","v":0},0,null,{"$f":"IF($C13=1,'Sjekkliste for utfylling'!A25,\"\")","v":""},{"$f":"IF($C13=1,'Sjekkliste for utfylling'!B25,\"\")","v":""},null,{"$f":"IF(C13=1,'Sjekkliste for utfylling'!H25,\" \")","v":" "}]
[{"$f":"'Sjekkliste for utfylling'!A26","v":11},{"$f":"IF('Sjekkliste for utfylling'!F26<>\"\",1,0)","v":0},0,null,{"$f":"IF($C14=1,'Sjekkliste for utfylling'!A26,\"\")","v":""},{"$f":"IF($C14=1,'Sjekkliste for utfylling'!B26,\"\")","v":""},null,{"$f":"IF(C14=1,'Sjekkliste for utfylling'!H26,\" \")","v":" "}]
[{"$f":"'Sjekkliste for utfylling'!A30","v":12},{"$f":"IF('Sjekkliste for utfylling'!F30<>\"\",1,0)","v":0},0,null,{"$f":"IF($C15=1,'Sjekkliste for utfylling'!A30,\"\")","v":""},{"$f":"IF($C15=1,'Sjekkliste for utfylling'!B30,\"\")","v":""},null,{"$f":"IF(C15=1,'Sjekkliste for utfylling'!H30,\" \")","v":" "}]
[{"$f":"'Sjekkliste for utfylling'!A31","v":13},{"$f":"IF('Sjekkliste for utfylling'!F31<>\"\",1,0)","v":0},0,null,{"$f":"IF($C16=1,'Sjekkliste for utfylling'!A31,\"\")","v":""},{"$f":"IF($C16=1,'Sjekkliste for utfylling'!B31,\"\")","v":""},null,{"$f":"IF(C16=1,'Sjekkliste for utfylling'!H31,\" \")","v":" "}]
[{"$f":"'Sjekkliste for utfylling'!A32","v":14},{"$f":"IF('Sjekkliste for utfylling'!F32<>\"\",1,0)","v":0},0,null,{"$f":"IF($C17=1,'Sjekkliste for utfylling'!A32,\"\")","v":""},{"$f":"IF($C17=1,'Sjekkliste for utfylling'!B32,\"\")","v":""},null,{"$f":"IF(C17=1,'Sjekkliste for utfylling'!H32,\" \")","v":" "}]
[{"$f":"'Sjekkliste for utfylling'!A33","v":15},{"$f":"IF('Sjekkliste for utfylling'!F33<>\"\",1,0)","v":0},0,null,{"$f":"IF($C18=1,'Sjekkliste for utfylling'!A33,\"\")","v":""},{"$f":"IF($C18=1,'Sjekkliste for utfylling'!B33,\"\")","v":""},null,{"$f":"IF(C18=1,'Sjekkliste for utfylling'!H33,\" \")","v":" "}]
[{"$f":"'Sjekkliste for utfylling'!A38","v":16},{"$f":"IF('Sjekkliste for utfylling'!F38<>\"\",1,0)","v":0},0,null,{"$f":"IF($C19=1,'Sjekkliste for utfylling'!A38,\"\")","v":""},{"$f":"IF($C19=1,'Sjekkliste for utfylling'!B38,\"\")","v":""},null,{"$f":"IF(C19=1,'Sjekkliste for utfylling'!H38,\" \")","v":" "}]
[{"$f":"'Sjekkliste for utfylling'!A39","v":17},{"$f":"IF('Sjekkliste for utfylling'!F39<>\"\",1,0)","v":0},0,null,{"$f":"IF($C20=1,'Sjekkliste for utfylling'!A39,\"\")","v":""},{"$f":"IF($C20=1,'Sjekkliste for utfylling'!B39,\"\")","v":""},null,{"$f":"IF(C20=1,'Sjekkliste for utfylling'!H39,\" \")","v":" "}]
[{"$f":"'Sjekkliste for utfylling'!A40","v":18},{"$f":"IF('Sjekkliste for utfylling'!F40<>\"\",1,0)","v":0},0,null,{"$f":"IF($C21=1,'Sjekkliste for utfylling'!A40,\"\")","v":""},{"$f":"IF($C21=1,'Sjekkliste for utfylling'!B40,\"\")","v":""},null,{"$f":"IF(C21=1,'Sjekkliste for utfylling'!H40,\" \")","v":" "}]
[{"$f":"'Sjekkliste for utfylling'!A41","v":19},{"$f":"IF('Sjekkliste for utfylling'!F41<>\"\",1,0)","v":0},0,null,{"$f":"IF($C22=1,'Sjekkliste for utfylling'!A41,\"\")","v":""},{"$f":"IF($C22=1,'Sjekkliste for utfylling'!B41,\"\")","v":""},null,{"$f":"IF(C22=1,'Sjekkliste for utfylling'!H41,\" \")","v":" "}]
[{"$f":"'Sjekkliste for utfylling'!A42","v":20},{"$f":"IF('Sjekkliste for utfylling'!F42<>\"\",1,0)","v":0},0,null,{"$f":"IF($C23=1,'Sjekkliste for utfylling'!A42,\"\")","v":""},{"$f":"IF($C23=1,'Sjekkliste for utfylling'!B42,\"\")","v":""},null,{"$f":"IF(C23=1,'Sjekkliste for utfylling'!H42,\" \")","v":" "}]
[{"$f":"'Sjekkliste for utfylling'!A43","v":21},{"$f":"IF('Sjekkliste for utfylling'!F43<>\"\",1,0)","v":0},0,null,{"$f":"IF($C24=1,'Sjekkliste for utfylling'!A43,\"\")","v":""},{"$f":"IF($C24=1,'Sjekkliste for utfylling'!B43,\"\")","v":""},null,{"$f":"IF(C24=1,'Sjekkliste for utfylling'!H43,\" \")","v":" "}]
[{"$f":"'Sjekkliste for utfylling'!A44","v":22},{"$f":"IF('Sjekkliste for utfylling'!F44<>\"\",1,0)","v":0},0,null,{"$f":"IF($C25=1,'Sjekkliste for utfylling'!A44,\"\")","v":""},{"$f":"IF($C25=1,'Sjekkliste for utfylling'!B44,\"\")","v":""},null,{"$f":"IF(C25=1,'Sjekkliste for utfylling'!H44,\" \")","v":" "}]
[{"$f":"'Sjekkliste for utfylling'!A45","v":23},{"$f":"IF('Sjekkliste for utfylling'!F45<>\"\",1,0)","v":0},0,null,{"$f":"IF($C26=1,'Sjekkliste for utfylling'!A45,\"\")","v":""},{"$f":"IF($C26=1,'Sjekkliste for utfylling'!B45,\"\")","v":""},null,{"$f":"IF(C26=1,'Sjekkliste for utfylling'!H45,\" \")","v":" "}]
[{"$f":"'Sjekkliste for utfylling'!A46","v":24},{"$f":"IF('Sjekkliste for utfylling'!F46<>\"\",1,0)","v":0},0,null,{"$f":"IF($C27=1,'Sjekkliste for utfylling'!A46,\"\")","v":""},{"$f":"IF($C27=1,'Sjekkliste for utfylling'!B46,\"\")","v":""},null,{"$f":"IF(C27=1,'Sjekkliste for utfylling'!H46,\" \")","v":" "}]
[{"$f":"'Sjekkliste for utfylling'!A47","v":25},{"$f":"IF('Sjekkliste for utfylling'!F47<>\"\",1,0)","v":0},0,null,{"$f":"IF($C28=1,'Sjekkliste for utfylling'!A47,\"\")","v":""},{"$f":"IF($C28=1,'Sjekkliste for utfylling'!B47,\"\")","v":""},null,{"$f":"IF(C28=1,'Sjekkliste for utfylling'!H47,\" \")","v":" "}]
[{"$f":"'Sjekkliste for utfylling'!A48","v":26},{"$f":"IF('Sjekkliste for utfylling'!F48<>\"\",1,0)","v":0},0,null,{"$f":"IF($C29=1,'Sjekkliste for utfylling'!A48,\"\")","v":""},{"$f":"IF($C29=1,'Sjekkliste for utfylling'!B48,\"\")","v":""},null,{"$f":"IF(C29=1,'Sjekkliste for utfylling'!H48,\" \")","v":" "}]
[{"$f":"'Sjekkliste for utfylling'!A49","v":27},{"$f":"IF('Sjekkliste for utfylling'!F49<>\"\",1,0)","v":0},0,null,{"$f":"IF($C30=1,'Sjekkliste for utfylling'!A49,\"\")","v":""},{"$f":"IF($C30=1,'Sjekkliste for utfylling'!B49,\"\")","v":""},null,{"$f":"IF(C30=1,'Sjekkliste for utfylling'!H49,\" \")","v":" "}]
[{"$f":"'Sjekkliste for utfylling'!A51","v":28},{"$f":"IF('Sjekkliste for utfylling'!F51<>\"\",1,0)","v":0},0,null,{"$f":"IF($C31=1,'Sjekkliste for utfylling'!A51,\"\")","v":""},{"$f":"IF($C31=1,'Sjekkliste for utfylling'!B51,\"\")","v":""},null,{"$f":"IF(C31=1,'Sjekkliste for utfylling'!H51,\" \")","v":" "}]
[{"$f":"'Sjekkliste for utfylling'!A52","v":29},{"$f":"IF('Sjekkliste for utfylling'!F52<>\"\",1,0)","v":0},0,null,{"$f":"IF($C32=1,'Sjekkliste for utfylling'!A52,\"\")","v":""},{"$f":"IF($C32=1,'Sjekkliste for utfylling'!B52,\"\")","v":""},null,{"$f":"IF(C32=1,'Sjekkliste for utfylling'!H52,\" \")","v":" "}]
[{"$f":"'Sjekkliste for utfylling'!A54","v":30},{"$f":"IF('Sjekkliste for utfylling'!F54<>\"\",1,0)","v":0},0,null,{"$f":"IF($C33=1,'Sjekkliste for utfylling'!A54,\"\")","v":""},{"$f":"IF($C33=1,'Sjekkliste for utfylling'!B54,\"\")","v":""},null,{"$f":"IF(C33=1,'Sjekkliste for utfylling'!H54,\" \")","v":" "}]
[{"$f":"'Sjekkliste for utfylling'!A58","v":31},{"$f":"IF('Sjekkliste for utfylling'!F58<>\"\",1,0)","v":0},{"$f":"SUM(B34:B34)","v":0},null,{"$f":"IF($C34=1,'Sjekkliste for utfylling'!A58,\"\")","v":""},{"$f":"IF($C34=1,'Sjekkliste for utfylling'!B58,\"\")","v":""},null,{"$f":"IF(C34=1,'Sjekkliste for utfylling'!H58,\" \")","v":" "}]
[{"$f":"'Sjekkliste for utfylling'!A62","v":32},{"$f":"IF('Sjekkliste for utfylling'!F62<>\"\",1,0)","v":0},0,null,{"$f":"IF($C35=1,'Sjekkliste for utfylling'!A62,\"\")","v":""},{"$f":"IF($C35=1,'Sjekkliste for utfylling'!B62,\"\")","v":""},null,{"$f":"IF(C35=1,'Sjekkliste for utfylling'!H62,\" \")","v":" "}]
[{"$f":"'Sjekkliste for utfylling'!A63","v":33},{"$f":"IF('Sjekkliste for utfylling'!F63<>\"\",1,0)","v":0},0,null,{"$f":"IF($C36=1,'Sjekkliste for utfylling'!A63,\"\")","v":""},{"$f":"IF($C36=1,'Sjekkliste for utfylling'!B63,\"\")","v":""},null,{"$f":"IF(C36=1,'Sjekkliste for utfylling'!H63,\" \")","v":" "}]
[{"$f":"'Sjekkliste for utfylling'!A64","v":34},{"$f":"IF('Sjekkliste for utfylling'!F64<>\"\",1,0)","v":0},0,null,{"$f":"IF($C37=1,'Sjekkliste for utfylling'!A64,\"\")","v":""},{"$f":"IF($C37=1,'Sjekkliste for utfylling'!B64,\"\")","v":""},null,{"$f":"IF(C37=1,'Sjekkliste for utfylling'!H64,\" \")","v":" "}]
[{"$f":"'Sjekkliste for utfylling'!A65","v":35},{"$f":"IF('Sjekkliste for utfylling'!F65<>\"\",1,0)","v":0},0,null,{"$f":"IF($C38=1,'Sjekkliste for utfylling'!A65,\"\")","v":""},{"$f":"IF($C38=1,'Sjekkliste for utfylling'!B65,\"\")","v":""},null,{"$f":"IF(C38=1,'Sjekkliste for utfylling'!H65,\" \")","v":" "}]
[{"$f":"'Sjekkliste for utfylling'!A66","v":36},{"$f":"IF('Sjekkliste for utfylling'!F66<>\"\",1,0)","v":0},0,null,{"$f":"IF($C39=1,'Sjekkliste for utfylling'!A66,\"\")","v":""},{"$f":"IF($C39=1,'Sjekkliste for utfylling'!B66,\"\")","v":""},null,{"$f":"IF(C39=1,'Sjekkliste for utfylling'!H66,\" \")","v":" "}]
[{"$f":"'Sjekkliste for utfylling'!A73","v":37},{"$f":"IF('Sjekkliste for utfylling'!F73<>\"\",1,0)","v":0},0,null,{"$f":"IF($C40=1,'Sjekkliste for utfylling'!A73,\"\")","v":""},{"$f":"IF($C40=1,'Sjekkliste for utfylling'!B73,\"\")","v":""},null,{"$f":"IF(C40=1,'Sjekkliste for utfylling'!H73,\" \")","v":" "}]
[{"$f":"'Sjekkliste for utfylling'!A74","v":38},{"$f":"IF('Sjekkliste for utfylling'!F74<>\"\",1,0)","v":0},0,null,{"$f":"IF($C41=1,'Sjekkliste for utfylling'!A74,\"\")","v":""},{"$f":"IF($C41=1,'Sjekkliste for utfylling'!B74,\"\")","v":""},null,{"$f":"IF(C41=1,'Sjekkliste for utfylling'!H74,\" \")","v":" "}]
[{"$f":"'Sjekkliste for utfylling'!A75","v":39},{"$f":"IF('Sjekkliste for utfylling'!F75<>\"\",1,0)","v":0},0,null,{"$f":"IF($C42=1,'Sjekkliste for utfylling'!A75,\"\")","v":""},{"$f":"IF($C42=1,'Sjekkliste for utfylling'!B75,\"\")","v":""},null,{"$f":"IF(C42=1,'Sjekkliste for utfylling'!H75,\" \")","v":" "}]
[{"$f":"'Sjekkliste for utfylling'!A76","v":40},{"$f":"IF('Sjekkliste for utfylling'!F76<>\"\",1,0)","v":0},0,null,{"$f":"IF($C43=1,'Sjekkliste for utfylling'!A76,\"\")","v":""},{"$f":"IF($C43=1,'Sjekkliste for utfylling'!B76,\"\")","v":""},null,{"$f":"IF(C43=1,'Sjekkliste for utfylling'!H76,\" \")","v":" "}]
[{"$f":"'Sjekkliste for utfylling'!A77","v":41},{"$f":"IF('Sjekkliste for utfylling'!F77<>\"\",1,0)","v":0},0,null,{"$f":"IF($C44=1,'Sjekkliste for utfylling'!A77,\"\")","v":""},{"$f":"IF($C44=1,'Sjekkliste for utfylling'!B77,\"\")","v":""},null,{"$f":"IF(C44=1,'Sjekkliste for utfylling'!H77,\" \")","v":" "}]
[{"$f":"'Sjekkliste for utfylling'!A79","v":42},{"$f":"IF('Sjekkliste for utfylling'!F79<>\"\",1,0)","v":0},0,null,{"$f":"IF($C45=1,'Sjekkliste for utfylling'!A79,\"\")","v":""},{"$f":"IF($C45=1,'Sjekkliste for utfylling'!B79,\"\")","v":""},null,{"$f":"IF(C45=1,'Sjekkliste for utfylling'!H79,\" \")","v":" "}]
[{"$f":"'Sjekkliste for utfylling'!A82","v":43},{"$f":"IF('Sjekkliste for utfylling'!F82<>\"\",1,0)","v":0},0,null,{"$f":"IF($C46=1,'Sjekkliste for utfylling'!A82,\"\")","v":""},{"$f":"IF($C46=1,'Sjekkliste for utfylling'!B82,\"\")","v":""},null,{"$f":"IF(C46=1,'Sjekkliste for utfylling'!H82,\" \")","v":" "}]
[{"$f":"'Sjekkliste for utfylling'!A83","v":44},{"$f":"IF('Sjekkliste for utfylling'!F83<>\"\",1,0)","v":0},0,null,{"$f":"IF($C47=1,'Sjekkliste for utfylling'!A83,\"\")","v":""},{"$f":"IF($C47=1,'Sjekkliste for utfylling'!B83,\"\")","v":""},null,{"$f":"IF(C47=1,'Sjekkliste for utfylling'!H83,\" \")","v":" "}]
[{"$f":"'Sjekkliste for utfylling'!A85","v":45},{"$f":"IF('Sjekkliste for utfylling'!F85<>\"\",1,0)","v":0},0,null,{"$f":"IF($C48=1,'Sjekkliste for utfylling'!A85,\"\")","v":""},{"$f":"IF($C48=1,'Sjekkliste for utfylling'!B85,\"\")","v":""},null,{"$f":"IF(C48=1,'Sjekkliste for utfylling'!H85,\" \")","v":" "}]
[{"$f":"'Sjekkliste for utfylling'!A86","v":46},{"$f":"IF('Sjekkliste for utfylling'!F86<>\"\",1,0)","v":0},0,null,{"$f":"IF($C49=1,'Sjekkliste for utfylling'!A86,\"\")","v":""},{"$f":"IF($C49=1,'Sjekkliste for utfylling'!B86,\"\")","v":""},null,{"$f":"IF(C49=1,'Sjekkliste for utfylling'!H86,\" \")","v":" "}]
[{"$f":"'Sjekkliste for utfylling'!A91","v":47},{"$f":"IF('Sjekkliste for utfylling'!F91<>\"\",1,0)","v":0},0,null,{"$f":"IF($C50=1,'Sjekkliste for utfylling'!A91,\"\")","v":""},{"$f":"IF($C50=1,'Sjekkliste for utfylling'!B91,\"\")","v":""},null,{"$f":"IF(C50=1,'Sjekkliste for utfylling'!H91,\" \")","v":" "}]
[{"$f":"'Sjekkliste for utfylling'!A93","v":48},{"$f":"IF('Sjekkliste for utfylling'!F93<>\"\",1,0)","v":0},0,null,{"$f":"IF($C51=1,'Sjekkliste for utfylling'!A93,\"\")","v":""},{"$f":"IF($C51=1,'Sjekkliste for utfylling'!B93,\"\")","v":""},null,{"$f":"IF(C51=1,'Sjekkliste for utfylling'!H93,\" \")","v":" "}]
[{"$f":"'Sjekkliste for utfylling'!A95","v":49},{"$f":"IF('Sjekkliste for utfylling'!F95<>\"\",1,0)","v":0},0,null,{"$f":"IF($C52=1,'Sjekkliste for utfylling'!A95,\"\")","v":""},{"$f":"IF($C52=1,'Sjekkliste for utfylling'!B95,\"\")","v":""},null,{"$f":"IF(C52=1,'Sjekkliste for utfylling'!H95,\" \")","v":" "}]
[{"$f":"'Sjekkliste for utfylling'!A96","v":50},{"$f":"IF('Sjekkliste for utfylling'!F96<>\"\",1,0)","v":0},0,null,{"$f":"IF($C53=1,'Sjekkliste for utfylling'!A96,\"\")","v":""},{"$f":"IF($C53=1,'Sjekkliste for utfylling'!B96,\"\")","v":""},null,{"$f":"IF(C53=1,'Sjekkliste for utfylling'!H96,\" \")","v":" "}]
[{"$f":"'Sjekkliste for utfylling'!A97","v":51},{"$f":"IF('Sjekkliste for utfylling'!F97<>\"\",1,0)","v":0},0,null,{"$f":"IF($C54=1,'Sjekkliste for utfylling'!A97,\"\")","v":""},{"$f":"IF($C54=1,'Sjekkliste for utfylling'!B97,\"\")","v":""},null,{"$f":"IF(C54=1,'Sjekkliste for utfylling'!H97,\" \")","v":" "}]
[{"$f":"'Sjekkliste for utfylling'!A99","v":52},{"$f":"IF('Sjekkliste for utfylling'!F99<>\"\",1,0)","v":0},0,null,{"$f":"IF($C55=1,'Sjekkliste for utfylling'!A99,\"\")","v":""},{"$f":"IF($C55=1,'Sjekkliste for utfylling'!B99,\"\")","v":""},null,{"$f":"IF(C55=1,'Sjekkliste for utfylling'!H99,\" \")","v":" "}]
[{"$f":"'Sjekkliste for utfylling'!A103","v":53},{"$f":"IF('Sjekkliste for utfylling'!F103<>\"\",1,0)","v":0},0,null,{"$f":"IF($C56=1,'Sjekkliste for utfylling'!A103,\"\")","v":""},{"$f":"IF($C56=1,'Sjekkliste for utfylling'!B103,\"\")","v":""},null,{"$f":"IF(C56=1,'Sjekkliste for utfylling'!H103,\" \")","v":" "}]
[{"$f":"'Sjekkliste for utfylling'!A110","v":54},{"$f":"IF('Sjekkliste for utfylling'!F110<>\"\",1,0)","v":0},0,null,{"$f":"IF($C57=1,'Sjekkliste for utfylling'!A110,\"\")","v":""},{"$f":"IF($C57=1,'Sjekkliste for utfylling'!B110,\"\")","v":""},null,{"$f":"IF(C57=1,'Sjekkliste for utfylling'!H110,\" \")","v":" "}]
[{"$f":"'Sjekkliste for utfylling'!A114","v":55},{"$f":"IF('Sjekkliste for utfylling'!F114<>\"\",1,0)","v":0},0,null,{"$f":"IF($C58=1,'Sjekkliste for utfylling'!A114,\"\")","v":""},{"$f":"IF($C58=1,'Sjekkliste for utfylling'!B114,\"\")","v":""},null,{"$f":"IF(C58=1,'Sjekkliste for utfylling'!H114,\" \")","v":" "}]
[{"$f":"'Sjekkliste for utfylling'!A115","v":56},{"$f":"IF('Sjekkliste for utfylling'!F115<>\"\",1,0)","v":0},0,null,{"$f":"IF($C59=1,'Sjekkliste for utfylling'!A115,\"\")","v":""},{"$f":"IF($C59=1,'Sjekkliste for utfylling'!B115,\"\")","v":""},null,{"$f":"IF(C59=1,'Sjekkliste for utfylling'!H115,\" \")","v":" "}]
[{"$f":"'Sjekkliste for utfylling'!A116","v":57},{"$f":"IF('Sjekkliste for utfylling'!F116<>\"\",1,0)","v":0},0,null,{"$f":"IF($C60=1,'Sjekkliste for utfylling'!A116,\"\")","v":""},{"$f":"IF($C60=1,'Sjekkliste for utfylling'!B116,\"\")","v":""},null,{"$f":"IF(C60=1,'Sjekkliste for utfylling'!H116,\" \")","v":" "}]
[{"$f":"'Sjekkliste for utfylling'!A117","v":58},{"$f":"IF('Sjekkliste for utfylling'!F117<>\"\",1,0)","v":0},0,null,{"$f":"IF($C61=1,'Sjekkliste for utfylling'!A117,\"\")","v":""},{"$f":"IF($C61=1,'Sjekkliste for utfylling'!B117,\"\")","v":""},null,{"$f":"IF(C61=1,'Sjekkliste for utfylling'!H117,\" \")","v":" "}]
[{"$f":"'Sjekkliste for utfylling'!A118","v":59},{"$f":"IF('Sjekkliste for utfylling'!F118<>\"\",1,0)","v":0},0,null,{"$f":"IF($C62=1,'Sjekkliste for utfylling'!A118,\"\")","v":""},{"$f":"IF($C62=1,'Sjekkliste for utfylling'!B118,\"\")","v":""},null,{"$f":"IF(C62=1,'Sjekkliste for utfylling'!H118,\" \")","v":" "}]
[{"$f":"'Sjekkliste for utfylling'!A119","v":60},{"$f":"IF('Sjekkliste for utfylling'!F119<>\"\",1,0)","v":0},0,null,{"$f":"IF($C63=1,'Sjekkliste for utfylling'!A119,\"\")","v":""},{"$f":"IF($C63=1,'Sjekkliste for utfylling'!B119,\"\")","v":""},null,{"$f":"IF(C63=1,'Sjekkliste for utfylling'!H119,\" \")","v":" "}]
[{"$f":"'Sjekkliste for utfylling'!A120","v":61},{"$f":"IF('Sjekkliste for utfylling'!F120<>\"\",1,0)","v":0},0,null,{"$f":"IF($C64=1,'Sjekkliste for utfylling'!A120,\"\")","v":""},{"$f":"IF($C64=1,'Sjekkliste for utfylling'!B120,\"\")","v":""},null,{"$f":"IF(C64=1,'Sjekkliste for utfylling'!H120,\" \")","v":" "}]
[{"$f":"'Sjekkliste for utfylling'!A126","v":62},{"$f":"IF('Sjekkliste for utfylling'!F126<>\"\",1,0)","v":0},0,null,{"$f":"IF($C65=1,'Sjekkliste for utfylling'!A126,\"\")","v":""},{"$f":"IF($C65=1,'Sjekkliste for utfylling'!B126,\"\")","v":""},null,{"$f":"IF(C65=1,'Sjekkliste for utfylling'!H126,\" \")","v":" "}]
[{"$f":"'Sjekkliste for utfylling'!A128","v":63},{"$f":"IF('Sjekkliste for utfylling'!F128<>\"\",1,0)","v":0},{"$f":"SUM(B66:B66)","v":0},null,{"$f":"IF($C66=1,'Sjekkliste for utfylling'!A128,\"\")","v":""},{"$f":"IF($C66=1,'Sjekkliste for utfylling'!B128,\"\")","v":""},null,{"$f":"IF(C66=1,'Sjekkliste for utfylling'!H128,\" \")","v":" "}]
[{"$f":"'Sjekkliste for utfylling'!A129","v":64},{"$f":"IF('Sjekkliste for utfylling'!F129<>\"\",1,0)","v":0},0,null,{"$f":"IF($C67=1,'Sjekkliste for utfylling'!A129,\"\")","v":""},{"$f":"IF($C67=1,'Sjekkliste for utfylling'!B129,\"\")","v":""},null,{"$f":"IF(C67=1,'Sjekkliste for utfylling'!H129,\" \")","v":" "}]
[{"$f":"'Sjekkliste for utfylling'!A130","v":65},{"$f":"IF('Sjekkliste for utfylling'!F130<>\"\",1,0)","v":0},0,null,{"$f":"IF($C68=1,'Sjekkliste for utfylling'!A130,\"\")","v":""},{"$f":"IF($C68=1,'Sjekkliste for utfylling'!B130,\"\")","v":""},null,{"$f":"IF(C68=1,'Sjekkliste for utfylling'!H130,\" \")","v":" "}]
[{"$f":"'Sjekkliste for utfylling'!A135","v":66},{"$f":"IF('Sjekkliste for utfylling'!F135<>\"\",1,0)","v":0},0,null,{"$f":"IF($C69=1,'Sjekkliste for utfylling'!A135,\"\")","v":""},{"$f":"IF($C69=1,'Sjekkliste for utfylling'!B135,\"\")","v":""},null,{"$f":"IF(C69=1,'Sjekkliste for utfylling'!H135,\" \")","v":" "}]
[{"$f":"'Sjekkliste for utfylling'!A136","v":67},{"$f":"IF('Sjekkliste for utfylling'!F136<>\"\",1,0)","v":0},0,null,{"$f":"IF($C70=1,'Sjekkliste for utfylling'!A136,\"\")","v":""},{"$f":"IF($C70=1,'Sjekkliste for utfylling'!B136,\"\")","v":""},null,{"$f":"IF(C70=1,'Sjekkliste for utfylling'!H136,\" \")","v":" "}]
[{"$f":"'Sjekkliste for utfylling'!A137","v":68},{"$f":"IF('Sjekkliste for utfylling'!F137<>\"\",1,0)","v":0},0,null,{"$f":"IF($C71=1,'Sjekkliste for utfylling'!A137,\"\")","v":""},{"$f":"IF($C71=1,'Sjekkliste for utfylling'!B137,\"\")","v":""},null,{"$f":"IF(C71=1,'Sjekkliste for utfylling'!H137,\" \")","v":" "}]
[{"$f":"'Sjekkliste for utfylling'!A138","v":69},{"$f":"IF('Sjekkliste for utfylling'!F138<>\"\",1,0)","v":0},0,null,{"$f":"IF($C72=1,'Sjekkliste for utfylling'!A138,\"\")","v":""},{"$f":"IF($C72=1,'Sjekkliste for utfylling'!B138,\"\")","v":""},null,{"$f":"IF(C72=1,'Sjekkliste for utfylling'!H138,\" \")","v":" "}]
[{"$f":"'Sjekkliste for utfylling'!A140","v":70},{"$f":"IF('Sjekkliste for utfylling'!F140<>\"\",1,0)","v":0},0,null,{"$f":"IF($C73=1,'Sjekkliste for utfylling'!A140,\"\")","v":""},{"$f":"IF($C73=1,'Sjekkliste for utfylling'!B140,\"\")","v":""},null,{"$f":"IF(C73=1,'Sjekkliste for utfylling'!H140,\" \")","v":" "}]
[{"$f":"'Sjekkliste for utfylling'!A155","v":73},{"$f":"IF('Sjekkliste for utfylling'!F155<>\"\",1,0)","v":0},0,null,{"$f":"IF($C74=1,'Sjekkliste for utfylling'!A155,\"\")","v":""},{"$f":"IF($C74=1,'Sjekkliste for utfylling'!B155,\"\")","v":""},null,{"$f":"IF(C74=1,'Sjekkliste for utfylling'!H155,\" \")","v":" "}]
[{"$f":"'Sjekkliste for utfylling'!A157","v":74},{"$f":"IF('Sjekkliste for utfylling'!F157<>\"\",1,0)","v":0},0,null,{"$f":"IF($C75=1,'Sjekkliste for utfylling'!A157,\"\")","v":""},{"$f":"IF($C75=1,'Sjekkliste for utfylling'!B157,\"\")","v":""},null,{"$f":"IF(C75=1,'Sjekkliste for utfylling'!H157,\" \")","v":" "}]
[{"$f":"'Sjekkliste for utfylling'!A158","v":75},{"$f":"IF('Sjekkliste for utfylling'!F158<>\"\",1,0)","v":0},0,null,{"$f":"IF($C76=1,'Sjekkliste for utfylling'!A158,\"\")","v":""},{"$f":"IF($C76=1,'Sjekkliste for utfylling'!B158,\"\")","v":""},null,{"$f":"IF(C76=1,'Sjekkliste for utfylling'!H158,\" \")","v":" "}]
[{"$f":"'Sjekkliste for utfylling'!A159","v":76},{"$f":"IF('Sjekkliste for utfylling'!F159<>\"\",1,0)","v":0},0,null,{"$f":"IF($C77=1,'Sjekkliste for utfylling'!A159,\"\")","v":""},{"$f":"IF($C77=1,'Sjekkliste for utfylling'!B159,\"\")","v":""},null,{"$f":"IF(C77=1,'Sjekkliste for utfylling'!H159,\" \")","v":" "}]
[{"$f":"'Sjekkliste for utfylling'!A160","v":77},{"$f":"IF('Sjekkliste for utfylling'!F160<>\"\",1,0)","v":0},0,null,{"$f":"IF($C78=1,'Sjekkliste for utfylling'!A160,\"\")","v":""},{"$f":"IF($C78=1,'Sjekkliste for utfylling'!B160,\"\")","v":""},null,{"$f":"IF(C78=1,'Sjekkliste for utfylling'!H160,\" \")","v":" "}]
[{"$f":"'Sjekkliste for utfylling'!A161","v":78},{"$f":"IF('Sjekkliste for utfylling'!F161<>\"\",1,0)","v":0},0,null,{"$f":"IF($C79=1,'Sjekkliste for utfylling'!A161,\"\")","v":""},{"$f":"IF($C79=1,'Sjekkliste for utfylling'!B161,\"\")","v":""},null,{"$f":"IF(C79=1,'Sjekkliste for utfylling'!H161,\" \")","v":" "}]
[{"$f":"'Sjekkliste for utfylling'!A163","v":79},{"$f":"IF('Sjekkliste for utfylling'!F163<>\"\",1,0)","v":0},0,null,{"$f":"IF($C80=1,'Sjekkliste for utfylling'!A163,\"\")","v":""},{"$f":"IF($C80=1,'Sjekkliste for utfylling'!B163,\"\")","v":""},null,{"$f":"IF(C80=1,'Sjekkliste for utfylling'!H163,\" \")","v":" "}]
[{"$f":"'Sjekkliste for utfylling'!A164","v":80},{"$f":"IF('Sjekkliste for utfylling'!F164<>\"\",1,0)","v":0},0,null,{"$f":"IF($C81=1,'Sjekkliste for utfylling'!A164,\"\")","v":""},{"$f":"IF($C81=1,'Sjekkliste for utfylling'!B164,\"\")","v":""},null,{"$f":"IF(C81=1,'Sjekkliste for utfylling'!H164,\" \")","v":" "}]
[{"$f":"'Sjekkliste for utfylling'!A167","v":81},{"$f":"IF('Sjekkliste for utfylling'!F167<>\"\",1,0)","v":0},0,null,{"$f":"IF($C82=1,'Sjekkliste for utfylling'!A167,\"\")","v":""},{"$f":"IF($C82=1,'Sjekkliste for utfylling'!B167,\"\")","v":""},null,{"$f":"IF(C82=1,'Sjekkliste for utfylling'!H167,\" \")","v":" "}]
[{"$f":"'Sjekkliste for utfylling'!A168","v":82},{"$f":"IF('Sjekkliste for utfylling'!F168<>\"\",1,0)","v":0},0,null,{"$f":"IF($C83=1,'Sjekkliste for utfylling'!A168,\"\")","v":""},{"$f":"IF($C83=1,'Sjekkliste for utfylling'!B168,\"\")","v":""},null,{"$f":"IF(C83=1,'Sjekkliste for utfylling'!H168,\" \")","v":" "}]
[{"$f":"'Sjekkliste for utfylling'!A169","v":83},{"$f":"IF('Sjekkliste for utfylling'!F169<>\"\",1,0)","v":0},0,null,{"$f":"IF($C84=1,'Sjekkliste for utfylling'!A169,\"\")","v":""},{"$f":"IF($C84=1,'Sjekkliste for utfylling'!B169,\"\")","v":""},null,{"$f":"IF(C84=1,'Sjekkliste for utfylling'!H169,\" \")","v":" "}]
[{"$f":"'Sjekkliste for utfylling'!A171","v":84},{"$f":"IF('Sjekkliste for utfylling'!F171<>\"\",1,0)","v":0},0,null,{"$f":"IF($C85=1,'Sjekkliste for utfylling'!A171,\"\")","v":""},{"$f":"IF($C85=1,'Sjekkliste for utfylling'!B171,\"\")","v":""},null,{"$f":"IF(C85=1,'Sjekkliste for utfylling'!H171,\" \")","v":" "}]
[{"$f":"'Sjekkliste for utfylling'!A173","v":85},{"$f":"IF('Sjekkliste for utfylling'!F173<>\"\",1,0)","v":0},0,null,{"$f":"IF($C86=1,'Sjekkliste for utfylling'!A173,\"\")","v":""},{"$f":"IF($C86=1,'Sjekkliste for utfylling'!B173,\"\")","v":""},null,{"$f":"IF(C86=1,'Sjekkliste for utfylling'!H173,\" \")","v":" "}]
[{"$f":"'Sjekkliste for utfylling'!A174","v":86},{"$f":"IF('Sjekkliste for utfylling'!F174<>\"\",1,0)","v":0},0,null,{"$f":"IF($C87=1,'Sjekkliste for utfylling'!A174,\"\")","v":""},{"$f":"IF($C87=1,'Sjekkliste for utfylling'!B174,\"\")","v":""},null,{"$f":"IF(C87=1,'Sjekkliste for utfylling'!H174,\" \")","v":" "}]
[{"$f":"'Sjekkliste for utfylling'!A175","v":87},{"$f":"IF('Sjekkliste for utfylling'!F175<>\"\",1,0)","v":0},0,null,{"$f":"IF($C88=1,'Sjekkliste for utfylling'!A175,\"\")","v":""},{"$f":"IF($C88=1,'Sjekkliste for utfylling'!B175,\"\")","v":""},null,{"$f":"IF(C88=1,'Sjekkliste for utfylling'!H175,\" \")","v":" "}]
[{"$f":"'Sjekkliste for utfylling'!A176","v":88},{"$f":"IF('Sjekkliste for utfylling'!F176<>\"\",1,0)","v":0},0,null,{"$f":"IF($C89=1,'Sjekkliste for utfylling'!A176,\"\")","v":""},{"$f":"IF($C89=1,'Sjekkliste for utfylling'!B176,\"\")","v":""},null,{"$f":"IF(C89=1,'Sjekkliste for utfylling'!H176,\" \")","v":" "}]
[{"$f":"'Sjekkliste for utfylling'!A177","v":89},{"$f":"IF('Sjekkliste for utfylling'!F177<>\"\",1,0)","v":0},0,null,{"$f":"IF($C90=1,'Sjekkliste for utfylling'!A177,\"\")","v":""},{"$f":"IF($C90=1,'Sjekkliste for utfylling'!B177,\"\")","v":""},null,{"$f":"IF(C90=1,'Sjekkliste for utfylling'!H177,\" \")","v":" "}]
[{"$f":"'Sjekkliste for utfylling'!A178","v":90},{"$f":"IF('Sjekkliste for utfylling'!F178<>\"\",1,0)","v":0},0,null,{"$f":"IF($C91=1,'Sjekkliste for utfylling'!A178,\"\")","v":""},{"$f":"IF($C91=1,'Sjekkliste for utfylling'!B178,\"\")","v":""},null,{"$f":"IF(C91=1,'Sjekkliste for utfylling'!H178,\" \")","v":" "}]
[{"$f":"'Sjekkliste for utfylling'!A179","v":91},{"$f":"IF('Sjekkliste for utfylling'!F179<>\"\",1,0)","v":0},0,null,{"$f":"IF($C92=1,'Sjekkliste for utfylling'!A179,\"\")","v":""},{"$f":"IF($C92=1,'Sjekkliste for utfylling'!B179,\"\")","v":""},null,{"$f":"IF(C92=1,'Sjekkliste for utfylling'!H179,\" \")","v":" "}]
[{"$f":"'Sjekkliste for utfylling'!A180","v":92},{"$f":"IF('Sjekkliste for utfylling'!F180<>\"\",1,0)","v":0},0,null,{"$f":"IF($C93=1,'Sjekkliste for utfylling'!A180,\"\")","v":""},{"$f":"IF($C93=1,'Sjekkliste for utfylling'!B180,\"\")","v":""},null,{"$f":"IF(C93=1,'Sjekkliste for utfylling'!H180,\" \")","v":" "}]
[{"$f":"'Sjekkliste for utfylling'!A181","v":93},{"$f":"IF('Sjekkliste for utfylling'!F181<>\"\",1,0)","v":0},0,null,{"$f":"IF($C94=1,'Sjekkliste for utfylling'!A181,\"\")","v":""},{"$f":"IF($C94=1,'Sjekkliste for utfylling'!B181,\"\")","v":""},null,{"$f":"IF(C94=1,'Sjekkliste for utfylling'!H181,\" \")","v":" "}]
[{"$f":"'Sjekkliste for utfylling'!A182","v":94},{"$f":"IF('Sjekkliste for utfylling'!F182<>\"\",1,0)","v":0},0,null,{"$f":"IF($C95=1,'Sjekkliste for utfylling'!A182,\"\")","v":""},{"$f":"IF($C95=1,'Sjekkliste for utfylling'!B182,\"\")","v":""},null,{"$f":"IF(C95=1,'Sjekkliste for utfylling'!H182,\" \")","v":" "}]
[{"$f":"'Sjekkliste for utfylling'!A186","v":95},{"$f":"IF('Sjekkliste for utfylling'!F186<>\"\",1,0)","v":0},0,null,{"$f":"IF($C96=1,'Sjekkliste for utfylling'!A186,\"\")","v":""},{"$f":"IF($C96=1,'Sjekkliste for utfylling'!B186,\"\")","v":""},null,{"$f":"IF(C96=1,'Sjekkliste for utfylling'!H186,\" \")","v":" "}]
[{"$f":"'Sjekkliste for utfylling'!A187","v":96},{"$f":"IF('Sjekkliste for utfylling'!F187<>\"\",1,0)","v":0},0,null,{"$f":"IF($C97=1,'Sjekkliste for utfylling'!A187,\"\")","v":""},{"$f":"IF($C97=1,'Sjekkliste for utfylling'!B187,\"\")","v":""},null,{"$f":"IF(C97=1,'Sjekkliste for utfylling'!H187,\" \")","v":" "}]
[{"$f":"'Sjekkliste for utfylling'!A188","v":97},{"$f":"IF('Sjekkliste for utfylling'!F188<>\"\",1,0)","v":0},{"$f":"SUM(B98:B98)","v":0},null,{"$f":"IF($C98=1,'Sjekkliste for utfylling'!A188,\"\")","v":""},{"$f":"IF($C98=1,'Sjekkliste for utfylling'!B188,\"\")","v":""},null,{"$f":"IF(C98=1,'Sjekkliste for utfylling'!H188,\" \")","v":" "}]
[{"$f":"'Sjekkliste for utfylling'!A189","v":98},{"$f":"IF('Sjekkliste for utfylling'!F189<>\"\",1,0)","v":0},0,null,{"$f":"IF($C99=1,'Sjekkliste for utfylling'!A189,\"\")","v":""},{"$f":"IF($C99=1,'Sjekkliste for utfylling'!B189,\"\")","v":""},null,{"$f":"IF(C99=1,'Sjekkliste for utfylling'!H189,\" \")","v":" "}]
[{"$f":"'Sjekkliste for utfylling'!A197","v":99},{"$f":"IF('Sjekkliste for utfylling'!F197<>\"\",1,0)","v":0},0,null,{"$f":"IF($C100=1,'Sjekkliste for utfylling'!A197,\"\")","v":""},{"$f":"IF($C100=1,'Sjekkliste for utfylling'!B197,\"\")","v":""},null,{"$f":"IF(C100=1,'Sjekkliste for utfylling'!H197,\" \")","v":" "}]
[{"$f":"'Sjekkliste for utfylling'!A198","v":100},{"$f":"IF('Sjekkliste for utfylling'!F198<>\"\",1,0)","v":0},0,null,{"$f":"IF($C101=1,'Sjekkliste for utfylling'!A198,\"\")","v":""},{"$f":"IF($C101=1,'Sjekkliste for utfylling'!B198,\"\")","v":""},null,{"$f":"IF(C101=1,'Sjekkliste for utfylling'!H198,\" \")","v":" "}]
[{"$f":"'Sjekkliste for utfylling'!A199","v":101},{"$f":"IF('Sjekkliste for utfylling'!F199<>\"\",1,0)","v":0},0,null,{"$f":"IF($C102=1,'Sjekkliste for utfylling'!A199,\"\")","v":""},{"$f":"IF($C102=1,'Sjekkliste for utfylling'!B199,\"\")","v":""},null,{"$f":"IF(C102=1,'Sjekkliste for utfylling'!H199,\" \")","v":" "}]
[{"$f":"'Sjekkliste for utfylling'!A204","v":105},{"$f":"IF('Sjekkliste for utfylling'!F204<>\"\",1,0)","v":0},0,null,{"$f":"IF($C103=1,'Sjekkliste for utfylling'!A204,\"\")","v":""},{"$f":"IF($C103=1,'Sjekkliste for utfylling'!B204,\"\")","v":""},null,{"$f":"IF(C103=1,'Sjekkliste for utfylling'!H204,\" \")","v":" "}]
[{"$f":"'Sjekkliste for utfylling'!A205","v":106},{"$f":"IF('Sjekkliste for utfylling'!F205<>\"\",1,0)","v":0},0,null,{"$f":"IF($C104=1,'Sjekkliste for utfylling'!A205,\"\")","v":""},{"$f":"IF($C104=1,'Sjekkliste for utfylling'!B205,\"\")","v":""},null,{"$f":"IF(C104=1,'Sjekkliste for utfylling'!H205,\" \")","v":" "}]
[{"$f":"'Sjekkliste for utfylling'!A206","v":107},{"$f":"IF('Sjekkliste for utfylling'!F206<>\"\",1,0)","v":0},0,null,{"$f":"IF($C105=1,'Sjekkliste for utfylling'!A206,\"\")","v":""},{"$f":"IF($C105=1,'Sjekkliste for utfylling'!B206,\"\")","v":""},null,{"$f":"IF(C105=1,'Sjekkliste for utfylling'!H206,\" \")","v":" "}]
[{"$f":"'Sjekkliste for utfylling'!A207","v":108},{"$f":"IF('Sjekkliste for utfylling'!F207<>\"\",1,0)","v":0},0,null,{"$f":"IF($C106=1,'Sjekkliste for utfylling'!A207,\"\")","v":""},{"$f":"IF($C106=1,'Sjekkliste for utfylling'!B207,\"\")","v":""},null,{"$f":"IF(C106=1,'Sjekkliste for utfylling'!H207,\" \")","v":" "}]
[{"$f":"'Sjekkliste for utfylling'!A208","v":109},{"$f":"IF('Sjekkliste for utfylling'!F208<>\"\",1,0)","v":0},0,null,{"$f":"IF($C107=1,'Sjekkliste for utfylling'!A208,\"\")","v":""},{"$f":"IF($C107=1,'Sjekkliste for utfylling'!B208,\"\")","v":""},null,{"$f":"IF(C107=1,'Sjekkliste for utfylling'!H208,\" \")","v":" "}]
[{"$f":"'Sjekkliste for utfylling'!A216","v":110},{"$f":"IF('Sjekkliste for utfylling'!F216<>\"\",1,0)","v":0},0,null,{"$f":"IF($C108=1,'Sjekkliste for utfylling'!A216,\"\")","v":""},{"$f":"IF($C108=1,'Sjekkliste for utfylling'!B216,\"\")","v":""},null,{"$f":"IF(C108=1,'Sjekkliste for utfylling'!H216,\" \")","v":" "}]
[{"$f":"'Sjekkliste for utfylling'!A219","v":112},{"$f":"IF('Sjekkliste for utfylling'!F219<>\"\",1,0)","v":0},0,null,{"$f":"IF($C109=1,'Sjekkliste for utfylling'!A219,\"\")","v":""},{"$f":"IF($C109=1,'Sjekkliste for utfylling'!B219,\"\")","v":""},null,{"$f":"IF(C109=1,'Sjekkliste for utfylling'!H219,\" \")","v":" "}]
[{"$f":"'Sjekkliste for utfylling'!A221","v":113},{"$f":"IF('Sjekkliste for utfylling'!F221<>\"\",1,0)","v":0},0,null,{"$f":"IF($C110=1,'Sjekkliste for utfylling'!A221,\"\")","v":""},{"$f":"IF($C110=1,'Sjekkliste for utfylling'!B221,\"\")","v":""},null,{"$f":"IF(C110=1,'Sjekkliste for utfylling'!H221,\" \")","v":" "}]
[{"$f":"'Sjekkliste for utfylling'!A223","v":115},{"$f":"IF('Sjekkliste for utfylling'!F223<>\"\",1,0)","v":0},0,null,{"$f":"IF($C111=1,'Sjekkliste for utfylling'!A223,\"\")","v":""},{"$f":"IF($C111=1,'Sjekkliste for utfylling'!B223,\"\")","v":""},null,{"$f":"IF(C111=1,'Sjekkliste for utfylling'!H223,\" \")","v":" "}]
[{"$f":"'Sjekkliste for utfylling'!A225","v":117},{"$f":"IF('Sjekkliste for utfylling'!F225<>\"\",1,0)","v":0},0,null,{"$f":"IF($C112=1,'Sjekkliste for utfylling'!A225,\"\")","v":""},{"$f":"IF($C112=1,'Sjekkliste for utfylling'!B225,\"\")","v":""},null,{"$f":"IF(C112=1,'Sjekkliste for utfylling'!H225,\" \")","v":" "}]
[{"$f":"'Sjekkliste for utfylling'!A228","v":118},{"$f":"IF('Sjekkliste for utfylling'!F228<>\"\",1,0)","v":0},0,null,{"$f":"IF($C113=1,'Sjekkliste for utfylling'!A228,\"\")","v":""},{"$f":"IF($C113=1,'Sjekkliste for utfylling'!B228,\"\")","v":""},null,{"$f":"IF(C113=1,'Sjekkliste for utfylling'!H228,\" \")","v":" "}]
[{"$f":"'Sjekkliste for utfylling'!A240","v":123},{"$f":"IF('Sjekkliste for utfylling'!F240<>\"\",1,0)","v":0},0,null,{"$f":"IF($C114=1,'Sjekkliste for utfylling'!A240,\"\")","v":""},{"$f":"IF($C114=1,'Sjekkliste for utfylling'!B240,\"\")","v":""},null,{"$f":"IF(C114=1,'Sjekkliste for utfylling'!H240,\" \")","v":" "}]
[{"$f":"'Sjekkliste for utfylling'!A244","v":124},{"$f":"IF('Sjekkliste for utfylling'!F244<>\"\",1,0)","v":0},0,null,{"$f":"IF($C115=1,'Sjekkliste for utfylling'!A244,\"\")","v":""},{"$f":"IF($C115=1,'Sjekkliste for utfylling'!B244,\"\")","v":""},null,{"$f":"IF(C115=1,'Sjekkliste for utfylling'!H244,\" \")","v":" "}]
[{"$f":"'Sjekkliste for utfylling'!A245","v":125},{"$f":"IF('Sjekkliste for utfylling'!F245<>\"\",1,0)","v":0},0,null,{"$f":"IF($C116=1,'Sjekkliste for utfylling'!A245,\"\")","v":""},{"$f":"IF($C116=1,'Sjekkliste for utfylling'!B245,\"\")","v":""},null,{"$f":"IF(C116=1,'Sjekkliste for utfylling'!H245,\" \")","v":" "}]
[{"$f":"'Sjekkliste for utfylling'!A246","v":126},{"$f":"IF('Sjekkliste for utfylling'!F246<>\"\",1,0)","v":0},0,null,{"$f":"IF($C117=1,'Sjekkliste for utfylling'!A246,\"\")","v":""},{"$f":"IF($C117=1,'Sjekkliste for utfylling'!B246,\"\")","v":""},null,{"$f":"IF(C117=1,'Sjekkliste for utfylling'!H246,\" \")","v":" "}]
[{"$f":"'Sjekkliste for utfylling'!A249","v":127},{"$f":"IF('Sjekkliste for utfylling'!F249<>\"\",1,0)","v":0},0,null,{"$f":"IF($C118=1,'Sjekkliste for utfylling'!A249,\"\")","v":""},{"$f":"IF($C118=1,'Sjekkliste for utfylling'!B249,\"\")","v":""},null,{"$f":"IF(C118=1,'Sjekkliste for utfylling'!H249,\" \")","v":" "}]
[{"$f":"'Sjekkliste for utfylling'!A251","v":128},{"$f":"IF('Sjekkliste for utfylling'!F251<>\"\",1,0)","v":0},0,null,{"$f":"IF($C119=1,'Sjekkliste for utfylling'!A251,\"\")","v":""},{"$f":"IF($C119=1,'Sjekkliste for utfylling'!B251,\"\")","v":""},null,{"$f":"IF(C119=1,'Sjekkliste for utfylling'!H251,\" \")","v":" "}]
[{"$f":"'Sjekkliste for utfylling'!A253","v":129},{"$f":"IF('Sjekkliste for utfylling'!F253<>\"\",1,0)","v":0},0,null,{"$f":"IF($C120=1,'Sjekkliste for utfylling'!A253,\"\")","v":""},{"$f":"IF($C120=1,'Sjekkliste for utfylling'!B253,\"\")","v":""},null,{"$f":"IF(C120=1,'Sjekkliste for utfylling'!H253,\" \")","v":" "}]
[{"$f":"'Sjekkliste for utfylling'!A257","v":130},{"$f":"IF('Sjekkliste for utfylling'!F257<>\"\",1,0)","v":0},0,null,{"$f":"IF($C121=1,'Sjekkliste for utfylling'!A257,\"\")","v":""},{"$f":"IF($C121=1,'Sjekkliste for utfylling'!B257,\"\")","v":""},null,{"$f":"IF(C121=1,'Sjekkliste for utfylling'!H257,\" \")","v":" "}]
[{"$f":"'Sjekkliste for utfylling'!A258","v":131},{"$f":"IF('Sjekkliste for utfylling'!F258<>\"\",1,0)","v":0},0,null,{"$f":"IF($C122=1,'Sjekkliste for utfylling'!A258,\"\")","v":""},{"$f":"IF($C122=1,'Sjekkliste for utfylling'!B258,\"\")","v":""},null,{"$f":"IF(C122=1,'Sjekkliste for utfylling'!H258,\" \")","v":" "}]
[{"$f":"'Sjekkliste for utfylling'!A259","v":132},{"$f":"IF('Sjekkliste for utfylling'!F259<>\"\",1,0)","v":0},0,null,{"$f":"IF($C123=1,'Sjekkliste for utfylling'!A259,\"\")","v":""},{"$f":"IF($C123=1,'Sjekkliste for utfylling'!B259,\"\")","v":""},null,{"$f":"IF(C123=1,'Sjekkliste for utfylling'!H259,\" \")","v":" "}]
[{"$f":"'Sjekkliste for utfylling'!A260","v":133},{"$f":"IF('Sjekkliste for utfylling'!F260<>\"\",1,0)","v":0},0,null,{"$f":"IF($C124=1,'Sjekkliste for utfylling'!A260,\"\")","v":""},{"$f":"IF($C124=1,'Sjekkliste for utfylling'!B260,\"\")","v":""},null,{"$f":"IF(C124=1,'Sjekkliste for utfylling'!H260,\" \")","v":" "}]
[{"$f":"'Sjekkliste for utfylling'!A261","v":134},{"$f":"IF('Sjekkliste for utfylling'!F261<>\"\",1,0)","v":0},0,null,{"$f":"IF($C125=1,'Sjekkliste for utfylling'!A261,\"\")","v":""},{"$f":"IF($C125=1,'Sjekkliste for utfylling'!B261,\"\")","v":""},null,{"$f":"IF(C125=1,'Sjekkliste for utfylling'!H261,\" \")","v":" "}]
[{"$f":"'Sjekkliste for utfylling'!A265","v":135},{"$f":"IF('Sjekkliste for utfylling'!F265<>\"\",1,0)","v":0},0,null,{"$f":"IF($C126=1,'Sjekkliste for utfylling'!A265,\"\")","v":""},{"$f":"IF($C126=1,'Sjekkliste for utfylling'!B265,\"\")","v":""},null,{"$f":"IF(C126=1,'Sjekkliste for utfylling'!H265,\" \")","v":" "}]
[{"$f":"'Sjekkliste for utfylling'!A268","v":136},{"$f":"IF('Sjekkliste for utfylling'!F268<>\"\",1,0)","v":0},0,null,{"$f":"IF($C127=1,'Sjekkliste for utfylling'!A268,\"\")","v":""},{"$f":"IF($C127=1,'Sjekkliste for utfylling'!B268,\"\")","v":""},null,{"$f":"IF(C127=1,'Sjekkliste for utfylling'!H268,\" \")","v":" "}]
[{"$f":"'Sjekkliste for utfylling'!A269","v":137},{"$f":"IF('Sjekkliste for utfylling'!F269<>\"\",1,0)","v":0},0,null,{"$f":"IF($C128=1,'Sjekkliste for utfylling'!A269,\"\")","v":""},{"$f":"IF($C128=1,'Sjekkliste for utfylling'!B269,\"\")","v":""},null,{"$f":"IF(C128=1,'Sjekkliste for utfylling'!H269,\" \")","v":" "}]
[{"$f":"'Sjekkliste for utfylling'!A270","v":138},{"$f":"IF('Sjekkliste for utfylling'!F270<>\"\",1,0)","v":0},0,null,{"$f":"IF($C129=1,'Sjekkliste for utfylling'!A270,\"\")","v":""},{"$f":"IF($C129=1,'Sjekkliste for utfylling'!B270,\"\")","v":""},null,{"$f":"IF(C129=1,'Sjekkliste for utfylling'!H270,\" \")","v":" "}]
[{"$f":"'Sjekkliste for utfylling'!A271","v":139},{"$f":"IF('Sjekkliste for utfylling'!F271<>\"\",1,0)","v":0},{"$f":"SUM(B130:B130)","v":0},null,{"$f":"IF($C130=1,'Sjekkliste for utfylling'!A271,\"\")","v":""},{"$f":"IF($C130=1,'Sjekkliste for utfylling'!B271,\"\")","v":""},null,{"$f":"IF(C130=1,'Sjekkliste for utfylling'!H271,\" \")","v":" "}]
[{"$f":"'Sjekkliste for utfylling'!#REF!","v":{"$error":"#REF!"}},{"$f":"IF('Sjekkliste for utfylling'!#REF!<>\"\",1,0)","v":{"$error":"#REF!"}},{"$error":"#REF!"},null,{"$f":"IF($C131=1,'Sjekkliste for utfylling'!#REF!,\"\")","v":{"$error":"#REF!"}},{"$f":"IF($C131=1,'Sjekkliste for utfylling'!#REF!,\"\")","v":{"$error":"#REF!"}},null,{"$f":"IF(C131=1,'Sjekkliste for utfylling'!#REF!,\" \")","v":{"$error":"#REF!"}}]

{"sheet":"IA-svar","index":8,"n_rows":131,"n_cols":8,"rows_kept":131,"cut":false,"hidden":true,"merged":[]}
[null,null,{"$f":"COUNTIF(C2:C11,\"=1\")-D1","v":0},{"$f":"SUM(D2:D131)","v":0},"IA-svar ",{"$f":"'Sjekkliste for utfylling'!B2","v":0},{"$f":"'Sjekkliste for utfylling'!B3","v":2023},{"$f":"'Sjekkliste for utfylling'!C3","v":0}]
[{"$f":"'Sjekkliste for utfylling'!A274","v":140},{"$f":"IF('Sjekkliste for utfylling'!G274<>\"\",1,0)","v":0},{"$f":"SUM(B2:B2)","v":0},null,{"$f":"IF($C2=1,'Sjekkliste for utfylling'!A274,\"\")","v":""},{"$f":"IF($C2=1,'Sjekkliste for utfylling'!B274,\"\")","v":""},null,{"$f":"IF(C2=1,'Sjekkliste for utfylling'!H274,\" \")","v":" "}]
[{"$f":"'Sjekkliste for utfylling'!A227","v":0},{"$f":"IF('Sjekkliste for utfylling'!G227<>\"\",1,0)","v":0},0,null,{"$f":"IF($C3=1,'Sjekkliste for utfylling'!A227,\"\")","v":""},{"$f":"IF($C3=1,'Sjekkliste for utfylling'!B227,\"\")","v":""},null,{"$f":"IF(C3=1,'Sjekkliste for utfylling'!H227,\" \")","v":" "}]
[{"$f":"'Sjekkliste for utfylling'!A13","v":1},{"$f":"IF('Sjekkliste for utfylling'!G13<>\"\",1,0)","v":0},0,null,{"$f":"IF($C4=1,'Sjekkliste for utfylling'!A13,\"\")","v":""},{"$f":"IF($C4=1,'Sjekkliste for utfylling'!B13,\"\")","v":""},null,{"$f":"IF(C4=1,'Sjekkliste for utfylling'!H13,\" \")","v":" "}]
[{"$f":"'Sjekkliste for utfylling'!A14","v":2},{"$f":"IF('Sjekkliste for utfylling'!G14<>\"\",1,0)","v":0},0,null,{"$f":"IF($C5=1,'Sjekkliste for utfylling'!A14,\"\")","v":""},{"$f":"IF($C5=1,'Sjekkliste for utfylling'!B14,\"\")","v":""},null,{"$f":"IF(C5=1,'Sjekkliste for utfylling'!H14,\" \")","v":" "}]
[{"$f":"'Sjekkliste for utfylling'!A15","v":3},{"$f":"IF('Sjekkliste for utfylling'!G15<>\"\",1,0)","v":0},0,null,{"$f":"IF($C6=1,'Sjekkliste for utfylling'!A15,\"\")","v":""},{"$f":"IF($C6=1,'Sjekkliste for utfylling'!B15,\"\")","v":""},null,{"$f":"IF(C6=1,'Sjekkliste for utfylling'!H15,\" \")","v":" "}]
[{"$f":"'Sjekkliste for utfylling'!A17","v":4},{"$f":"IF('Sjekkliste for utfylling'!G17<>\"\",1,0)","v":0},0,null,{"$f":"IF($C7=1,'Sjekkliste for utfylling'!A17,\"\")","v":""},{"$f":"IF($C7=1,'Sjekkliste for utfylling'!B17,\"\")","v":""},null,{"$f":"IF(C7=1,'Sjekkliste for utfylling'!H17,\" \")","v":" "}]
[{"$f":"'Sjekkliste for utfylling'!A20","v":5},{"$f":"IF('Sjekkliste for utfylling'!G20<>\"\",1,0)","v":0},0,null,{"$f":"IF($C8=1,'Sjekkliste for utfylling'!A20,\"\")","v":""},{"$f":"IF($C8=1,'Sjekkliste for utfylling'!B20,\"\")","v":""},null,{"$f":"IF(C8=1,'Sjekkliste for utfylling'!H20,\" \")","v":" "}]
[{"$f":"'Sjekkliste for utfylling'!A21","v":6},{"$f":"IF('Sjekkliste for utfylling'!G21<>\"\",1,0)","v":0},0,null,{"$f":"IF($C9=1,'Sjekkliste for utfylling'!A21,\"\")","v":""},{"$f":"IF($C9=1,'Sjekkliste for utfylling'!B21,\"\")","v":""},null,{"$f":"IF(C9=1,'Sjekkliste for utfylling'!H21,\" \")","v":" "}]
[{"$f":"'Sjekkliste for utfylling'!A22","v":7},{"$f":"IF('Sjekkliste for utfylling'!G22<>\"\",1,0)","v":0},0,null,{"$f":"IF($C10=1,'Sjekkliste for utfylling'!A22,\"\")","v":""},{"$f":"IF($C10=1,'Sjekkliste for utfylling'!B22,\"\")","v":""},null,{"$f":"IF(C10=1,'Sjekkliste for utfylling'!H22,\" \")","v":" "}]
[{"$f":"'Sjekkliste for utfylling'!A23","v":8},{"$f":"IF('Sjekkliste for utfylling'!G23<>\"\",1,0)","v":0},0,null,{"$f":"IF($C11=1,'Sjekkliste for utfylling'!A23,\"\")","v":""},{"$f":"IF($C11=1,'Sjekkliste for utfylling'!B23,\"\")","v":""},null,{"$f":"IF(C11=1,'Sjekkliste for utfylling'!H23,\" \")","v":" "}]
[{"$f":"'Sjekkliste for utfylling'!A24","v":9},{"$f":"IF('Sjekkliste for utfylling'!G24<>\"\",1,0)","v":0},0,null,{"$f":"IF($C12=1,'Sjekkliste for utfylling'!A24,\"\")","v":""},{"$f":"IF($C12=1,'Sjekkliste for utfylling'!B24,\"\")","v":""},null,{"$f":"IF(C12=1,'Sjekkliste for utfylling'!H24,\" \")","v":" "}]
[{"$f":"'Sjekkliste for utfylling'!A25","v":10},{"$f":"IF('Sjekkliste for utfylling'!G25<>\"\",1,0)","v":0},0,null,{"$f":"IF($C13=1,'Sjekkliste for utfylling'!A25,\"\")","v":""},{"$f":"IF($C13=1,'Sjekkliste for utfylling'!B25,\"\")","v":""},null,{"$f":"IF(C13=1,'Sjekkliste for utfylling'!H25,\" \")","v":" "}]
[{"$f":"'Sjekkliste for utfylling'!A26","v":11},{"$f":"IF('Sjekkliste for utfylling'!G26<>\"\",1,0)","v":0},0,null,{"$f":"IF($C14=1,'Sjekkliste for utfylling'!A26,\"\")","v":""},{"$f":"IF($C14=1,'Sjekkliste for utfylling'!B26,\"\")","v":""},null,{"$f":"IF(C14=1,'Sjekkliste for utfylling'!H26,\" \")","v":" "}]
[{"$f":"'Sjekkliste for utfylling'!A30","v":12},{"$f":"IF('Sjekkliste for utfylling'!G30<>\"\",1,0)","v":0},0,null,{"$f":"IF($C15=1,'Sjekkliste for utfylling'!A30,\"\")","v":""},{"$f":"IF($C15=1,'Sjekkliste for utfylling'!B30,\"\")","v":""},null,{"$f":"IF(C15=1,'Sjekkliste for utfylling'!H30,\" \")","v":" "}]
[{"$f":"'Sjekkliste for utfylling'!A31","v":13},{"$f":"IF('Sjekkliste for utfylling'!G31<>\"\",1,0)","v":0},0,null,{"$f":"IF($C16=1,'Sjekkliste for utfylling'!A31,\"\")","v":""},{"$f":"IF($C16=1,'Sjekkliste for utfylling'!B31,\"\")","v":""},null,{"$f":"IF(C16=1,'Sjekkliste for utfylling'!H31,\" \")","v":" "}]
[{"$f":"'Sjekkliste for utfylling'!A32","v":14},{"$f":"IF('Sjekkliste for utfylling'!G32<>\"\",1,0)","v":0},0,null,{"$f":"IF($C17=1,'Sjekkliste for utfylling'!A32,\"\")","v":""},{"$f":"IF($C17=1,'Sjekkliste for utfylling'!B32,\"\")","v":""},null,{"$f":"IF(C17=1,'Sjekkliste for utfylling'!H32,\" \")","v":" "}]
[{"$f":"'Sjekkliste for utfylling'!A33","v":15},{"$f":"IF('Sjekkliste for utfylling'!G33<>\"\",1,0)","v":0},0,null,{"$f":"IF($C18=1,'Sjekkliste for utfylling'!A33,\"\")","v":""},{"$f":"IF($C18=1,'Sjekkliste for utfylling'!B33,\"\")","v":""},null,{"$f":"IF(C18=1,'Sjekkliste for utfylling'!H33,\" \")","v":" "}]
[{"$f":"'Sjekkliste for utfylling'!A38","v":16},{"$f":"IF('Sjekkliste for utfylling'!G38<>\"\",1,0)","v":0},0,null,{"$f":"IF($C19=1,'Sjekkliste for utfylling'!A38,\"\")","v":""},{"$f":"IF($C19=1,'Sjekkliste for utfylling'!B38,\"\")","v":""},null,{"$f":"IF(C19=1,'Sjekkliste for utfylling'!H38,\" \")","v":" "}]
[{"$f":"'Sjekkliste for utfylling'!A39","v":17},{"$f":"IF('Sjekkliste for utfylling'!G39<>\"\",1,0)","v":0},0,null,{"$f":"IF($C20=1,'Sjekkliste for utfylling'!A39,\"\")","v":""},{"$f":"IF($C20=1,'Sjekkliste for utfylling'!B39,\"\")","v":""},null,{"$f":"IF(C20=1,'Sjekkliste for utfylling'!H39,\" \")","v":" "}]
[{"$f":"'Sjekkliste for utfylling'!A40","v":18},{"$f":"IF('Sjekkliste for utfylling'!G40<>\"\",1,0)","v":0},0,null,{"$f":"IF($C21=1,'Sjekkliste for utfylling'!A40,\"\")","v":""},{"$f":"IF($C21=1,'Sjekkliste for utfylling'!B40,\"\")","v":""},null,{"$f":"IF(C21=1,'Sjekkliste for utfylling'!H40,\" \")","v":" "}]
[{"$f":"'Sjekkliste for utfylling'!A41","v":19},{"$f":"IF('Sjekkliste for utfylling'!G41<>\"\",1,0)","v":0},0,null,{"$f":"IF($C22=1,'Sjekkliste for utfylling'!A41,\"\")","v":""},{"$f":"IF($C22=1,'Sjekkliste for utfylling'!B41,\"\")","v":""},null,{"$f":"IF(C22=1,'Sjekkliste for utfylling'!H41,\" \")","v":" "}]
[{"$f":"'Sjekkliste for utfylling'!A42","v":20},{"$f":"IF('Sjekkliste for utfylling'!G42<>\"\",1,0)","v":0},0,null,{"$f":"IF($C23=1,'Sjekkliste for utfylling'!A42,\"\")","v":""},{"$f":"IF($C23=1,'Sjekkliste for utfylling'!B42,\"\")","v":""},null,{"$f":"IF(C23=1,'Sjekkliste for utfylling'!H42,\" \")","v":" "}]
[{"$f":"'Sjekkliste for utfylling'!A43","v":21},{"$f":"IF('Sjekkliste for utfylling'!G43<>\"\",1,0)","v":0},0,null,{"$f":"IF($C24=1,'Sjekkliste for utfylling'!A43,\"\")","v":""},{"$f":"IF($C24=1,'Sjekkliste for utfylling'!B43,\"\")","v":""},null,{"$f":"IF(C24=1,'Sjekkliste for utfylling'!H43,\" \")","v":" "}]
[{"$f":"'Sjekkliste for utfylling'!A44","v":22},{"$f":"IF('Sjekkliste for utfylling'!G44<>\"\",1,0)","v":0},0,null,{"$f":"IF($C25=1,'Sjekkliste for utfylling'!A44,\"\")","v":""},{"$f":"IF($C25=1,'Sjekkliste for utfylling'!B44,\"\")","v":""},null,{"$f":"IF(C25=1,'Sjekkliste for utfylling'!H44,\" \")","v":" "}]
[{"$f":"'Sjekkliste for utfylling'!A45","v":23},{"$f":"IF('Sjekkliste for utfylling'!G45<>\"\",1,0)","v":0},0,null,{"$f":"IF($C26=1,'Sjekkliste for utfylling'!A45,\"\")","v":""},{"$f":"IF($C26=1,'Sjekkliste for utfylling'!B45,\"\")","v":""},null,{"$f":"IF(C26=1,'Sjekkliste for utfylling'!H45,\" \")","v":" "}]
[{"$f":"'Sjekkliste for utfylling'!A46","v":24},{"$f":"IF('Sjekkliste for utfylling'!G46<>\"\",1,0)","v":0},0,null,{"$f":"IF($C27=1,'Sjekkliste for utfylling'!A46,\"\")","v":""},{"$f":"IF($C27=1,'Sjekkliste for utfylling'!B46,\"\")","v":""},null,{"$f":"IF(C27=1,'Sjekkliste for utfylling'!H46,\" \")","v":" "}]
[{"$f":"'Sjekkliste for utfylling'!A47","v":25},{"$f":"IF('Sjekkliste for utfylling'!G47<>\"\",1,0)","v":0},0,null,{"$f":"IF($C28=1,'Sjekkliste for utfylling'!A47,\"\")","v":""},{"$f":"IF($C28=1,'Sjekkliste for utfylling'!B47,\"\")","v":""},null,{"$f":"IF(C28=1,'Sjekkliste for utfylling'!H47,\" \")","v":" "}]
[{"$f":"'Sjekkliste for utfylling'!A48","v":26},{"$f":"IF('Sjekkliste for utfylling'!G48<>\"\",1,0)","v":0},0,null,{"$f":"IF($C29=1,'Sjekkliste for utfylling'!A48,\"\")","v":""},{"$f":"IF($C29=1,'Sjekkliste for utfylling'!B48,\"\")","v":""},null,{"$f":"IF(C29=1,'Sjekkliste for utfylling'!H48,\" \")","v":" "}]
[{"$f":"'Sjekkliste for utfylling'!A49","v":27},{"$f":"IF('Sjekkliste for utfylling'!G49<>\"\",1,0)","v":0},0,null,{"$f":"IF($C30=1,'Sjekkliste for utfylling'!A49,\"\")","v":""},{"$f":"IF($C30=1,'Sjekkliste for utfylling'!B49,\"\")","v":""},null,{"$f":"IF(C30=1,'Sjekkliste for utfylling'!H49,\" \")","v":" "}]
[{"$f":"'Sjekkliste for utfylling'!A51","v":28},{"$f":"IF('Sjekkliste for utfylling'!G51<>\"\",1,0)","v":0},0,null,{"$f":"IF($C31=1,'Sjekkliste for utfylling'!A51,\"\")","v":""},{"$f":"IF($C31=1,'Sjekkliste for utfylling'!B51,\"\")","v":""},null,{"$f":"IF(C31=1,'Sjekkliste for utfylling'!H51,\" \")","v":" "}]
[{"$f":"'Sjekkliste for utfylling'!A52","v":29},{"$f":"IF('Sjekkliste for utfylling'!G52<>\"\",1,0)","v":0},0,null,{"$f":"IF($C32=1,'Sjekkliste for utfylling'!A52,\"\")","v":""},{"$f":"IF($C32=1,'Sjekkliste for utfylling'!B52,\"\")","v":""},null,{"$f":"IF(C32=1,'Sjekkliste for utfylling'!H52,\" \")","v":" "}]
[{"$f":"'Sjekkliste for utfylling'!A54","v":30},{"$f":"IF('Sjekkliste for utfylling'!G54<>\"\",1,0)","v":0},0,null,{"$f":"IF($C33=1,'Sjekkliste for utfylling'!A54,\"\")","v":""},{"$f":"IF($C33=1,'Sjekkliste for utfylling'!B54,\"\")","v":""},null,{"$f":"IF(C33=1,'Sjekkliste for utfylling'!H54,\" \")","v":" "}]
[{"$f":"'Sjekkliste for utfylling'!A58","v":31},{"$f":"IF('Sjekkliste for utfylling'!G58<>\"\",1,0)","v":0},{"$f":"SUM(B34:B34)","v":0},null,{"$f":"IF($C34=1,'Sjekkliste for utfylling'!A58,\"\")","v":""},{"$f":"IF($C34=1,'Sjekkliste for utfylling'!B58,\"\")","v":""},null,{"$f":"IF(C34=1,'Sjekkliste for utfylling'!H58,\" \")","v":" "}]
[{"$f":"'Sjekkliste for utfylling'!A62","v":32},{"$f":"IF('Sjekkliste for utfylling'!G62<>\"\",1,0)","v":0},0,null,{"$f":"IF($C35=1,'Sjekkliste for utfylling'!A62,\"\")","v":""},{"$f":"IF($C35=1,'Sjekkliste for utfylling'!B62,\"\")","v":""},null,{"$f":"IF(C35=1,'Sjekkliste for utfylling'!H62,\" \")","v":" "}]
[{"$f":"'Sjekkliste for utfylling'!A63","v":33},{"$f":"IF('Sjekkliste for utfylling'!G63<>\"\",1,0)","v":0},0,null,{"$f":"IF($C36=1,'Sjekkliste for utfylling'!A63,\"\")","v":""},{"$f":"IF($C36=1,'Sjekkliste for utfylling'!B63,\"\")","v":""},null,{"$f":"IF(C36=1,'Sjekkliste for utfylling'!H63,\" \")","v":" "}]
[{"$f":"'Sjekkliste for utfylling'!A64","v":34},{"$f":"IF('Sjekkliste for utfylling'!G64<>\"\",1,0)","v":0},0,null,{"$f":"IF($C37=1,'Sjekkliste for utfylling'!A64,\"\")","v":""},{"$f":"IF($C37=1,'Sjekkliste for utfylling'!B64,\"\")","v":""},null,{"$f":"IF(C37=1,'Sjekkliste for utfylling'!H64,\" \")","v":" "}]
[{"$f":"'Sjekkliste for utfylling'!A65","v":35},{"$f":"IF('Sjekkliste for utfylling'!G65<>\"\",1,0)","v":0},0,null,{"$f":"IF($C38=1,'Sjekkliste for utfylling'!A65,\"\")","v":""},{"$f":"IF($C38=1,'Sjekkliste for utfylling'!B65,\"\")","v":""},null,{"$f":"IF(C38=1,'Sjekkliste for utfylling'!H65,\" \")","v":" "}]
[{"$f":"'Sjekkliste for utfylling'!A66","v":36},{"$f":"IF('Sjekkliste for utfylling'!G66<>\"\",1,0)","v":0},0,null,{"$f":"IF($C39=1,'Sjekkliste for utfylling'!A66,\"\")","v":""},{"$f":"IF($C39=1,'Sjekkliste for utfylling'!B66,\"\")","v":""},null,{"$f":"IF(C39=1,'Sjekkliste for utfylling'!H66,\" \")","v":" "}]
[{"$f":"'Sjekkliste for utfylling'!A73","v":37},{"$f":"IF('Sjekkliste for utfylling'!G73<>\"\",1,0)","v":0},0,null,{"$f":"IF($C40=1,'Sjekkliste for utfylling'!A73,\"\")","v":""},{"$f":"IF($C40=1,'Sjekkliste for utfylling'!B73,\"\")","v":""},null,{"$f":"IF(C40=1,'Sjekkliste for utfylling'!H73,\" \")","v":" "}]
[{"$f":"'Sjekkliste for utfylling'!A74","v":38},{"$f":"IF('Sjekkliste for utfylling'!G74<>\"\",1,0)","v":0},0,null,{"$f":"IF($C41=1,'Sjekkliste for utfylling'!A74,\"\")","v":""},{"$f":"IF($C41=1,'Sjekkliste for utfylling'!B74,\"\")","v":""},null,{"$f":"IF(C41=1,'Sjekkliste for utfylling'!H74,\" \")","v":" "}]
[{"$f":"'Sjekkliste for utfylling'!A75","v":39},{"$f":"IF('Sjekkliste for utfylling'!G75<>\"\",1,0)","v":0},0,null,{"$f":"IF($C42=1,'Sjekkliste for utfylling'!A75,\"\")","v":""},{"$f":"IF($C42=1,'Sjekkliste for utfylling'!B75,\"\")","v":""},null,{"$f":"IF(C42=1,'Sjekkliste for utfylling'!H75,\" \")","v":" "}]
[{"$f":"'Sjekkliste for utfylling'!A76","v":40},{"$f":"IF('Sjekkliste for utfylling'!G76<>\"\",1,0)","v":0},0,null,{"$f":"IF($C43=1,'Sjekkliste for utfylling'!A76,\"\")","v":""},{"$f":"IF($C43=1,'Sjekkliste for utfylling'!B76,\"\")","v":""},null,{"$f":"IF(C43=1,'Sjekkliste for utfylling'!H76,\" \")","v":" "}]
[{"$f":"'Sjekkliste for utfylling'!A77","v":41},{"$f":"IF('Sjekkliste for utfylling'!G77<>\"\",1,0)","v":0},0,null,{"$f":"IF($C44=1,'Sjekkliste for utfylling'!A77,\"\")","v":""},{"$f":"IF($C44=1,'Sjekkliste for utfylling'!B77,\"\")","v":""},null,{"$f":"IF(C44=1,'Sjekkliste for utfylling'!H77,\" \")","v":" "}]
[{"$f":"'Sjekkliste for utfylling'!A79","v":42},{"$f":"IF('Sjekkliste for utfylling'!G79<>\"\",1,0)","v":0},0,null,{"$f":"IF($C45=1,'Sjekkliste for utfylling'!A79,\"\")","v":""},{"$f":"IF($C45=1,'Sjekkliste for utfylling'!B79,\"\")","v":""},null,{"$f":"IF(C45=1,'Sjekkliste for utfylling'!H79,\" \")","v":" "}]
[{"$f":"'Sjekkliste for utfylling'!A82","v":43},{"$f":"IF('Sjekkliste for utfylling'!G82<>\"\",1,0)","v":0},0,null,{"$f":"IF($C46=1,'Sjekkliste for utfylling'!A82,\"\")","v":""},{"$f":"IF($C46=1,'Sjekkliste for utfylling'!B82,\"\")","v":""},null,{"$f":"IF(C46=1,'Sjekkliste for utfylling'!H82,\" \")","v":" "}]
[{"$f":"'Sjekkliste for utfylling'!A83","v":44},{"$f":"IF('Sjekkliste for utfylling'!G83<>\"\",1,0)","v":0},0,null,{"$f":"IF($C47=1,'Sjekkliste for utfylling'!A83,\"\")","v":""},{"$f":"IF($C47=1,'Sjekkliste for utfylling'!B83,\"\")","v":""},null,{"$f":"IF(C47=1,'Sjekkliste for utfylling'!H83,\" \")","v":" "}]
[{"$f":"'Sjekkliste for utfylling'!A85","v":45},{"$f":"IF('Sjekkliste for utfylling'!G85<>\"\",1,0)","v":0},0,null,{"$f":"IF($C48=1,'Sjekkliste for utfylling'!A85,\"\")","v":""},{"$f":"IF($C48=1,'Sjekkliste for utfylling'!B85,\"\")","v":""},null,{"$f":"IF(C48=1,'Sjekkliste for utfylling'!H85,\" \")","v":" "}]
[{"$f":"'Sjekkliste for utfylling'!A86","v":46},{"$f":"IF('Sjekkliste for utfylling'!G86<>\"\",1,0)","v":0},0,null,{"$f":"IF($C49=1,'Sjekkliste for utfylling'!A86,\"\")","v":""},{"$f":"IF($C49=1,'Sjekkliste for utfylling'!B86,\"\")","v":""},null,{"$f":"IF(C49=1,'Sjekkliste for utfylling'!H86,\" \")","v":" "}]
[{"$f":"'Sjekkliste for utfylling'!A91","v":47},{"$f":"IF('Sjekkliste for utfylling'!G91<>\"\",1,0)","v":0},0,null,{"$f":"IF($C50=1,'Sjekkliste for utfylling'!A91,\"\")","v":""},{"$f":"IF($C50=1,'Sjekkliste for utfylling'!B91,\"\")","v":""},null,{"$f":"IF(C50=1,'Sjekkliste for utfylling'!H91,\" \")","v":" "}]
[{"$f":"'Sjekkliste for utfylling'!A93","v":48},{"$f":"IF('Sjekkliste for utfylling'!G93<>\"\",1,0)","v":0},0,null,{"$f":"IF($C51=1,'Sjekkliste for utfylling'!A93,\"\")","v":""},{"$f":"IF($C51=1,'Sjekkliste for utfylling'!B93,\"\")","v":""},null,{"$f":"IF(C51=1,'Sjekkliste for utfylling'!H93,\" \")","v":" "}]
[{"$f":"'Sjekkliste for utfylling'!A95","v":49},{"$f":"IF('Sjekkliste for utfylling'!G95<>\"\",1,0)","v":0},0,null,{"$f":"IF($C52=1,'Sjekkliste for utfylling'!A95,\"\")","v":""},{"$f":"IF($C52=1,'Sjekkliste for utfylling'!B95,\"\")","v":""},null,{"$f":"IF(C52=1,'Sjekkliste for utfylling'!H95,\" \")","v":" "}]
[{"$f":"'Sjekkliste for utfylling'!A96","v":50},{"$f":"IF('Sjekkliste for utfylling'!G96<>\"\",1,0)","v":0},0,null,{"$f":"IF($C53=1,'Sjekkliste for utfylling'!A96,\"\")","v":""},{"$f":"IF($C53=1,'Sjekkliste for utfylling'!B96,\"\")","v":""},null,{"$f":"IF(C53=1,'Sjekkliste for utfylling'!H96,\" \")","v":" "}]
[{"$f":"'Sjekkliste for utfylling'!A97","v":51},{"$f":"IF('Sjekkliste for utfylling'!G97<>\"\",1,0)","v":0},0,null,{"$f":"IF($C54=1,'Sjekkliste for utfylling'!A97,\"\")","v":""},{"$f":"IF($C54=1,'Sjekkliste for utfylling'!B97,\"\")","v":""},null,{"$f":"IF(C54=1,'Sjekkliste for utfylling'!H97,\" \")","v":" "}]
[{"$f":"'Sjekkliste for utfylling'!A99","v":52},{"$f":"IF('Sjekkliste for utfylling'!G99<>\"\",1,0)","v":0},0,null,{"$f":"IF($C55=1,'Sjekkliste for utfylling'!A99,\"\")","v":""},{"$f":"IF($C55=1,'Sjekkliste for utfylling'!B99,\"\")","v":""},null,{"$f":"IF(C55=1,'Sjekkliste for utfylling'!H99,\" \")","v":" "}]
[{"$f":"'Sjekkliste for utfylling'!A103","v":53},{"$f":"IF('Sjekkliste for utfylling'!G103<>\"\",1,0)","v":0},0,null,{"$f":"IF($C56=1,'Sjekkliste for utfylling'!A103,\"\")","v":""},{"$f":"IF($C56=1,'Sjekkliste for utfylling'!B103,\"\")","v":""},null,{"$f":"IF(C56=1,'Sjekkliste for utfylling'!H103,\" \")","v":" "}]
[{"$f":"'Sjekkliste for utfylling'!A110","v":54},{"$f":"IF('Sjekkliste for utfylling'!G110<>\"\",1,0)","v":0},0,null,{"$f":"IF($C57=1,'Sjekkliste for utfylling'!A110,\"\")","v":""},{"$f":"IF($C57=1,'Sjekkliste for utfylling'!B110,\"\")","v":""},null,{"$f":"IF(C57=1,'Sjekkliste for utfylling'!H110,\" \")","v":" "}]
[{"$f":"'Sjekkliste for utfylling'!A114","v":55},{"$f":"IF('Sjekkliste for utfylling'!G114<>\"\",1,0)","v":0},0,null,{"$f":"IF($C58=1,'Sjekkliste for utfylling'!A114,\"\")","v":""},{"$f":"IF($C58=1,'Sjekkliste for utfylling'!B114,\"\")","v":""},null,{"$f":"IF(C58=1,'Sjekkliste for utfylling'!H114,\" \")","v":" "}]
[{"$f":"'Sjekkliste for utfylling'!A115","v":56},{"$f":"IF('Sjekkliste for utfylling'!G115<>\"\",1,0)","v":0},0,null,{"$f":"IF($C59=1,'Sjekkliste for utfylling'!A115,\"\")","v":""},{"$f":"IF($C59=1,'Sjekkliste for utfylling'!B115,\"\")","v":""},null,{"$f":"IF(C59=1,'Sjekkliste for utfylling'!H115,\" \")","v":" "}]
[{"$f":"'Sjekkliste for utfylling'!A116","v":57},{"$f":"IF('Sjekkliste for utfylling'!G116<>\"\",1,0)","v":0},0,null,{"$f":"IF($C60=1,'Sjekkliste for utfylling'!A116,\"\")","v":""},{"$f":"IF($C60=1,'Sjekkliste for utfylling'!B116,\"\")","v":""},null,{"$f":"IF(C60=1,'Sjekkliste for utfylling'!H116,\" \")","v":" "}]
[{"$f":"'Sjekkliste for utfylling'!A117","v":58},{"$f":"IF('Sjekkliste for utfylling'!G117<>\"\",1,0)","v":0},0,null,{"$f":"IF($C61=1,'Sjekkliste for utfylling'!A117,\"\")","v":""},{"$f":"IF($C61=1,'Sjekkliste for utfylling'!B117,\"\")","v":""},null,{"$f":"IF(C61=1,'Sjekkliste for utfylling'!H117,\" \")","v":" "}]
[{"$f":"'Sjekkliste for utfylling'!A118","v":59},{"$f":"IF('Sjekkliste for utfylling'!G118<>\"\",1,0)","v":0},0,null,{"$f":"IF($C62=1,'Sjekkliste for utfylling'!A118,\"\")","v":""},{"$f":"IF($C62=1,'Sjekkliste for utfylling'!B118,\"\")","v":""},null,{"$f":"IF(C62=1,'Sjekkliste for utfylling'!H118,\" \")","v":" "}]
[{"$f":"'Sjekkliste for utfylling'!A119","v":60},{"$f":"IF('Sjekkliste for utfylling'!G119<>\"\",1,0)","v":0},0,null,{"$f":"IF($C63=1,'Sjekkliste for utfylling'!A119,\"\")","v":""},{"$f":"IF($C63=1,'Sjekkliste for utfylling'!B119,\"\")","v":""},null,{"$f":"IF(C63=1,'Sjekkliste for utfylling'!H119,\" \")","v":" "}]
[{"$f":"'Sjekkliste for utfylling'!A120","v":61},{"$f":"IF('Sjekkliste for utfylling'!G120<>\"\",1,0)","v":0},0,null,{"$f":"IF($C64=1,'Sjekkliste for utfylling'!A120,\"\")","v":""},{"$f":"IF($C64=1,'Sjekkliste for utfylling'!B120,\"\")","v":""},null,{"$f":"IF(C64=1,'Sjekkliste for utfylling'!H120,\" \")","v":" "}]
[{"$f":"'Sjekkliste for utfylling'!A126","v":62},{"$f":"IF('Sjekkliste for utfylling'!G126<>\"\",1,0)","v":0},0,null,{"$f":"IF($C65=1,'Sjekkliste for utfylling'!A126,\"\")","v":""},{"$f":"IF($C65=1,'Sjekkliste for utfylling'!B126,\"\")","v":""},null,{"$f":"IF(C65=1,'Sjekkliste for utfylling'!H126,\" \")","v":" "}]
[{"$f":"'Sjekkliste for utfylling'!A128","v":63},{"$f":"IF('Sjekkliste for utfylling'!G128<>\"\",1,0)","v":0},{"$f":"SUM(B66:B66)","v":0},null,{"$f":"IF($C66=1,'Sjekkliste for utfylling'!A128,\"\")","v":""},{"$f":"IF($C66=1,'Sjekkliste for utfylling'!B128,\"\")","v":""},null,{"$f":"IF(C66=1,'Sjekkliste for utfylling'!H128,\" \")","v":" "}]
[{"$f":"'Sjekkliste for utfylling'!A129","v":64},{"$f":"IF('Sjekkliste for utfylling'!G129<>\"\",1,0)","v":0},0,null,{"$f":"IF($C67=1,'Sjekkliste for utfylling'!A129,\"\")","v":""},{"$f":"IF($C67=1,'Sjekkliste for utfylling'!B129,\"\")","v":""},null,{"$f":"IF(C67=1,'Sjekkliste for utfylling'!H129,\" \")","v":" "}]
[{"$f":"'Sjekkliste for utfylling'!A130","v":65},{"$f":"IF('Sjekkliste for utfylling'!G130<>\"\",1,0)","v":0},0,null,{"$f":"IF($C68=1,'Sjekkliste for utfylling'!A130,\"\")","v":""},{"$f":"IF($C68=1,'Sjekkliste for utfylling'!B130,\"\")","v":""},null,{"$f":"IF(C68=1,'Sjekkliste for utfylling'!H130,\" \")","v":" "}]
[{"$f":"'Sjekkliste for utfylling'!A135","v":66},{"$f":"IF('Sjekkliste for utfylling'!G135<>\"\",1,0)","v":0},0,null,{"$f":"IF($C69=1,'Sjekkliste for utfylling'!A135,\"\")","v":""},{"$f":"IF($C69=1,'Sjekkliste for utfylling'!B135,\"\")","v":""},null,{"$f":"IF(C69=1,'Sjekkliste for utfylling'!H135,\" \")","v":" "}]
[{"$f":"'Sjekkliste for utfylling'!A136","v":67},{"$f":"IF('Sjekkliste for utfylling'!G136<>\"\",1,0)","v":0},0,null,{"$f":"IF($C70=1,'Sjekkliste for utfylling'!A136,\"\")","v":""},{"$f":"IF($C70=1,'Sjekkliste for utfylling'!B136,\"\")","v":""},null,{"$f":"IF(C70=1,'Sjekkliste for utfylling'!H136,\" \")","v":" "}]
[{"$f":"'Sjekkliste for utfylling'!A137","v":68},{"$f":"IF('Sjekkliste for utfylling'!G137<>\"\",1,0)","v":0},0,null,{"$f":"IF($C71=1,'Sjekkliste for utfylling'!A137,\"\")","v":""},{"$f":"IF($C71=1,'Sjekkliste for utfylling'!B137,\"\")","v":""},null,{"$f":"IF(C71=1,'Sjekkliste for utfylling'!H137,\" \")","v":" "}]
[{"$f":"'Sjekkliste for utfylling'!A138","v":69},{"$f":"IF('Sjekkliste for utfylling'!G138<>\"\",1,0)","v":0},0,null,{"$f":"IF($C72=1,'Sjekkliste for utfylling'!A138,\"\")","v":""},{"$f":"IF($C72=1,'Sjekkliste for utfylling'!B138,\"\")","v":""},null,{"$f":"IF(C72=1,'Sjekkliste for utfylling'!H138,\" \")","v":" "}]
[{"$f":"'Sjekkliste for utfylling'!A140","v":70},{"$f":"IF('Sjekkliste for utfylling'!G140<>\"\",1,0)","v":0},0,null,{"$f":"IF($C73=1,'Sjekkliste for utfylling'!A140,\"\")","v":""},{"$f":"IF($C73=1,'Sjekkliste for utfylling'!B140,\"\")","v":""},null,{"$f":"IF(C73=1,'Sjekkliste for utfylling'!H140,\" \")","v":" "}]
[{"$f":"'Sjekkliste for utfylling'!A155","v":73},{"$f":"IF('Sjekkliste for utfylling'!G155<>\"\",1,0)","v":0},0,null,{"$f":"IF($C74=1,'Sjekkliste for utfylling'!A155,\"\")","v":""},{"$f":"IF($C74=1,'Sjekkliste for utfylling'!B155,\"\")","v":""},null,{"$f":"IF(C74=1,'Sjekkliste for utfylling'!H155,\" \")","v":" "}]
[{"$f":"'Sjekkliste for utfylling'!A157","v":74},{"$f":"IF('Sjekkliste for utfylling'!G157<>\"\",1,0)","v":0},0,null,{"$f":"IF($C75=1,'Sjekkliste for utfylling'!A157,\"\")","v":""},{"$f":"IF($C75=1,'Sjekkliste for utfylling'!B157,\"\")","v":""},null,{"$f":"IF(C75=1,'Sjekkliste for utfylling'!H157,\" \")","v":" "}]
[{"$f":"'Sjekkliste for utfylling'!A158","v":75},{"$f":"IF('Sjekkliste for utfylling'!G158<>\"\",1,0)","v":0},0,null,{"$f":"IF($C76=1,'Sjekkliste for utfylling'!A158,\"\")","v":""},{"$f":"IF($C76=1,'Sjekkliste for utfylling'!B158,\"\")","v":""},null,{"$f":"IF(C76=1,'Sjekkliste for utfylling'!H158,\" \")","v":" "}]
[{"$f":"'Sjekkliste for utfylling'!A159","v":76},{"$f":"IF('Sjekkliste for utfylling'!G159<>\"\",1,0)","v":0},0,null,{"$f":"IF($C77=1,'Sjekkliste for utfylling'!A159,\"\")","v":""},{"$f":"IF($C77=1,'Sjekkliste for utfylling'!B159,\"\")","v":""},null,{"$f":"IF(C77=1,'Sjekkliste for utfylling'!H159,\" \")","v":" "}]
[{"$f":"'Sjekkliste for utfylling'!A160","v":77},{"$f":"IF('Sjekkliste for utfylling'!G160<>\"\",1,0)","v":0},0,null,{"$f":"IF($C78=1,'Sjekkliste for utfylling'!A160,\"\")","v":""},{"$f":"IF($C78=1,'Sjekkliste for utfylling'!B160,\"\")","v":""},null,{"$f":"IF(C78=1,'Sjekkliste for utfylling'!H160,\" \")","v":" "}]
[{"$f":"'Sjekkliste for utfylling'!A161","v":78},{"$f":"IF('Sjekkliste for utfylling'!G161<>\"\",1,0)","v":0},0,null,{"$f":"IF($C79=1,'Sjekkliste for utfylling'!A161,\"\")","v":""},{"$f":"IF($C79=1,'Sjekkliste for utfylling'!B161,\"\")","v":""},null,{"$f":"IF(C79=1,'Sjekkliste for utfylling'!H161,\" \")","v":" "}]
[{"$f":"'Sjekkliste for utfylling'!A163","v":79},{"$f":"IF('Sjekkliste for utfylling'!G163<>\"\",1,0)","v":0},0,null,{"$f":"IF($C80=1,'Sjekkliste for utfylling'!A163,\"\")","v":""},{"$f":"IF($C80=1,'Sjekkliste for utfylling'!B163,\"\")","v":""},null,{"$f":"IF(C80=1,'Sjekkliste for utfylling'!H163,\" \")","v":" "}]
[{"$f":"'Sjekkliste for utfylling'!A164","v":80},{"$f":"IF('Sjekkliste for utfylling'!G164<>\"\",1,0)","v":0},0,null,{"$f":"IF($C81=1,'Sjekkliste for utfylling'!A164,\"\")","v":""},{"$f":"IF($C81=1,'Sjekkliste for utfylling'!B164,\"\")","v":""},null,{"$f":"IF(C81=1,'Sjekkliste for utfylling'!H164,\" \")","v":" "}]
[{"$f":"'Sjekkliste for utfylling'!A167","v":81},{"$f":"IF('Sjekkliste for utfylling'!G167<>\"\",1,0)","v":0},0,null,{"$f":"IF($C82=1,'Sjekkliste for utfylling'!A167,\"\")","v":""},{"$f":"IF($C82=1,'Sjekkliste for utfylling'!B167,\"\")","v":""},null,{"$f":"IF(C82=1,'Sjekkliste for utfylling'!H167,\" \")","v":" "}]
[{"$f":"'Sjekkliste for utfylling'!A168","v":82},{"$f":"IF('Sjekkliste for utfylling'!G168<>\"\",1,0)","v":0},0,null,{"$f":"IF($C83=1,'Sjekkliste for utfylling'!A168,\"\")","v":""},{"$f":"IF($C83=1,'Sjekkliste for utfylling'!B168,\"\")","v":""},null,{"$f":"IF(C83=1,'Sjekkliste for utfylling'!H168,\" \")","v":" "}]
[{"$f":"'Sjekkliste for utfylling'!A169","v":83},{"$f":"IF('Sjekkliste for utfylling'!G169<>\"\",1,0)","v":0},0,null,{"$f":"IF($C84=1,'Sjekkliste for utfylling'!A169,\"\")","v":""},{"$f":"IF($C84=1,'Sjekkliste for utfylling'!B169,\"\")","v":""},null,{"$f":"IF(C84=1,'Sjekkliste for utfylling'!H169,\" \")","v":" "}]
[{"$f":"'Sjekkliste for utfylling'!A171","v":84},{"$f":"IF('Sjekkliste for utfylling'!G171<>\"\",1,0)","v":0},0,null,{"$f":"IF($C85=1,'Sjekkliste for utfylling'!A171,\"\")","v":""},{"$f":"IF($C85=1,'Sjekkliste for utfylling'!B171,\"\")","v":""},null,{"$f":"IF(C85=1,'Sjekkliste for utfylling'!H171,\" \")","v":" "}]
[{"$f":"'Sjekkliste for utfylling'!A173","v":85},{"$f":"IF('Sjekkliste for utfylling'!G173<>\"\",1,0)","v":0},0,null,{"$f":"IF($C86=1,'Sjekkliste for utfylling'!A173,\"\")","v":""},{"$f":"IF($C86=1,'Sjekkliste for utfylling'!B173,\"\")","v":""},null,{"$f":"IF(C86=1,'Sjekkliste for utfylling'!H173,\" \")","v":" "}]
[{"$f":"'Sjekkliste for utfylling'!A174","v":86},{"$f":"IF('Sjekkliste for utfylling'!G174<>\"\",1,0)","v":0},0,null,{"$f":"IF($C87=1,'Sjekkliste for utfylling'!A174,\"\")","v":""},{"$f":"IF($C87=1,'Sjekkliste for utfylling'!B174,\"\")","v":""},null,{"$f":"IF(C87=1,'Sjekkliste for utfylling'!H174,\" \")","v":" "}]
[{"$f":"'Sjekkliste for utfylling'!A175","v":87},{"$f":"IF('Sjekkliste for utfylling'!G175<>\"\",1,0)","v":0},0,null,{"$f":"IF($C88=1,'Sjekkliste for utfylling'!A175,\"\")","v":""},{"$f":"IF($C88=1,'Sjekkliste for utfylling'!B175,\"\")","v":""},null,{"$f":"IF(C88=1,'Sjekkliste for utfylling'!H175,\" \")","v":" "}]
[{"$f":"'Sjekkliste for utfylling'!A176","v":88},{"$f":"IF('Sjekkliste for utfylling'!G176<>\"\",1,0)","v":0},0,null,{"$f":"IF($C89=1,'Sjekkliste for utfylling'!A176,\"\")","v":""},{"$f":"IF($C89=1,'Sjekkliste for utfylling'!B176,\"\")","v":""},null,{"$f":"IF(C89=1,'Sjekkliste for utfylling'!H176,\" \")","v":" "}]
[{"$f":"'Sjekkliste for utfylling'!A177","v":89},{"$f":"IF('Sjekkliste for utfylling'!G177<>\"\",1,0)","v":0},0,null,{"$f":"IF($C90=1,'Sjekkliste for utfylling'!A177,\"\")","v":""},{"$f":"IF($C90=1,'Sjekkliste for utfylling'!B177,\"\")","v":""},null,{"$f":"IF(C90=1,'Sjekkliste for utfylling'!H177,\" \")","v":" "}]
[{"$f":"'Sjekkliste for utfylling'!A178","v":90},{"$f":"IF('Sjekkliste for utfylling'!G178<>\"\",1,0)","v":0},0,null,{"$f":"IF($C91=1,'Sjekkliste for utfylling'!A178,\"\")","v":""},{"$f":"IF($C91=1,'Sjekkliste for utfylling'!B178,\"\")","v":""},null,{"$f":"IF(C91=1,'Sjekkliste for utfylling'!H178,\" \")","v":" "}]
[{"$f":"'Sjekkliste for utfylling'!A179","v":91},{"$f":"IF('Sjekkliste for utfylling'!G179<>\"\",1,0)","v":0},0,null,{"$f":"IF($C92=1,'Sjekkliste for utfylling'!A179,\"\")","v":""},{"$f":"IF($C92=1,'Sjekkliste for utfylling'!B179,\"\")","v":""},null,{"$f":"IF(C92=1,'Sjekkliste for utfylling'!H179,\" \")","v":" "}]
[{"$f":"'Sjekkliste for utfylling'!A180","v":92},{"$f":"IF('Sjekkliste for utfylling'!G180<>\"\",1,0)","v":0},0,null,{"$f":"IF($C93=1,'Sjekkliste for utfylling'!A180,\"\")","v":""},{"$f":"IF($C93=1,'Sjekkliste for utfylling'!B180,\"\")","v":""},null,{"$f":"IF(C93=1,'Sjekkliste for utfylling'!H180,\" \")","v":" "}]
[{"$f":"'Sjekkliste for utfylling'!A181","v":93},{"$f":"IF('Sjekkliste for utfylling'!G181<>\"\",1,0)","v":0},0,null,{"$f":"IF($C94=1,'Sjekkliste for utfylling'!A181,\"\")","v":""},{"$f":"IF($C94=1,'Sjekkliste for utfylling'!B181,\"\")","v":""},null,{"$f":"IF(C94=1,'Sjekkliste for utfylling'!H181,\" \")","v":" "}]
[{"$f":"'Sjekkliste for utfylling'!A182","v":94},{"$f":"IF('Sjekkliste for utfylling'!G182<>\"\",1,0)","v":0},0,null,{"$f":"IF($C95=1,'Sjekkliste for utfylling'!A182,\"\")","v":""},{"$f":"IF($C95=1,'Sjekkliste for utfylling'!B182,\"\")","v":""},null,{"$f":"IF(C95=1,'Sjekkliste for utfylling'!H182,\" \")","v":" "}]
[{"$f":"'Sjekkliste for utfylling'!A186","v":95},{"$f":"IF('Sjekkliste for utfylling'!G186<>\"\",1,0)","v":0},0,null,{"$f":"IF($C96=1,'Sjekkliste for utfylling'!A186,\"\")","v":""},{"$f":"IF($C96=1,'Sjekkliste for utfylling'!B186,\"\")","v":""},null,{"$f":"IF(C96=1,'Sjekkliste for utfylling'!H186,\" \")","v":" "}]
[{"$f":"'Sjekkliste for utfylling'!A187","v":96},{"$f":"IF('Sjekkliste for utfylling'!G187<>\"\",1,0)","v":0},0,null,{"$f":"IF($C97=1,'Sjekkliste for utfylling'!A187,\"\")","v":""},{"$f":"IF($C97=1,'Sjekkliste for utfylling'!B187,\"\")","v":""},null,{"$f":"IF(C97=1,'Sjekkliste for utfylling'!H187,\" \")","v":" "}]
[{"$f":"'Sjekkliste for utfylling'!A188","v":97},{"$f":"IF('Sjekkliste for utfylling'!G188<>\"\",1,0)","v":0},{"$f":"SUM(B98:B98)","v":0},null,{"$f":"IF($C98=1,'Sjekkliste for utfylling'!A188,\"\")","v":""},{"$f":"IF($C98=1,'Sjekkliste for utfylling'!B188,\"\")","v":""},null,{"$f":"IF(C98=1,'Sjekkliste for utfylling'!H188,\" \")","v":" "}]
[{"$f":"'Sjekkliste for utfylling'!A189","v":98},{"$f":"IF('Sjekkliste for utfylling'!G189<>\"\",1,0)","v":0},0,null,{"$f":"IF($C99=1,'Sjekkliste for utfylling'!A189,\"\")","v":""},{"$f":"IF($C99=1,'Sjekkliste for utfylling'!B189,\"\")","v":""},null,{"$f":"IF(C99=1,'Sjekkliste for utfylling'!H189,\" \")","v":" "}]
[{"$f":"'Sjekkliste for utfylling'!A197","v":99},{"$f":"IF('Sjekkliste for utfylling'!G197<>\"\",1,0)","v":0},0,null,{"$f":"IF($C100=1,'Sjekkliste for utfylling'!A197,\"\")","v":""},{"$f":"IF($C100=1,'Sjekkliste for utfylling'!B197,\"\")","v":""},null,{"$f":"IF(C100=1,'Sjekkliste for utfylling'!H197,\" \")","v":" "}]
[{"$f":"'Sjekkliste for utfylling'!A198","v":100},{"$f":"IF('Sjekkliste for utfylling'!G198<>\"\",1,0)","v":0},0,null,{"$f":"IF($C101=1,'Sjekkliste for utfylling'!A198,\"\")","v":""},{"$f":"IF($C101=1,'Sjekkliste for utfylling'!B198,\"\")","v":""},null,{"$f":"IF(C101=1,'Sjekkliste for utfylling'!H198,\" \")","v":" "}]
[{"$f":"'Sjekkliste for utfylling'!A199","v":101},{"$f":"IF('Sjekkliste for utfylling'!G199<>\"\",1,0)","v":0},0,null,{"$f":"IF($C102=1,'Sjekkliste for utfylling'!A199,\"\")","v":""},{"$f":"IF($C102=1,'Sjekkliste for utfylling'!B199,\"\")","v":""},null,{"$f":"IF(C102=1,'Sjekkliste for utfylling'!H199,\" \")","v":" "}]
[{"$f":"'Sjekkliste for utfylling'!A204","v":105},{"$f":"IF('Sjekkliste for utfylling'!G204<>\"\",1,0)","v":0},0,null,{"$f":"IF($C103=1,'Sjekkliste for utfylling'!A204,\"\")","v":""},{"$f":"IF($C103=1,'Sjekkliste for utfylling'!B204,\"\")","v":""},null,{"$f":"IF(C103=1,'Sjekkliste for utfylling'!H204,\" \")","v":" "}]
[{"$f":"'Sjekkliste for utfylling'!A205","v":106},{"$f":"IF('Sjekkliste for utfylling'!G205<>\"\",1,0)","v":0},0,null,{"$f":"IF($C104=1,'Sjekkliste for utfylling'!A205,\"\")","v":""},{"$f":"IF($C104=1,'Sjekkliste for utfylling'!B205,\"\")","v":""},null,{"$f":"IF(C104=1,'Sjekkliste for utfylling'!H205,\" \")","v":" "}]
[{"$f":"'Sjekkliste for utfylling'!A206","v":107},{"$f":"IF('Sjekkliste for utfylling'!G206<>\"\",1,0)","v":0},0,null,{"$f":"IF($C105=1,'Sjekkliste for utfylling'!A206,\"\")","v":""},{"$f":"IF($C105=1,'Sjekkliste for utfylling'!B206,\"\")","v":""},null,{"$f":"IF(C105=1,'Sjekkliste for utfylling'!H206,\" \")","v":" "}]
[{"$f":"'Sjekkliste for utfylling'!A207","v":108},{"$f":"IF('Sjekkliste for utfylling'!G207<>\"\",1,0)","v":0},0,null,{"$f":"IF($C106=1,'Sjekkliste for utfylling'!A207,\"\")","v":""},{"$f":"IF($C106=1,'Sjekkliste for utfylling'!B207,\"\")","v":""},null,{"$f":"IF(C106=1,'Sjekkliste for utfylling'!H207,\" \")","v":" "}]
[{"$f":"'Sjekkliste for utfylling'!A208","v":109},{"$f":"IF('Sjekkliste for utfylling'!G208<>\"\",1,0)","v":0},0,null,{"$f":"IF($C107=1,'Sjekkliste for utfylling'!A208,\"\")","v":""},{"$f":"IF($C107=1,'Sjekkliste for utfylling'!B208,\"\")","v":""},null,{"$f":"IF(C107=1,'Sjekkliste for utfylling'!H208,\" \")","v":" "}]
[{"$f":"'Sjekkliste for utfylling'!A216","v":110},{"$f":"IF('Sjekkliste for utfylling'!G216<>\"\",1,0)","v":0},0,null,{"$f":"IF($C108=1,'Sjekkliste for utfylling'!A216,\"\")","v":""},{"$f":"IF($C108=1,'Sjekkliste for utfylling'!B216,\"\")","v":""},null,{"$f":"IF(C108=1,'Sjekkliste for utfylling'!H216,\" \")","v":" "}]
[{"$f":"'Sjekkliste for utfylling'!A219","v":112},{"$f":"IF('Sjekkliste for utfylling'!G219<>\"\",1,0)","v":0},0,null,{"$f":"IF($C109=1,'Sjekkliste for utfylling'!A219,\"\")","v":""},{"$f":"IF($C109=1,'Sjekkliste for utfylling'!B219,\"\")","v":""},null,{"$f":"IF(C109=1,'Sjekkliste for utfylling'!H219,\" \")","v":" "}]
[{"$f":"'Sjekkliste for utfylling'!A221","v":113},{"$f":"IF('Sjekkliste for utfylling'!G221<>\"\",1,0)","v":0},0,null,{"$f":"IF($C110=1,'Sjekkliste for utfylling'!A221,\"\")","v":""},{"$f":"IF($C110=1,'Sjekkliste for utfylling'!B221,\"\")","v":""},null,{"$f":"IF(C110=1,'Sjekkliste for utfylling'!H221,\" \")","v":" "}]
[{"$f":"'Sjekkliste for utfylling'!A223","v":115},{"$f":"IF('Sjekkliste for utfylling'!G223<>\"\",1,0)","v":0},0,null,{"$f":"IF($C111=1,'Sjekkliste for utfylling'!A223,\"\")","v":""},{"$f":"IF($C111=1,'Sjekkliste for utfylling'!B223,\"\")","v":""},null,{"$f":"IF(C111=1,'Sjekkliste for utfylling'!H223,\" \")","v":" "}]
[{"$f":"'Sjekkliste for utfylling'!A225","v":117},{"$f":"IF('Sjekkliste for utfylling'!G225<>\"\",1,0)","v":0},0,null,{"$f":"IF($C112=1,'Sjekkliste for utfylling'!A225,\"\")","v":""},{"$f":"IF($C112=1,'Sjekkliste for utfylling'!B225,\"\")","v":""},null,{"$f":"IF(C112=1,'Sjekkliste for utfylling'!H225,\" \")","v":" "}]
[{"$f":"'Sjekkliste for utfylling'!A228","v":118},{"$f":"IF('Sjekkliste for utfylling'!G228<>\"\",1,0)","v":0},0,null,{"$f":"IF($C113=1,'Sjekkliste for utfylling'!A228,\"\")","v":""},{"$f":"IF($C113=1,'Sjekkliste for utfylling'!B228,\"\")","v":""},null,{"$f":"IF(C113=1,'Sjekkliste for utfylling'!H228,\" \")","v":" "}]
[{"$f":"'Sjekkliste for utfylling'!A240","v":123},{"$f":"IF('Sjekkliste for utfylling'!G240<>\"\",1,0)","v":0},0,null,{"$f":"IF($C114=1,'Sjekkliste for utfylling'!A240,\"\")","v":""},{"$f":"IF($C114=1,'Sjekkliste for utfylling'!B240,\"\")","v":""},null,{"$f":"IF(C114=1,'Sjekkliste for utfylling'!H240,\" \")","v":" "}]
[{"$f":"'Sjekkliste for utfylling'!A244","v":124},{"$f":"IF('Sjekkliste for utfylling'!G244<>\"\",1,0)","v":0},0,null,{"$f":"IF($C115=1,'Sjekkliste for utfylling'!A244,\"\")","v":""},{"$f":"IF($C115=1,'Sjekkliste for utfylling'!B244,\"\")","v":""},null,{"$f":"IF(C115=1,'Sjekkliste for utfylling'!H244,\" \")","v":" "}]
[{"$f":"'Sjekkliste for utfylling'!A245","v":125},{"$f":"IF('Sjekkliste for utfylling'!G245<>\"\",1,0)","v":0},0,null,{"$f":"IF($C116=1,'Sjekkliste for utfylling'!A245,\"\")","v":""},{"$f":"IF($C116=1,'Sjekkliste for utfylling'!B245,\"\")","v":""},null,{"$f":"IF(C116=1,'Sjekkliste for utfylling'!H245,\" \")","v":" "}]
[{"$f":"'Sjekkliste for utfylling'!A246","v":126},{"$f":"IF('Sjekkliste for utfylling'!G246<>\"\",1,0)","v":0},0,null,{"$f":"IF($C117=1,'Sjekkliste for utfylling'!A246,\"\")","v":""},{"$f":"IF($C117=1,'Sjekkliste for utfylling'!B246,\"\")","v":""},null,{"$f":"IF(C117=1,'Sjekkliste for utfylling'!H246,\" \")","v":" "}]
[{"$f":"'Sjekkliste for utfylling'!A249","v":127},{"$f":"IF('Sjekkliste for utfylling'!G249<>\"\",1,0)","v":0},0,null,{"$f":"IF($C118=1,'Sjekkliste for utfylling'!A249,\"\")","v":""},{"$f":"IF($C118=1,'Sjekkliste for utfylling'!B249,\"\")","v":""},null,{"$f":"IF(C118=1,'Sjekkliste for utfylling'!H249,\" \")","v":" "}]
[{"$f":"'Sjekkliste for utfylling'!A251","v":128},{"$f":"IF('Sjekkliste for utfylling'!G251<>\"\",1,0)","v":0},0,null,{"$f":"IF($C119=1,'Sjekkliste for utfylling'!A251,\"\")","v":""},{"$f":"IF($C119=1,'Sjekkliste for utfylling'!B251,\"\")","v":""},null,{"$f":"IF(C119=1,'Sjekkliste for utfylling'!H251,\" \")","v":" "}]
[{"$f":"'Sjekkliste for utfylling'!A253","v":129},{"$f":"IF('Sjekkliste for utfylling'!G253<>\"\",1,0)","v":0},0,null,{"$f":"IF($C120=1,'Sjekkliste for utfylling'!A253,\"\")","v":""},{"$f":"IF($C120=1,'Sjekkliste for utfylling'!B253,\"\")","v":""},null,{"$f":"IF(C120=1,'Sjekkliste for utfylling'!H253,\" \")","v":" "}]
[{"$f":"'Sjekkliste for utfylling'!A257","v":130},{"$f":"IF('Sjekkliste for utfylling'!G257<>\"\",1,0)","v":0},0,null,{"$f":"IF($C121=1,'Sjekkliste for utfylling'!A257,\"\")","v":""},{"$f":"IF($C121=1,'Sjekkliste for utfylling'!B257,\"\")","v":""},null,{"$f":"IF(C121=1,'Sjekkliste for utfylling'!H257,\" \")","v":" "}]
[{"$f":"'Sjekkliste for utfylling'!A258","v":131},{"$f":"IF('Sjekkliste for utfylling'!G258<>\"\",1,0)","v":0},0,null,{"$f":"IF($C122=1,'Sjekkliste for utfylling'!A258,\"\")","v":""},{"$f":"IF($C122=1,'Sjekkliste for utfylling'!B258,\"\")","v":""},null,{"$f":"IF(C122=1,'Sjekkliste for utfylling'!H258,\" \")","v":" "}]
[{"$f":"'Sjekkliste for utfylling'!A259","v":132},{"$f":"IF('Sjekkliste for utfylling'!G259<>\"\",1,0)","v":0},0,null,{"$f":"IF($C123=1,'Sjekkliste for utfylling'!A259,\"\")","v":""},{"$f":"IF($C123=1,'Sjekkliste for utfylling'!B259,\"\")","v":""},null,{"$f":"IF(C123=1,'Sjekkliste for utfylling'!H259,\" \")","v":" "}]
[{"$f":"'Sjekkliste for utfylling'!A260","v":133},{"$f":"IF('Sjekkliste for utfylling'!G260<>\"\",1,0)","v":0},0,null,{"$f":"IF($C124=1,'Sjekkliste for utfylling'!A260,\"\")","v":""},{"$f":"IF($C124=1,'Sjekkliste for utfylling'!B260,\"\")","v":""},null,{"$f":"IF(C124=1,'Sjekkliste for utfylling'!H260,\" \")","v":" "}]
[{"$f":"'Sjekkliste for utfylling'!A261","v":134},{"$f":"IF('Sjekkliste for utfylling'!G261<>\"\",1,0)","v":0},0,null,{"$f":"IF($C125=1,'Sjekkliste for utfylling'!A261,\"\")","v":""},{"$f":"IF($C125=1,'Sjekkliste for utfylling'!B261,\"\")","v":""},null,{"$f":"IF(C125=1,'Sjekkliste for utfylling'!H261,\" \")","v":" "}]
[{"$f":"'Sjekkliste for utfylling'!A265","v":135},{"$f":"IF('Sjekkliste for utfylling'!G265<>\"\",1,0)","v":0},0,null,{"$f":"IF($C126=1,'Sjekkliste for utfylling'!A265,\"\")","v":""},{"$f":"IF($C126=1,'Sjekkliste for utfylling'!B265,\"\")","v":""},null,{"$f":"IF(C126=1,'Sjekkliste for utfylling'!H265,\" \")","v":" "}]
[{"$f":"'Sjekkliste for utfylling'!A268","v":136},{"$f":"IF('Sjekkliste for utfylling'!G268<>\"\",1,0)","v":0},0,null,{"$f":"IF($C127=1,'Sjekkliste for utfylling'!A268,\"\")","v":""},{"$f":"IF($C127=1,'Sjekkliste for utfylling'!B268,\"\")","v":""},null,{"$f":"IF(C127=1,'Sjekkliste for utfylling'!H268,\" \")","v":" "}]
[{"$f":"'Sjekkliste for utfylling'!A269","v":137},{"$f":"IF('Sjekkliste for utfylling'!G269<>\"\",1,0)","v":0},0,null,{"$f":"IF($C128=1,'Sjekkliste for utfylling'!A269,\"\")","v":""},{"$f":"IF($C128=1,'Sjekkliste for utfylling'!B269,\"\")","v":""},null,{"$f":"IF(C128=1,'Sjekkliste for utfylling'!H269,\" \")","v":" "}]
[{"$f":"'Sjekkliste for utfylling'!A270","v":138},{"$f":"IF('Sjekkliste for utfylling'!G270<>\"\",1,0)","v":0},0,null,{"$f":"IF($C129=1,'Sjekkliste for utfylling'!A270,\"\")","v":""},{"$f":"IF($C129=1,'Sjekkliste for utfylling'!B270,\"\")","v":""},null,{"$f":"IF(C129=1,'Sjekkliste for utfylling'!H270,\" \")","v":" "}]
[{"$f":"'Sjekkliste for utfylling'!A271","v":139},{"$f":"IF('Sjekkliste for utfylling'!G271<>\"\",1,0)","v":0},{"$f":"SUM(B130:B130)","v":0},null,{"$f":"IF($C130=1,'Sjekkliste for utfylling'!A271,\"\")","v":""},{"$f":"IF($C130=1,'Sjekkliste for utfylling'!B271,\"\")","v":""},null,{"$f":"IF(C130=1,'Sjekkliste for utfylling'!H271,\" \")","v":" "}]
[{"$f":"'Sjekkliste for utfylling'!#REF!","v":{"$error":"#REF!"}},{"$f":"IF('Sjekkliste for utfylling'!#REF!<>\"\",1,0)","v":{"$error":"#REF!"}},{"$error":"#REF!"},null,{"$f":"IF($C131=1,'Sjekkliste for utfylling'!#REF!,\"\")","v":{"$error":"#REF!"}},{"$f":"IF($C131=1,'Sjekkliste for utfylling'!#REF!,\"\")","v":{"$error":"#REF!"}},null,{"$f":"IF(C131=1,'Sjekkliste for utfylling'!#REF!,\" \")","v":{"$error":"#REF!"}}]